Workbook

Sheet 1
B1: 0.1 | C1: =MAX(ABS(C2),ABS(C3)) -> 1.8 | E1: Riba | F1: 0.5
B2: =C1*0.25 -> 0.45 | C2: =MIN(Input[Y]) -> 0.9
B3: =ROUND(B2/$B$1,0)*$B$1 -> 0.5 | C3: =MAX(Input[Y]) -> 1.8
B5: Įvestis
B6: Atstumas, km | C6: AD0
B7: X | C7: Y | P7: Km pries | Q7: Km po | R7: AD pries | S7: AD po | T7: Output Y | U7: Skirt ^2 | V7: Skirt
B8: 0.05 | C8: 1.4 | O8: =IFERROR(IF(Input[[#This Row],[X]]="","", MATCH(Input[[#This Row],[X]],Output[X],0)),"") -> 1 | P8: =IFERROR(IF(Input[[#This Row],[X]]="","", MAX(IF(ISNUMBER($O$8:$O8),$B$8:$B8,""))),"") -> 0.05 | Q8: =IFERROR(IF(Input[[#This Row],[X]]="","", MIN(IF(ISNUMBER($O8:$O$999),$B8:$B$999,""))),"") -> 0.05 | R8: =IFERROR(IF(Input[[#This Row],[X]]="","", INDEX(Input[Y],MATCH(P8,Input[X],0))),"") -> 1.4 | S8: =IFERROR(IF(Input[[#This Row],[X]]="","", INDEX(Input[Y],MATCH(Q8,Input[X],0))),"") -> 1.4 | T8: =IFERROR(IF(Input[[#This Row],[X]]="","", IF(O8<>"",Input[[#This Row],[Y]], R8+(S8-R8)/(Q8-P8)*(Input[[#This Row],[X]]-P8) )),"") -> 1.4 | U8: =IFERROR(IF(Input[[#This Row],[X]]="","", (T8-Input[[#This Row],[Y]])^2),"") -> 0 | V8: =IFERROR(IF(Input[[#This Row],[X]]="","", (T8-Input[[#This Row],[Y]])),"") -> 0
B9: 0.15 | C9: 1.5 | O9: =IFERROR(IF(Input[[#This Row],[X]]="","", MATCH(Input[[#This Row],[X]],Output[X],0)),"") ->  | P9: =IFERROR(IF(Input[[#This Row],[X]]="","", MAX(IF(ISNUMBER($O$8:$O9),$B$8:$B9,""))),"") -> 0.05 | Q9: =IFERROR(IF(Input[[#This Row],[X]]="","", MIN(IF(ISNUMBER($O9:$O$999),$B9:$B$999,""))),"") -> 4.25 | R9: =IFERROR(IF(Input[[#This Row],[X]]="","", INDEX(Input[Y],MATCH(P9,Input[X],0))),"") -> 1.4 | S9: =IFERROR(IF(Input[[#This Row],[X]]="","", INDEX(Input[Y],MATCH(Q9,Input[X],0))),"") -> 1.2 | T9: =IFERROR(IF(Input[[#This Row],[X]]="","", IF(O9<>"",Input[[#This Row],[Y]], R9+(S9-R9)/(Q9-P9)*(Input[[#This Row],[X]]-P9) )),"") -> 1.395238095 | U9: =IFERROR(IF(Input[[#This Row],[X]]="","", (T9-Input[[#This Row],[Y]])^2),"") -> 0.01097505669 | V9: =IFERROR(IF(Input[[#This Row],[X]]="","", (T9-Input[[#This Row],[Y]])),"") -> -0.1047619048
B10: 0.25 | C10: 1.5 | O10: =IFERROR(IF(Input[[#This Row],[X]]="","", MATCH(Input[[#This Row],[X]],Output[X],0)),"") ->  | P10: =IFERROR(IF(Input[[#This Row],[X]]="","", MAX(IF(ISNUMBER($O$8:$O10),$B$8:$B10,""))),"") -> 0.05 | Q10: =IFERROR(IF(Input[[#This Row],[X]]="","", MIN(IF(ISNUMBER($O10:$O$999),$B10:$B$999,""))),"") -> 4.25 | R10: =IFERROR(IF(Input[[#This Row],[X]]="","", INDEX(Input[Y],MATCH(P10,Input[X],0))),"") -> 1.4 | S10: =IFERROR(IF(Input[[#This Row],[X]]="","", INDEX(Input[Y],MATCH(Q10,Input[X],0))),"") -> 1.2 | T10: =IFERROR(IF(Input[[#This Row],[X]]="","", IF(O10<>"",Input[[#This Row],[Y]], R10+(S10-R10)/(Q10-P10)*(Input[[#This Row],[X]]-P10) )),"") -> 1.39047619 | U10: =IFERROR(IF(Input[[#This Row],[X]]="","", (T10-Input[[#This Row],[Y]])^2),"") -> 0.01199546485 | V10: =IFERROR(IF(Input[[#This Row],[X]]="","", (T10-Input[[#This Row],[Y]])),"") -> -0.1095238095
B11: 0.35 | C11: 1.5 | O11: =IFERROR(IF(Input[[#This Row],[X]]="","", MATCH(Input[[#This Row],[X]],Output[X],0)),"") ->  | P11: =IFERROR(IF(Input[[#This Row],[X]]="","", MAX(IF(ISNUMBER($O$8:$O11),$B$8:$B11,""))),"") -> 0.05 | Q11: =IFERROR(IF(Input[[#This Row],[X]]="","", MIN(IF(ISNUMBER($O11:$O$999),$B11:$B$999,""))),"") -> 4.25 | R11: =IFERROR(IF(Input[[#This Row],[X]]="","", INDEX(Input[Y],MATCH(P11,Input[X],0))),"") -> 1.4 | S11: =IFERROR(IF(Input[[#This Row],[X]]="","", INDEX(Input[Y],MATCH(Q11,Input[X],0))),"") -> 1.2 | T11: =IFERROR(IF(Input[[#This Row],[X]]="","", IF(O11<>"",Input[[#This Row],[Y]], R11+(S11-R11)/(Q11-P11)*(Input[[#This Row],[X]]-P11) )),"") -> 1.385714286 | U11: =IFERROR(IF(Input[[#This Row],[X]]="","", (T11-Input[[#This Row],[Y]])^2),"") -> 0.01306122449 | V11: =IFERROR(IF(Input[[#This Row],[X]]="","", (T11-Input[[#This Row],[Y]])),"") -> -0.1142857143
B12: 0.45 | C12: 1.7 | O12: =IFERROR(IF(Input[[#This Row],[X]]="","", MATCH(Input[[#This Row],[X]],Output[X],0)),"") ->  | P12: =IFERROR(IF(Input[[#This Row],[X]]="","", MAX(IF(ISNUMBER($O$8:$O12),$B$8:$B12,""))),"") -> 0.05 | Q12: =IFERROR(IF(Input[[#This Row],[X]]="","", MIN(IF(ISNUMBER($O12:$O$999),$B12:$B$999,""))),"") -> 4.25 | R12: =IFERROR(IF(Input[[#This Row],[X]]="","", INDEX(Input[Y],MATCH(P12,Input[X],0))),"") -> 1.4 | S12: =IFERROR(IF(Input[[#This Row],[X]]="","", INDEX(Input[Y],MATCH(Q12,Input[X],0))),"") -> 1.2 | T12: =IFERROR(IF(Input[[#This Row],[X]]="","", IF(O12<>"",Input[[#This Row],[Y]], R12+(S12-R12)/(Q12-P12)*(Input[[#This Row],[X]]-P12) )),"") -> 1.380952381 | U12: =IFERROR(IF(Input[[#This Row],[X]]="","", (T12-Input[[#This Row],[Y]])^2),"") -> 0.1017913832 | V12: =IFERROR(IF(Input[[#This Row],[X]]="","", (T12-Input[[#This Row],[Y]])),"") -> -0.319047619
B13: 0.55 | C13: 1.5 | O13: =IFERROR(IF(Input[[#This Row],[X]]="","", MATCH(Input[[#This Row],[X]],Output[X],0)),"") ->  | P13: =IFERROR(IF(Input[[#This Row],[X]]="","", MAX(IF(ISNUMBER($O$8:$O13),$B$8:$B13,""))),"") -> 0.05 | Q13: =IFERROR(IF(Input[[#This Row],[X]]="","", MIN(IF(ISNUMBER($O13:$O$999),$B13:$B$999,""))),"") -> 4.25 | R13: =IFERROR(IF(Input[[#This Row],[X]]="","", INDEX(Input[Y],MATCH(P13,Input[X],0))),"") -> 1.4 | S13: =IFERROR(IF(Input[[#This Row],[X]]="","", INDEX(Input[Y],MATCH(Q13,Input[X],0))),"") -> 1.2 | T13: =IFERROR(IF(Input[[#This Row],[X]]="","", IF(O13<>"",Input[[#This Row],[Y]], R13+(S13-R13)/(Q13-P13)*(Input[[#This Row],[X]]-P13) )),"") -> 1.376190476 | U13: =IFERROR(IF(Input[[#This Row],[X]]="","", (T13-Input[[#This Row],[Y]])^2),"") -> 0.01532879819 | V13: =IFERROR(IF(Input[[#This Row],[X]]="","", (T13-Input[[#This Row],[Y]])),"") -> -0.1238095238
B14: 0.65 | C14: 1.4 | O14: =IFERROR(IF(Input[[#This Row],[X]]="","", MATCH(Input[[#This Row],[X]],Output[X],0)),"") ->  | P14: =IFERROR(IF(Input[[#This Row],[X]]="","", MAX(IF(ISNUMBER($O$8:$O14),$B$8:$B14,""))),"") -> 0.05 | Q14: =IFERROR(IF(Input[[#This Row],[X]]="","", MIN(IF(ISNUMBER($O14:$O$999),$B14:$B$999,""))),"") -> 4.25 | R14: =IFERROR(IF(Input[[#This Row],[X]]="","", INDEX(Input[Y],MATCH(P14,Input[X],0))),"") -> 1.4 | S14: =IFERROR(IF(Input[[#This Row],[X]]="","", INDEX(Input[Y],MATCH(Q14,Input[X],0))),"") -> 1.2 | T14: =IFERROR(IF(Input[[#This Row],[X]]="","", IF(O14<>"",Input[[#This Row],[Y]], R14+(S14-R14)/(Q14-P14)*(Input[[#This Row],[X]]-P14) )),"") -> 1.371428571 | U14: =IFERROR(IF(Input[[#This Row],[X]]="","", (T14-Input[[#This Row],[Y]])^2),"") -> 0.0008163265306 | V14: =IFERROR(IF(Input[[#This Row],[X]]="","", (T14-Input[[#This Row],[Y]])),"") -> -0.02857142857
B15: 0.75 | C15: 1.3 | O15: =IFERROR(IF(Input[[#This Row],[X]]="","", MATCH(Input[[#This Row],[X]],Output[X],0)),"") ->  | P15: =IFERROR(IF(Input[[#This Row],[X]]="","", MAX(IF(ISNUMBER($O$8:$O15),$B$8:$B15,""))),"") -> 0.05 | Q15: =IFERROR(IF(Input[[#This Row],[X]]="","", MIN(IF(ISNUMBER($O15:$O$999),$B15:$B$999,""))),"") -> 4.25 | R15: =IFERROR(IF(Input[[#This Row],[X]]="","", INDEX(Input[Y],MATCH(P15,Input[X],0))),"") -> 1.4 | S15: =IFERROR(IF(Input[[#This Row],[X]]="","", INDEX(Input[Y],MATCH(Q15,Input[X],0))),"") -> 1.2 | T15: =IFERROR(IF(Input[[#This Row],[X]]="","", IF(O15<>"",Input[[#This Row],[Y]], R15+(S15-R15)/(Q15-P15)*(Input[[#This Row],[X]]-P15) )),"") -> 1.366666667 | U15: =IFERROR(IF(Input[[#This Row],[X]]="","", (T15-Input[[#This Row],[Y]])^2),"") -> 0.004444444444 | V15: =IFERROR(IF(Input[[#This Row],[X]]="","", (T15-Input[[#This Row],[Y]])),"") -> 0.06666666667
B16: 0.85 | C16: 1.1 | O16: =IFERROR(IF(Input[[#This Row],[X]]="","", MATCH(Input[[#This Row],[X]],Output[X],0)),"") ->  | P16: =IFERROR(IF(Input[[#This Row],[X]]="","", MAX(IF(ISNUMBER($O$8:$O16),$B$8:$B16,""))),"") -> 0.05 | Q16: =IFERROR(IF(Input[[#This Row],[X]]="","", MIN(IF(ISNUMBER($O16:$O$999),$B16:$B$999,""))),"") -> 4.25 | R16: =IFERROR(IF(Input[[#This Row],[X]]="","", INDEX(Input[Y],MATCH(P16,Input[X],0))),"") -> 1.4 | S16: =IFERROR(IF(Input[[#This Row],[X]]="","", INDEX(Input[Y],MATCH(Q16,Input[X],0))),"") -> 1.2 | T16: =IFERROR(IF(Input[[#This Row],[X]]="","", IF(O16<>"",Input[[#This Row],[Y]], R16+(S16-R16)/(Q16-P16)*(Input[[#This Row],[X]]-P16) )),"") -> 1.361904762 | U16: =IFERROR(IF(Input[[#This Row],[X]]="","", (T16-Input[[#This Row],[Y]])^2),"") -> 0.06859410431 | V16: =IFERROR(IF(Input[[#This Row],[X]]="","", (T16-Input[[#This Row],[Y]])),"") -> 0.2619047619
B17: 0.95 | C17: 0.9 | O17: =IFERROR(IF(Input[[#This Row],[X]]="","", MATCH(Input[[#This Row],[X]],Output[X],0)),"") ->  | P17: =IFERROR(IF(Input[[#This Row],[X]]="","", MAX(IF(ISNUMBER($O$8:$O17),$B$8:$B17,""))),"") -> 0.05 | Q17: =IFERROR(IF(Input[[#This Row],[X]]="","", MIN(IF(ISNUMBER($O17:$O$999),$B17:$B$999,""))),"") -> 4.25 | R17: =IFERROR(IF(Input[[#This Row],[X]]="","", INDEX(Input[Y],MATCH(P17,Input[X],0))),"") -> 1.4 | S17: =IFERROR(IF(Input[[#This Row],[X]]="","", INDEX(Input[Y],MATCH(Q17,Input[X],0))),"") -> 1.2 | T17: =IFERROR(IF(Input[[#This Row],[X]]="","", IF(O17<>"",Input[[#This Row],[Y]], R17+(S17-R17)/(Q17-P17)*(Input[[#This Row],[X]]-P17) )),"") -> 1.357142857 | U17: =IFERROR(IF(Input[[#This Row],[X]]="","", (T17-Input[[#This Row],[Y]])^2),"") -> 0.2089795918 | V17: =IFERROR(IF(Input[[#This Row],[X]]="","", (T17-Input[[#This Row],[Y]])),"") -> 0.4571428571
B18: 1.05 | C18: 1.1 | O18: =IFERROR(IF(Input[[#This Row],[X]]="","", MATCH(Input[[#This Row],[X]],Output[X],0)),"") ->  | P18: =IFERROR(IF(Input[[#This Row],[X]]="","", MAX(IF(ISNUMBER($O$8:$O18),$B$8:$B18,""))),"") -> 0.05 | Q18: =IFERROR(IF(Input[[#This Row],[X]]="","", MIN(IF(ISNUMBER($O18:$O$999),$B18:$B$999,""))),"") -> 4.25 | R18: =IFERROR(IF(Input[[#This Row],[X]]="","", INDEX(Input[Y],MATCH(P18,Input[X],0))),"") -> 1.4 | S18: =IFERROR(IF(Input[[#This Row],[X]]="","", INDEX(Input[Y],MATCH(Q18,Input[X],0))),"") -> 1.2 | T18: =IFERROR(IF(Input[[#This Row],[X]]="","", IF(O18<>"",Input[[#This Row],[Y]], R18+(S18-R18)/(Q18-P18)*(Input[[#This Row],[X]]-P18) )),"") -> 1.352380952 | U18: =IFERROR(IF(Input[[#This Row],[X]]="","", (T18-Input[[#This Row],[Y]])^2),"") -> 0.06369614512 | V18: =IFERROR(IF(Input[[#This Row],[X]]="","", (T18-Input[[#This Row],[Y]])),"") -> 0.2523809524
B19: 1.15 | C19: 1.1 | O19: =IFERROR(IF(Input[[#This Row],[X]]="","", MATCH(Input[[#This Row],[X]],Output[X],0)),"") ->  | P19: =IFERROR(IF(Input[[#This Row],[X]]="","", MAX(IF(ISNUMBER($O$8:$O19),$B$8:$B19,""))),"") -> 0.05 | Q19: =IFERROR(IF(Input[[#This Row],[X]]="","", MIN(IF(ISNUMBER($O19:$O$999),$B19:$B$999,""))),"") -> 4.25 | R19: =IFERROR(IF(Input[[#This Row],[X]]="","", INDEX(Input[Y],MATCH(P19,Input[X],0))),"") -> 1.4 | S19: =IFERROR(IF(Input[[#This Row],[X]]="","", INDEX(Input[Y],MATCH(Q19,Input[X],0))),"") -> 1.2 | T19: =IFERROR(IF(Input[[#This Row],[X]]="","", IF(O19<>"",Input[[#This Row],[Y]], R19+(S19-R19)/(Q19-P19)*(Input[[#This Row],[X]]-P19) )),"") -> 1.347619048 | U19: =IFERROR(IF(Input[[#This Row],[X]]="","", (T19-Input[[#This Row],[Y]])^2),"") -> 0.06131519274 | V19: =IFERROR(IF(Input[[#This Row],[X]]="","", (T19-Input[[#This Row],[Y]])),"") -> 0.2476190476
B20: 1.25 | C20: 1.1 | O20: =IFERROR(IF(Input[[#This Row],[X]]="","", MATCH(Input[[#This Row],[X]],Output[X],0)),"") ->  | P20: =IFERROR(IF(Input[[#This Row],[X]]="","", MAX(IF(ISNUMBER($O$8:$O20),$B$8:$B20,""))),"") -> 0.05 | Q20: =IFERROR(IF(Input[[#This Row],[X]]="","", MIN(IF(ISNUMBER($O20:$O$999),$B20:$B$999,""))),"") -> 4.25 | R20: =IFERROR(IF(Input[[#This Row],[X]]="","", INDEX(Input[Y],MATCH(P20,Input[X],0))),"") -> 1.4 | S20: =IFERROR(IF(Input[[#This Row],[X]]="","", INDEX(Input[Y],MATCH(Q20,Input[X],0))),"") -> 1.2 | T20: =IFERROR(IF(Input[[#This Row],[X]]="","", IF(O20<>"",Input[[#This Row],[Y]], R20+(S20-R20)/(Q20-P20)*(Input[[#This Row],[X]]-P20) )),"") -> 1.342857143 | U20: =IFERROR(IF(Input[[#This Row],[X]]="","", (T20-Input[[#This Row],[Y]])^2),"") -> 0.05897959184 | V20: =IFERROR(IF(Input[[#This Row],[X]]="","", (T20-Input[[#This Row],[Y]])),"") -> 0.2428571429
B21: 1.35 | C21: 1.2 | O21: =IFERROR(IF(Input[[#This Row],[X]]="","", MATCH(Input[[#This Row],[X]],Output[X],0)),"") ->  | P21: =IFERROR(IF(Input[[#This Row],[X]]="","", MAX(IF(ISNUMBER($O$8:$O21),$B$8:$B21,""))),"") -> 0.05 | Q21: =IFERROR(IF(Input[[#This Row],[X]]="","", MIN(IF(ISNUMBER($O21:$O$999),$B21:$B$999,""))),"") -> 4.25 | R21: =IFERROR(IF(Input[[#This Row],[X]]="","", INDEX(Input[Y],MATCH(P21,Input[X],0))),"") -> 1.4 | S21: =IFERROR(IF(Input[[#This Row],[X]]="","", INDEX(Input[Y],MATCH(Q21,Input[X],0))),"") -> 1.2 | T21: =IFERROR(IF(Input[[#This Row],[X]]="","", IF(O21<>"",Input[[#This Row],[Y]], R21+(S21-R21)/(Q21-P21)*(Input[[#This Row],[X]]-P21) )),"") -> 1.338095238 | U21: =IFERROR(IF(Input[[#This Row],[X]]="","", (T21-Input[[#This Row],[Y]])^2),"") -> 0.01907029478 | V21: =IFERROR(IF(Input[[#This Row],[X]]="","", (T21-Input[[#This Row],[Y]])),"") -> 0.1380952381
B22: 1.45 | C22: 1.2 | O22: =IFERROR(IF(Input[[#This Row],[X]]="","", MATCH(Input[[#This Row],[X]],Output[X],0)),"") ->  | P22: =IFERROR(IF(Input[[#This Row],[X]]="","", MAX(IF(ISNUMBER($O$8:$O22),$B$8:$B22,""))),"") -> 0.05 | Q22: =IFERROR(IF(Input[[#This Row],[X]]="","", MIN(IF(ISNUMBER($O22:$O$999),$B22:$B$999,""))),"") -> 4.25 | R22: =IFERROR(IF(Input[[#This Row],[X]]="","", INDEX(Input[Y],MATCH(P22,Input[X],0))),"") -> 1.4 | S22: =IFERROR(IF(Input[[#This Row],[X]]="","", INDEX(Input[Y],MATCH(Q22,Input[X],0))),"") -> 1.2 | T22: =IFERROR(IF(Input[[#This Row],[X]]="","", IF(O22<>"",Input[[#This Row],[Y]], R22+(S22-R22)/(Q22-P22)*(Input[[#This Row],[X]]-P22) )),"") -> 1.333333333 | U22: =IFERROR(IF(Input[[#This Row],[X]]="","", (T22-Input[[#This Row],[Y]])^2),"") -> 0.01777777778 | V22: =IFERROR(IF(Input[[#This Row],[X]]="","", (T22-Input[[#This Row],[Y]])),"") -> 0.1333333333
B23: 1.55 | C23: 1.1 | O23: =IFERROR(IF(Input[[#This Row],[X]]="","", MATCH(Input[[#This Row],[X]],Output[X],0)),"") ->  | P23: =IFERROR(IF(Input[[#This Row],[X]]="","", MAX(IF(ISNUMBER($O$8:$O23),$B$8:$B23,""))),"") -> 0.05 | Q23: =IFERROR(IF(Input[[#This Row],[X]]="","", MIN(IF(ISNUMBER($O23:$O$999),$B23:$B$999,""))),"") -> 4.25 | R23: =IFERROR(IF(Input[[#This Row],[X]]="","", INDEX(Input[Y],MATCH(P23,Input[X],0))),"") -> 1.4 | S23: =IFERROR(IF(Input[[#This Row],[X]]="","", INDEX(Input[Y],MATCH(Q23,Input[X],0))),"") -> 1.2 | T23: =IFERROR(IF(Input[[#This Row],[X]]="","", IF(O23<>"",Input[[#This Row],[Y]], R23+(S23-R23)/(Q23-P23)*(Input[[#This Row],[X]]-P23) )),"") -> 1.328571429 | U23: =IFERROR(IF(Input[[#This Row],[X]]="","", (T23-Input[[#This Row],[Y]])^2),"") -> 0.05224489796 | V23: =IFERROR(IF(Input[[#This Row],[X]]="","", (T23-Input[[#This Row],[Y]])),"") -> 0.2285714286
B24: 1.65 | C24: 1.2 | O24: =IFERROR(IF(Input[[#This Row],[X]]="","", MATCH(Input[[#This Row],[X]],Output[X],0)),"") ->  | P24: =IFERROR(IF(Input[[#This Row],[X]]="","", MAX(IF(ISNUMBER($O$8:$O24),$B$8:$B24,""))),"") -> 0.05 | Q24: =IFERROR(IF(Input[[#This Row],[X]]="","", MIN(IF(ISNUMBER($O24:$O$999),$B24:$B$999,""))),"") -> 4.25 | R24: =IFERROR(IF(Input[[#This Row],[X]]="","", INDEX(Input[Y],MATCH(P24,Input[X],0))),"") -> 1.4 | S24: =IFERROR(IF(Input[[#This Row],[X]]="","", INDEX(Input[Y],MATCH(Q24,Input[X],0))),"") -> 1.2 | T24: =IFERROR(IF(Input[[#This Row],[X]]="","", IF(O24<>"",Input[[#This Row],[Y]], R24+(S24-R24)/(Q24-P24)*(Input[[#This Row],[X]]-P24) )),"") -> 1.323809524 | U24: =IFERROR(IF(Input[[#This Row],[X]]="","", (T24-Input[[#This Row],[Y]])^2),"") -> 0.01532879819 | V24: =IFERROR(IF(Input[[#This Row],[X]]="","", (T24-Input[[#This Row],[Y]])),"") -> 0.1238095238
B25: 1.75 | C25: 1.2 | E25: Rib. atst. | F25: Ruožų | G25: n | H25: SSE | I25: MSE | J25: SD | K25: SEM | L25: R2 | O25: =IFERROR(IF(Input[[#This Row],[X]]="","", MATCH(Input[[#This Row],[X]],Output[X],0)),"") ->  | P25: =IFERROR(IF(Input[[#This Row],[X]]="","", MAX(IF(ISNUMBER($O$8:$O25),$B$8:$B25,""))),"") -> 0.05 | Q25: =IFERROR(IF(Input[[#This Row],[X]]="","", MIN(IF(ISNUMBER($O25:$O$999),$B25:$B$999,""))),"") -> 4.25 | R25: =IFERROR(IF(Input[[#This Row],[X]]="","", INDEX(Input[Y],MATCH(P25,Input[X],0))),"") -> 1.4 | S25: =IFERROR(IF(Input[[#This Row],[X]]="","", INDEX(Input[Y],MATCH(Q25,Input[X],0))),"") -> 1.2 | T25: =IFERROR(IF(Input[[#This Row],[X]]="","", IF(O25<>"",Input[[#This Row],[Y]], R25+(S25-R25)/(Q25-P25)*(Input[[#This Row],[X]]-P25) )),"") -> 1.319047619 | U25: =IFERROR(IF(Input[[#This Row],[X]]="","", (T25-Input[[#This Row],[Y]])^2),"") -> 0.0141723356 | V25: =IFERROR(IF(Input[[#This Row],[X]]="","", (T25-Input[[#This Row],[Y]])),"") -> 0.119047619
B26: 1.85 | C26: 1.3 | E26: =Epsilon -> 0.5 | F26: =COUNT(Output[Y])-1 -> 1 | G26: =COUNT(B8:B999) -> 43 | H26: =SUM(U8:U999) -> 1.792539683 | I26: =H26/G26 -> 0.04168696936 | J26: =SQRT(I26) -> 0.2041738704 | K26: =J26/G26^0.5 -> 0.03113622334 | L26: =RSQ($C$8:$C$999,$T$8:$T$999) -> 0.02033452731 | O26: =IFERROR(IF(Input[[#This Row],[X]]="","", MATCH(Input[[#This Row],[X]],Output[X],0)),"") ->  | P26: =IFERROR(IF(Input[[#This Row],[X]]="","", MAX(IF(ISNUMBER($O$8:$O26),$B$8:$B26,""))),"") -> 0.05 | Q26: =IFERROR(IF(Input[[#This Row],[X]]="","", MIN(IF(ISNUMBER($O26:$O$999),$B26:$B$999,""))),"") -> 4.25 | R26: =IFERROR(IF(Input[[#This Row],[X]]="","", INDEX(Input[Y],MATCH(P26,Input[X],0))),"") -> 1.4 | S26: =IFERROR(IF(Input[[#This Row],[X]]="","", INDEX(Input[Y],MATCH(Q26,Input[X],0))),"") -> 1.2 | T26: =IFERROR(IF(Input[[#This Row],[X]]="","", IF(O26<>"",Input[[#This Row],[Y]], R26+(S26-R26)/(Q26-P26)*(Input[[#This Row],[X]]-P26) )),"") -> 1.314285714 | U26: =IFERROR(IF(Input[[#This Row],[X]]="","", (T26-Input[[#This Row],[Y]])^2),"") -> 0.0002040816327 | V26: =IFERROR(IF(Input[[#This Row],[X]]="","", (T26-Input[[#This Row],[Y]])),"") -> 0.01428571429
B27: 1.95 | C27: 1.4 | O27: =IFERROR(IF(Input[[#This Row],[X]]="","", MATCH(Input[[#This Row],[X]],Output[X],0)),"") ->  | P27: =IFERROR(IF(Input[[#This Row],[X]]="","", MAX(IF(ISNUMBER($O$8:$O27),$B$8:$B27,""))),"") -> 0.05 | Q27: =IFERROR(IF(Input[[#This Row],[X]]="","", MIN(IF(ISNUMBER($O27:$O$999),$B27:$B$999,""))),"") -> 4.25 | R27: =IFERROR(IF(Input[[#This Row],[X]]="","", INDEX(Input[Y],MATCH(P27,Input[X],0))),"") -> 1.4 | S27: =IFERROR(IF(Input[[#This Row],[X]]="","", INDEX(Input[Y],MATCH(Q27,Input[X],0))),"") -> 1.2 | T27: =IFERROR(IF(Input[[#This Row],[X]]="","", IF(O27<>"",Input[[#This Row],[Y]], R27+(S27-R27)/(Q27-P27)*(Input[[#This Row],[X]]-P27) )),"") -> 1.30952381 | U27: =IFERROR(IF(Input[[#This Row],[X]]="","", (T27-Input[[#This Row],[Y]])^2),"") -> 0.008185941043 | V27: =IFERROR(IF(Input[[#This Row],[X]]="","", (T27-Input[[#This Row],[Y]])),"") -> -0.09047619048
B28: 2.05 | C28: 1.5 | I28: Se | J28: Sy | K28: Se/Sy | L28: k | O28: =IFERROR(IF(Input[[#This Row],[X]]="","", MATCH(Input[[#This Row],[X]],Output[X],0)),"") ->  | P28: =IFERROR(IF(Input[[#This Row],[X]]="","", MAX(IF(ISNUMBER($O$8:$O28),$B$8:$B28,""))),"") -> 0.05 | Q28: =IFERROR(IF(Input[[#This Row],[X]]="","", MIN(IF(ISNUMBER($O28:$O$999),$B28:$B$999,""))),"") -> 4.25 | R28: =IFERROR(IF(Input[[#This Row],[X]]="","", INDEX(Input[Y],MATCH(P28,Input[X],0))),"") -> 1.4 | S28: =IFERROR(IF(Input[[#This Row],[X]]="","", INDEX(Input[Y],MATCH(Q28,Input[X],0))),"") -> 1.2 | T28: =IFERROR(IF(Input[[#This Row],[X]]="","", IF(O28<>"",Input[[#This Row],[Y]], R28+(S28-R28)/(Q28-P28)*(Input[[#This Row],[X]]-P28) )),"") -> 1.304761905 | U28: =IFERROR(IF(Input[[#This Row],[X]]="","", (T28-Input[[#This Row],[Y]])^2),"") -> 0.03811791383 | V28: =IFERROR(IF(Input[[#This Row],[X]]="","", (T28-Input[[#This Row],[Y]])),"") -> -0.1952380952
B29: 2.15 | C29: 1.7 | I29: =H26/(G26-L29) -> 0.04717209691 | J29: =_xlfn.STDEV.P(Input[Y]) -> 0.2036975669 | K29: =I29/J29 -> 0.2315790887 | L29: 5 | O29: =IFERROR(IF(Input[[#This Row],[X]]="","", MATCH(Input[[#This Row],[X]],Output[X],0)),"") ->  | P29: =IFERROR(IF(Input[[#This Row],[X]]="","", MAX(IF(ISNUMBER($O$8:$O29),$B$8:$B29,""))),"") -> 0.05 | Q29: =IFERROR(IF(Input[[#This Row],[X]]="","", MIN(IF(ISNUMBER($O29:$O$999),$B29:$B$999,""))),"") -> 4.25 | R29: =IFERROR(IF(Input[[#This Row],[X]]="","", INDEX(Input[Y],MATCH(P29,Input[X],0))),"") -> 1.4 | S29: =IFERROR(IF(Input[[#This Row],[X]]="","", INDEX(Input[Y],MATCH(Q29,Input[X],0))),"") -> 1.2 | T29: =IFERROR(IF(Input[[#This Row],[X]]="","", IF(O29<>"",Input[[#This Row],[Y]], R29+(S29-R29)/(Q29-P29)*(Input[[#This Row],[X]]-P29) )),"") -> 1.3 | U29: =IFERROR(IF(Input[[#This Row],[X]]="","", (T29-Input[[#This Row],[Y]])^2),"") -> 0.16 | V29: =IFERROR(IF(Input[[#This Row],[X]]="","", (T29-Input[[#This Row],[Y]])),"") -> -0.4
B30: 2.25 | C30: 1.8 | O30: =IFERROR(IF(Input[[#This Row],[X]]="","", MATCH(Input[[#This Row],[X]],Output[X],0)),"") ->  | P30: =IFERROR(IF(Input[[#This Row],[X]]="","", MAX(IF(ISNUMBER($O$8:$O30),$B$8:$B30,""))),"") -> 0.05 | Q30: =IFERROR(IF(Input[[#This Row],[X]]="","", MIN(IF(ISNUMBER($O30:$O$999),$B30:$B$999,""))),"") -> 4.25 | R30: =IFERROR(IF(Input[[#This Row],[X]]="","", INDEX(Input[Y],MATCH(P30,Input[X],0))),"") -> 1.4 | S30: =IFERROR(IF(Input[[#This Row],[X]]="","", INDEX(Input[Y],MATCH(Q30,Input[X],0))),"") -> 1.2 | T30: =IFERROR(IF(Input[[#This Row],[X]]="","", IF(O30<>"",Input[[#This Row],[Y]], R30+(S30-R30)/(Q30-P30)*(Input[[#This Row],[X]]-P30) )),"") -> 1.295238095 | U30: =IFERROR(IF(Input[[#This Row],[X]]="","", (T30-Input[[#This Row],[Y]])^2),"") -> 0.2547845805 | V30: =IFERROR(IF(Input[[#This Row],[X]]="","", (T30-Input[[#This Row],[Y]])),"") -> -0.5047619048
B31: 2.35 | C31: 1.7 | O31: =IFERROR(IF(Input[[#This Row],[X]]="","", MATCH(Input[[#This Row],[X]],Output[X],0)),"") ->  | P31: =IFERROR(IF(Input[[#This Row],[X]]="","", MAX(IF(ISNUMBER($O$8:$O31),$B$8:$B31,""))),"") -> 0.05 | Q31: =IFERROR(IF(Input[[#This Row],[X]]="","", MIN(IF(ISNUMBER($O31:$O$999),$B31:$B$999,""))),"") -> 4.25 | R31: =IFERROR(IF(Input[[#This Row],[X]]="","", INDEX(Input[Y],MATCH(P31,Input[X],0))),"") -> 1.4 | S31: =IFERROR(IF(Input[[#This Row],[X]]="","", INDEX(Input[Y],MATCH(Q31,Input[X],0))),"") -> 1.2 | T31: =IFERROR(IF(Input[[#This Row],[X]]="","", IF(O31<>"",Input[[#This Row],[Y]], R31+(S31-R31)/(Q31-P31)*(Input[[#This Row],[X]]-P31) )),"") -> 1.29047619 | U31: =IFERROR(IF(Input[[#This Row],[X]]="","", (T31-Input[[#This Row],[Y]])^2),"") -> 0.1677097506 | V31: =IFERROR(IF(Input[[#This Row],[X]]="","", (T31-Input[[#This Row],[Y]])),"") -> -0.4095238095
B32: 2.45 | C32: 1.6 | O32: =IFERROR(IF(Input[[#This Row],[X]]="","", MATCH(Input[[#This Row],[X]],Output[X],0)),"") ->  | P32: =IFERROR(IF(Input[[#This Row],[X]]="","", MAX(IF(ISNUMBER($O$8:$O32),$B$8:$B32,""))),"") -> 0.05 | Q32: =IFERROR(IF(Input[[#This Row],[X]]="","", MIN(IF(ISNUMBER($O32:$O$999),$B32:$B$999,""))),"") -> 4.25 | R32: =IFERROR(IF(Input[[#This Row],[X]]="","", INDEX(Input[Y],MATCH(P32,Input[X],0))),"") -> 1.4 | S32: =IFERROR(IF(Input[[#This Row],[X]]="","", INDEX(Input[Y],MATCH(Q32,Input[X],0))),"") -> 1.2 | T32: =IFERROR(IF(Input[[#This Row],[X]]="","", IF(O32<>"",Input[[#This Row],[Y]], R32+(S32-R32)/(Q32-P32)*(Input[[#This Row],[X]]-P32) )),"") -> 1.285714286 | U32: =IFERROR(IF(Input[[#This Row],[X]]="","", (T32-Input[[#This Row],[Y]])^2),"") -> 0.0987755102 | V32: =IFERROR(IF(Input[[#This Row],[X]]="","", (T32-Input[[#This Row],[Y]])),"") -> -0.3142857143
B33: 2.55 | C33: 1.5 | O33: =IFERROR(IF(Input[[#This Row],[X]]="","", MATCH(Input[[#This Row],[X]],Output[X],0)),"") ->  | P33: =IFERROR(IF(Input[[#This Row],[X]]="","", MAX(IF(ISNUMBER($O$8:$O33),$B$8:$B33,""))),"") -> 0.05 | Q33: =IFERROR(IF(Input[[#This Row],[X]]="","", MIN(IF(ISNUMBER($O33:$O$999),$B33:$B$999,""))),"") -> 4.25 | R33: =IFERROR(IF(Input[[#This Row],[X]]="","", INDEX(Input[Y],MATCH(P33,Input[X],0))),"") -> 1.4 | S33: =IFERROR(IF(Input[[#This Row],[X]]="","", INDEX(Input[Y],MATCH(Q33,Input[X],0))),"") -> 1.2 | T33: =IFERROR(IF(Input[[#This Row],[X]]="","", IF(O33<>"",Input[[#This Row],[Y]], R33+(S33-R33)/(Q33-P33)*(Input[[#This Row],[X]]-P33) )),"") -> 1.280952381 | U33: =IFERROR(IF(Input[[#This Row],[X]]="","", (T33-Input[[#This Row],[Y]])^2),"") -> 0.04798185941 | V33: =IFERROR(IF(Input[[#This Row],[X]]="","", (T33-Input[[#This Row],[Y]])),"") -> -0.219047619
B34: 2.65 | C34: 1.3 | O34: =IFERROR(IF(Input[[#This Row],[X]]="","", MATCH(Input[[#This Row],[X]],Output[X],0)),"") ->  | P34: =IFERROR(IF(Input[[#This Row],[X]]="","", MAX(IF(ISNUMBER($O$8:$O34),$B$8:$B34,""))),"") -> 0.05 | Q34: =IFERROR(IF(Input[[#This Row],[X]]="","", MIN(IF(ISNUMBER($O34:$O$999),$B34:$B$999,""))),"") -> 4.25 | R34: =IFERROR(IF(Input[[#This Row],[X]]="","", INDEX(Input[Y],MATCH(P34,Input[X],0))),"") -> 1.4 | S34: =IFERROR(IF(Input[[#This Row],[X]]="","", INDEX(Input[Y],MATCH(Q34,Input[X],0))),"") -> 1.2 | T34: =IFERROR(IF(Input[[#This Row],[X]]="","", IF(O34<>"",Input[[#This Row],[Y]], R34+(S34-R34)/(Q34-P34)*(Input[[#This Row],[X]]-P34) )),"") -> 1.276190476 | U34: =IFERROR(IF(Input[[#This Row],[X]]="","", (T34-Input[[#This Row],[Y]])^2),"") -> 0.000566893424 | V34: =IFERROR(IF(Input[[#This Row],[X]]="","", (T34-Input[[#This Row],[Y]])),"") -> -0.02380952381
B35: 2.75 | C35: 1 | O35: =IFERROR(IF(Input[[#This Row],[X]]="","", MATCH(Input[[#This Row],[X]],Output[X],0)),"") ->  | P35: =IFERROR(IF(Input[[#This Row],[X]]="","", MAX(IF(ISNUMBER($O$8:$O35),$B$8:$B35,""))),"") -> 0.05 | Q35: =IFERROR(IF(Input[[#This Row],[X]]="","", MIN(IF(ISNUMBER($O35:$O$999),$B35:$B$999,""))),"") -> 4.25 | R35: =IFERROR(IF(Input[[#This Row],[X]]="","", INDEX(Input[Y],MATCH(P35,Input[X],0))),"") -> 1.4 | S35: =IFERROR(IF(Input[[#This Row],[X]]="","", INDEX(Input[Y],MATCH(Q35,Input[X],0))),"") -> 1.2 | T35: =IFERROR(IF(Input[[#This Row],[X]]="","", IF(O35<>"",Input[[#This Row],[Y]], R35+(S35-R35)/(Q35-P35)*(Input[[#This Row],[X]]-P35) )),"") -> 1.271428571 | U35: =IFERROR(IF(Input[[#This Row],[X]]="","", (T35-Input[[#This Row],[Y]])^2),"") -> 0.07367346939 | V35: =IFERROR(IF(Input[[#This Row],[X]]="","", (T35-Input[[#This Row],[Y]])),"") -> 0.2714285714
B36: 2.85 | C36: 1.1 | O36: =IFERROR(IF(Input[[#This Row],[X]]="","", MATCH(Input[[#This Row],[X]],Output[X],0)),"") ->  | P36: =IFERROR(IF(Input[[#This Row],[X]]="","", MAX(IF(ISNUMBER($O$8:$O36),$B$8:$B36,""))),"") -> 0.05 | Q36: =IFERROR(IF(Input[[#This Row],[X]]="","", MIN(IF(ISNUMBER($O36:$O$999),$B36:$B$999,""))),"") -> 4.25 | R36: =IFERROR(IF(Input[[#This Row],[X]]="","", INDEX(Input[Y],MATCH(P36,Input[X],0))),"") -> 1.4 | S36: =IFERROR(IF(Input[[#This Row],[X]]="","", INDEX(Input[Y],MATCH(Q36,Input[X],0))),"") -> 1.2 | T36: =IFERROR(IF(Input[[#This Row],[X]]="","", IF(O36<>"",Input[[#This Row],[Y]], R36+(S36-R36)/(Q36-P36)*(Input[[#This Row],[X]]-P36) )),"") -> 1.266666667 | U36: =IFERROR(IF(Input[[#This Row],[X]]="","", (T36-Input[[#This Row],[Y]])^2),"") -> 0.02777777778 | V36: =IFERROR(IF(Input[[#This Row],[X]]="","", (T36-Input[[#This Row],[Y]])),"") -> 0.1666666667
B37: 2.95 | C37: 1.2 | O37: =IFERROR(IF(Input[[#This Row],[X]]="","", MATCH(Input[[#This Row],[X]],Output[X],0)),"") ->  | P37: =IFERROR(IF(Input[[#This Row],[X]]="","", MAX(IF(ISNUMBER($O$8:$O37),$B$8:$B37,""))),"") -> 0.05 | Q37: =IFERROR(IF(Input[[#This Row],[X]]="","", MIN(IF(ISNUMBER($O37:$O$999),$B37:$B$999,""))),"") -> 4.25 | R37: =IFERROR(IF(Input[[#This Row],[X]]="","", INDEX(Input[Y],MATCH(P37,Input[X],0))),"") -> 1.4 | S37: =IFERROR(IF(Input[[#This Row],[X]]="","", INDEX(Input[Y],MATCH(Q37,Input[X],0))),"") -> 1.2 | T37: =IFERROR(IF(Input[[#This Row],[X]]="","", IF(O37<>"",Input[[#This Row],[Y]], R37+(S37-R37)/(Q37-P37)*(Input[[#This Row],[X]]-P37) )),"") -> 1.261904762 | U37: =IFERROR(IF(Input[[#This Row],[X]]="","", (T37-Input[[#This Row],[Y]])^2),"") -> 0.003832199546 | V37: =IFERROR(IF(Input[[#This Row],[X]]="","", (T37-Input[[#This Row],[Y]])),"") -> 0.0619047619
B38: 3.05 | C38: 1.2 | O38: =IFERROR(IF(Input[[#This Row],[X]]="","", MATCH(Input[[#This Row],[X]],Output[X],0)),"") ->  | P38: =IFERROR(IF(Input[[#This Row],[X]]="","", MAX(IF(ISNUMBER($O$8:$O38),$B$8:$B38,""))),"") -> 0.05 | Q38: =IFERROR(IF(Input[[#This Row],[X]]="","", MIN(IF(ISNUMBER($O38:$O$999),$B38:$B$999,""))),"") -> 4.25 | R38: =IFERROR(IF(Input[[#This Row],[X]]="","", INDEX(Input[Y],MATCH(P38,Input[X],0))),"") -> 1.4 | S38: =IFERROR(IF(Input[[#This Row],[X]]="","", INDEX(Input[Y],MATCH(Q38,Input[X],0))),"") -> 1.2 | T38: =IFERROR(IF(Input[[#This Row],[X]]="","", IF(O38<>"",Input[[#This Row],[Y]], R38+(S38-R38)/(Q38-P38)*(Input[[#This Row],[X]]-P38) )),"") -> 1.257142857 | U38: =IFERROR(IF(Input[[#This Row],[X]]="","", (T38-Input[[#This Row],[Y]])^2),"") -> 0.003265306122 | V38: =IFERROR(IF(Input[[#This Row],[X]]="","", (T38-Input[[#This Row],[Y]])),"") -> 0.05714285714
B39: 3.15 | C39: 1.2 | O39: =IFERROR(IF(Input[[#This Row],[X]]="","", MATCH(Input[[#This Row],[X]],Output[X],0)),"") ->  | P39: =IFERROR(IF(Input[[#This Row],[X]]="","", MAX(IF(ISNUMBER($O$8:$O39),$B$8:$B39,""))),"") -> 0.05 | Q39: =IFERROR(IF(Input[[#This Row],[X]]="","", MIN(IF(ISNUMBER($O39:$O$999),$B39:$B$999,""))),"") -> 4.25 | R39: =IFERROR(IF(Input[[#This Row],[X]]="","", INDEX(Input[Y],MATCH(P39,Input[X],0))),"") -> 1.4 | S39: =IFERROR(IF(Input[[#This Row],[X]]="","", INDEX(Input[Y],MATCH(Q39,Input[X],0))),"") -> 1.2 | T39: =IFERROR(IF(Input[[#This Row],[X]]="","", IF(O39<>"",Input[[#This Row],[Y]], R39+(S39-R39)/(Q39-P39)*(Input[[#This Row],[X]]-P39) )),"") -> 1.252380952 | U39: =IFERROR(IF(Input[[#This Row],[X]]="","", (T39-Input[[#This Row],[Y]])^2),"") -> 0.002743764172 | V39: =IFERROR(IF(Input[[#This Row],[X]]="","", (T39-Input[[#This Row],[Y]])),"") -> 0.05238095238
B40: 3.25 | C40: 1.2 | O40: =IFERROR(IF(Input[[#This Row],[X]]="","", MATCH(Input[[#This Row],[X]],Output[X],0)),"") ->  | P40: =IFERROR(IF(Input[[#This Row],[X]]="","", MAX(IF(ISNUMBER($O$8:$O40),$B$8:$B40,""))),"") -> 0.05 | Q40: =IFERROR(IF(Input[[#This Row],[X]]="","", MIN(IF(ISNUMBER($O40:$O$999),$B40:$B$999,""))),"") -> 4.25 | R40: =IFERROR(IF(Input[[#This Row],[X]]="","", INDEX(Input[Y],MATCH(P40,Input[X],0))),"") -> 1.4 | S40: =IFERROR(IF(Input[[#This Row],[X]]="","", INDEX(Input[Y],MATCH(Q40,Input[X],0))),"") -> 1.2 | T40: =IFERROR(IF(Input[[#This Row],[X]]="","", IF(O40<>"",Input[[#This Row],[Y]], R40+(S40-R40)/(Q40-P40)*(Input[[#This Row],[X]]-P40) )),"") -> 1.247619048 | U40: =IFERROR(IF(Input[[#This Row],[X]]="","", (T40-Input[[#This Row],[Y]])^2),"") -> 0.002267573696 | V40: =IFERROR(IF(Input[[#This Row],[X]]="","", (T40-Input[[#This Row],[Y]])),"") -> 0.04761904762
B41: 3.35 | C41: 1.2 | O41: =IFERROR(IF(Input[[#This Row],[X]]="","", MATCH(Input[[#This Row],[X]],Output[X],0)),"") ->  | P41: =IFERROR(IF(Input[[#This Row],[X]]="","", MAX(IF(ISNUMBER($O$8:$O41),$B$8:$B41,""))),"") -> 0.05 | Q41: =IFERROR(IF(Input[[#This Row],[X]]="","", MIN(IF(ISNUMBER($O41:$O$999),$B41:$B$999,""))),"") -> 4.25 | R41: =IFERROR(IF(Input[[#This Row],[X]]="","", INDEX(Input[Y],MATCH(P41,Input[X],0))),"") -> 1.4 | S41: =IFERROR(IF(Input[[#This Row],[X]]="","", INDEX(Input[Y],MATCH(Q41,Input[X],0))),"") -> 1.2 | T41: =IFERROR(IF(Input[[#This Row],[X]]="","", IF(O41<>"",Input[[#This Row],[Y]], R41+(S41-R41)/(Q41-P41)*(Input[[#This Row],[X]]-P41) )),"") -> 1.242857143 | U41: =IFERROR(IF(Input[[#This Row],[X]]="","", (T41-Input[[#This Row],[Y]])^2),"") -> 0.001836734694 | V41: =IFERROR(IF(Input[[#This Row],[X]]="","", (T41-Input[[#This Row],[Y]])),"") -> 0.04285714286
B42: 3.45 | C42: 1.2 | O42: =IFERROR(IF(Input[[#This Row],[X]]="","", MATCH(Input[[#This Row],[X]],Output[X],0)),"") ->  | P42: =IFERROR(IF(Input[[#This Row],[X]]="","", MAX(IF(ISNUMBER($O$8:$O42),$B$8:$B42,""))),"") -> 0.05 | Q42: =IFERROR(IF(Input[[#This Row],[X]]="","", MIN(IF(ISNUMBER($O42:$O$999),$B42:$B$999,""))),"") -> 4.25 | R42: =IFERROR(IF(Input[[#This Row],[X]]="","", INDEX(Input[Y],MATCH(P42,Input[X],0))),"") -> 1.4 | S42: =IFERROR(IF(Input[[#This Row],[X]]="","", INDEX(Input[Y],MATCH(Q42,Input[X],0))),"") -> 1.2 | T42: =IFERROR(IF(Input[[#This Row],[X]]="","", IF(O42<>"",Input[[#This Row],[Y]], R42+(S42-R42)/(Q42-P42)*(Input[[#This Row],[X]]-P42) )),"") -> 1.238095238 | U42: =IFERROR(IF(Input[[#This Row],[X]]="","", (T42-Input[[#This Row],[Y]])^2),"") -> 0.001451247166 | V42: =IFERROR(IF(Input[[#This Row],[X]]="","", (T42-Input[[#This Row],[Y]])),"") -> 0.0380952381
B43: 3.55 | C43: 1.1 | O43: =IFERROR(IF(Input[[#This Row],[X]]="","", MATCH(Input[[#This Row],[X]],Output[X],0)),"") ->  | P43: =IFERROR(IF(Input[[#This Row],[X]]="","", MAX(IF(ISNUMBER($O$8:$O43),$B$8:$B43,""))),"") -> 0.05 | Q43: =IFERROR(IF(Input[[#This Row],[X]]="","", MIN(IF(ISNUMBER($O43:$O$999),$B43:$B$999,""))),"") -> 4.25 | R43: =IFERROR(IF(Input[[#This Row],[X]]="","", INDEX(Input[Y],MATCH(P43,Input[X],0))),"") -> 1.4 | S43: =IFERROR(IF(Input[[#This Row],[X]]="","", INDEX(Input[Y],MATCH(Q43,Input[X],0))),"") -> 1.2 | T43: =IFERROR(IF(Input[[#This Row],[X]]="","", IF(O43<>"",Input[[#This Row],[Y]], R43+(S43-R43)/(Q43-P43)*(Input[[#This Row],[X]]-P43) )),"") -> 1.233333333 | U43: =IFERROR(IF(Input[[#This Row],[X]]="","", (T43-Input[[#This Row],[Y]])^2),"") -> 0.01777777778 | V43: =IFERROR(IF(Input[[#This Row],[X]]="","", (T43-Input[[#This Row],[Y]])),"") -> 0.1333333333
B44: 3.65 | C44: 1.2 | O44: =IFERROR(IF(Input[[#This Row],[X]]="","", MATCH(Input[[#This Row],[X]],Output[X],0)),"") ->  | P44: =IFERROR(IF(Input[[#This Row],[X]]="","", MAX(IF(ISNUMBER($O$8:$O44),$B$8:$B44,""))),"") -> 0.05 | Q44: =IFERROR(IF(Input[[#This Row],[X]]="","", MIN(IF(ISNUMBER($O44:$O$999),$B44:$B$999,""))),"") -> 4.25 | R44: =IFERROR(IF(Input[[#This Row],[X]]="","", INDEX(Input[Y],MATCH(P44,Input[X],0))),"") -> 1.4 | S44: =IFERROR(IF(Input[[#This Row],[X]]="","", INDEX(Input[Y],MATCH(Q44,Input[X],0))),"") -> 1.2 | T44: =IFERROR(IF(Input[[#This Row],[X]]="","", IF(O44<>"",Input[[#This Row],[Y]], R44+(S44-R44)/(Q44-P44)*(Input[[#This Row],[X]]-P44) )),"") -> 1.228571429 | U44: =IFERROR(IF(Input[[#This Row],[X]]="","", (T44-Input[[#This Row],[Y]])^2),"") -> 0.0008163265306 | V44: =IFERROR(IF(Input[[#This Row],[X]]="","", (T44-Input[[#This Row],[Y]])),"") -> 0.02857142857
B45: 3.75 | C45: 1.3 | O45: =IFERROR(IF(Input[[#This Row],[X]]="","", MATCH(Input[[#This Row],[X]],Output[X],0)),"") ->  | P45: =IFERROR(IF(Input[[#This Row],[X]]="","", MAX(IF(ISNUMBER($O$8:$O45),$B$8:$B45,""))),"") -> 0.05 | Q45: =IFERROR(IF(Input[[#This Row],[X]]="","", MIN(IF(ISNUMBER($O45:$O$999),$B45:$B$999,""))),"") -> 4.25 | R45: =IFERROR(IF(Input[[#This Row],[X]]="","", INDEX(Input[Y],MATCH(P45,Input[X],0))),"") -> 1.4 | S45: =IFERROR(IF(Input[[#This Row],[X]]="","", INDEX(Input[Y],MATCH(Q45,Input[X],0))),"") -> 1.2 | T45: =IFERROR(IF(Input[[#This Row],[X]]="","", IF(O45<>"",Input[[#This Row],[Y]], R45+(S45-R45)/(Q45-P45)*(Input[[#This Row],[X]]-P45) )),"") -> 1.223809524 | U45: =IFERROR(IF(Input[[#This Row],[X]]="","", (T45-Input[[#This Row],[Y]])^2),"") -> 0.005804988662 | V45: =IFERROR(IF(Input[[#This Row],[X]]="","", (T45-Input[[#This Row],[Y]])),"") -> -0.07619047619
B46: 3.85 | C46: 1.3 | O46: =IFERROR(IF(Input[[#This Row],[X]]="","", MATCH(Input[[#This Row],[X]],Output[X],0)),"") ->  | P46: =IFERROR(IF(Input[[#This Row],[X]]="","", MAX(IF(ISNUMBER($O$8:$O46),$B$8:$B46,""))),"") -> 0.05 | Q46: =IFERROR(IF(Input[[#This Row],[X]]="","", MIN(IF(ISNUMBER($O46:$O$999),$B46:$B$999,""))),"") -> 4.25 | R46: =IFERROR(IF(Input[[#This Row],[X]]="","", INDEX(Input[Y],MATCH(P46,Input[X],0))),"") -> 1.4 | S46: =IFERROR(IF(Input[[#This Row],[X]]="","", INDEX(Input[Y],MATCH(Q46,Input[X],0))),"") -> 1.2 | T46: =IFERROR(IF(Input[[#This Row],[X]]="","", IF(O46<>"",Input[[#This Row],[Y]], R46+(S46-R46)/(Q46-P46)*(Input[[#This Row],[X]]-P46) )),"") -> 1.219047619 | U46: =IFERROR(IF(Input[[#This Row],[X]]="","", (T46-Input[[#This Row],[Y]])^2),"") -> 0.006553287982 | V46: =IFERROR(IF(Input[[#This Row],[X]]="","", (T46-Input[[#This Row],[Y]])),"") -> -0.08095238095
B47: 3.95 | C47: 1.3 | O47: =IFERROR(IF(Input[[#This Row],[X]]="","", MATCH(Input[[#This Row],[X]],Output[X],0)),"") ->  | P47: =IFERROR(IF(Input[[#This Row],[X]]="","", MAX(IF(ISNUMBER($O$8:$O47),$B$8:$B47,""))),"") -> 0.05 | Q47: =IFERROR(IF(Input[[#This Row],[X]]="","", MIN(IF(ISNUMBER($O47:$O$999),$B47:$B$999,""))),"") -> 4.25 | R47: =IFERROR(IF(Input[[#This Row],[X]]="","", INDEX(Input[Y],MATCH(P47,Input[X],0))),"") -> 1.4 | S47: =IFERROR(IF(Input[[#This Row],[X]]="","", INDEX(Input[Y],MATCH(Q47,Input[X],0))),"") -> 1.2 | T47: =IFERROR(IF(Input[[#This Row],[X]]="","", IF(O47<>"",Input[[#This Row],[Y]], R47+(S47-R47)/(Q47-P47)*(Input[[#This Row],[X]]-P47) )),"") -> 1.214285714 | U47: =IFERROR(IF(Input[[#This Row],[X]]="","", (T47-Input[[#This Row],[Y]])^2),"") -> 0.007346938776 | V47: =IFERROR(IF(Input[[#This Row],[X]]="","", (T47-Input[[#This Row],[Y]])),"") -> -0.08571428571
B48: 4.05 | C48: 1.5 | O48: =IFERROR(IF(Input[[#This Row],[X]]="","", MATCH(Input[[#This Row],[X]],Output[X],0)),"") ->  | P48: =IFERROR(IF(Input[[#This Row],[X]]="","", MAX(IF(ISNUMBER($O$8:$O48),$B$8:$B48,""))),"") -> 0.05 | Q48: =IFERROR(IF(Input[[#This Row],[X]]="","", MIN(IF(ISNUMBER($O48:$O$999),$B48:$B$999,""))),"") -> 4.25 | R48: =IFERROR(IF(Input[[#This Row],[X]]="","", INDEX(Input[Y],MATCH(P48,Input[X],0))),"") -> 1.4 | S48: =IFERROR(IF(Input[[#This Row],[X]]="","", INDEX(Input[Y],MATCH(Q48,Input[X],0))),"") -> 1.2 | T48: =IFERROR(IF(Input[[#This Row],[X]]="","", IF(O48<>"",Input[[#This Row],[Y]], R48+(S48-R48)/(Q48-P48)*(Input[[#This Row],[X]]-P48) )),"") -> 1.20952381 | U48: =IFERROR(IF(Input[[#This Row],[X]]="","", (T48-Input[[#This Row],[Y]])^2),"") -> 0.08437641723 | V48: =IFERROR(IF(Input[[#This Row],[X]]="","", (T48-Input[[#This Row],[Y]])),"") -> -0.2904761905
B49: 4.15 | C49: 1.4 | O49: =IFERROR(IF(Input[[#This Row],[X]]="","", MATCH(Input[[#This Row],[X]],Output[X],0)),"") ->  | P49: =IFERROR(IF(Input[[#This Row],[X]]="","", MAX(IF(ISNUMBER($O$8:$O49),$B$8:$B49,""))),"") -> 0.05 | Q49: =IFERROR(IF(Input[[#This Row],[X]]="","", MIN(IF(ISNUMBER($O49:$O$999),$B49:$B$999,""))),"") -> 4.25 | R49: =IFERROR(IF(Input[[#This Row],[X]]="","", INDEX(Input[Y],MATCH(P49,Input[X],0))),"") -> 1.4 | S49: =IFERROR(IF(Input[[#This Row],[X]]="","", INDEX(Input[Y],MATCH(Q49,Input[X],0))),"") -> 1.2 | T49: =IFERROR(IF(Input[[#This Row],[X]]="","", IF(O49<>"",Input[[#This Row],[Y]], R49+(S49-R49)/(Q49-P49)*(Input[[#This Row],[X]]-P49) )),"") -> 1.204761905 | U49: =IFERROR(IF(Input[[#This Row],[X]]="","", (T49-Input[[#This Row],[Y]])^2),"") -> 0.03811791383 | V49: =IFERROR(IF(Input[[#This Row],[X]]="","", (T49-Input[[#This Row],[Y]])),"") -> -0.1952380952
B50: 4.25 | C50: 1.2 | O50: =IFERROR(IF(Input[[#This Row],[X]]="","", MATCH(Input[[#This Row],[X]],Output[X],0)),"") -> 2 | P50: =IFERROR(IF(Input[[#This Row],[X]]="","", MAX(IF(ISNUMBER($O$8:$O50),$B$8:$B50,""))),"") -> 4.25 | Q50: =IFERROR(IF(Input[[#This Row],[X]]="","", MIN(IF(ISNUMBER($O50:$O$999),$B50:$B$999,""))),"") -> 4.25 | R50: =IFERROR(IF(Input[[#This Row],[X]]="","", INDEX(Input[Y],MATCH(P50,Input[X],0))),"") -> 1.2 | S50: =IFERROR(IF(Input[[#This Row],[X]]="","", INDEX(Input[Y],MATCH(Q50,Input[X],0))),"") -> 1.2 | T50: =IFERROR(IF(Input[[#This Row],[X]]="","", IF(O50<>"",Input[[#This Row],[Y]], R50+(S50-R50)/(Q50-P50)*(Input[[#This Row],[X]]-P50) )),"") -> 1.2 | U50: =IFERROR(IF(Input[[#This Row],[X]]="","", (T50-Input[[#This Row],[Y]])^2),"") -> 0 | V50: =IFERROR(IF(Input[[#This Row],[X]]="","", (T50-Input[[#This Row],[Y]])),"") -> 0
O51: =IFERROR(IF(Input[[#This Row],[X]]="","", MATCH(Input[[#This Row],[X]],Output[X],0)),"") ->  | P51: =IFERROR(IF(Input[[#This Row],[X]]="","", MAX(IF(ISNUMBER($O$8:$O51),$B$8:$B51,""))),"") ->  | Q51: =IFERROR(IF(Input[[#This Row],[X]]="","", MIN(IF(ISNUMBER($O51:$O$999),$B51:$B$999,""))),"") ->  | R51: =IFERROR(IF(Input[[#This Row],[X]]="","", INDEX(Input[Y],MATCH(P51,Input[X],0))),"") ->  | S51: =IFERROR(IF(Input[[#This Row],[X]]="","", INDEX(Input[Y],MATCH(Q51,Input[X],0))),"") ->  | T51: =IFERROR(IF(Input[[#This Row],[X]]="","", IF(O51<>"",Input[[#This Row],[Y]], R51+(S51-R51)/(Q51-P51)*(Input[[#This Row],[X]]-P51) )),"") ->  | U51: =IFERROR(IF(Input[[#This Row],[X]]="","", (T51-Input[[#This Row],[Y]])^2),"") ->  | V51: =IFERROR(IF(Input[[#This Row],[X]]="","", (T51-Input[[#This Row],[Y]])),"") -> 
O52: =IFERROR(IF(Input[[#This Row],[X]]="","", MATCH(Input[[#This Row],[X]],Output[X],0)),"") ->  | P52: =IFERROR(IF(Input[[#This Row],[X]]="","", MAX(IF(ISNUMBER($O$8:$O52),$B$8:$B52,""))),"") ->  | Q52: =IFERROR(IF(Input[[#This Row],[X]]="","", MIN(IF(ISNUMBER($O52:$O$999),$B52:$B$999,""))),"") ->  | R52: =IFERROR(IF(Input[[#This Row],[X]]="","", INDEX(Input[Y],MATCH(P52,Input[X],0))),"") ->  | S52: =IFERROR(IF(Input[[#This Row],[X]]="","", INDEX(Input[Y],MATCH(Q52,Input[X],0))),"") ->  | T52: =IFERROR(IF(Input[[#This Row],[X]]="","", IF(O52<>"",Input[[#This Row],[Y]], R52+(S52-R52)/(Q52-P52)*(Input[[#This Row],[X]]-P52) )),"") ->  | U52: =IFERROR(IF(Input[[#This Row],[X]]="","", (T52-Input[[#This Row],[Y]])^2),"") ->  | V52: =IFERROR(IF(Input[[#This Row],[X]]="","", (T52-Input[[#This Row],[Y]])),"") -> 
O53: =IFERROR(IF(Input[[#This Row],[X]]="","", MATCH(Input[[#This Row],[X]],Output[X],0)),"") ->  | P53: =IFERROR(IF(Input[[#This Row],[X]]="","", MAX(IF(ISNUMBER($O$8:$O53),$B$8:$B53,""))),"") ->  | Q53: =IFERROR(IF(Input[[#This Row],[X]]="","", MIN(IF(ISNUMBER($O53:$O$999),$B53:$B$999,""))),"") ->  | R53: =IFERROR(IF(Input[[#This Row],[X]]="","", INDEX(Input[Y],MATCH(P53,Input[X],0))),"") ->  | S53: =IFERROR(IF(Input[[#This Row],[X]]="","", INDEX(Input[Y],MATCH(Q53,Input[X],0))),"") ->  | T53: =IFERROR(IF(Input[[#This Row],[X]]="","", IF(O53<>"",Input[[#This Row],[Y]], R53+(S53-R53)/(Q53-P53)*(Input[[#This Row],[X]]-P53) )),"") ->  | U53: =IFERROR(IF(Input[[#This Row],[X]]="","", (T53-Input[[#This Row],[Y]])^2),"") ->  | V53: =IFERROR(IF(Input[[#This Row],[X]]="","", (T53-Input[[#This Row],[Y]])),"") -> 
O54: =IFERROR(IF(Input[[#This Row],[X]]="","", MATCH(Input[[#This Row],[X]],Output[X],0)),"") ->  | P54: =IFERROR(IF(Input[[#This Row],[X]]="","", MAX(IF(ISNUMBER($O$8:$O54),$B$8:$B54,""))),"") ->  | Q54: =IFERROR(IF(Input[[#This Row],[X]]="","", MIN(IF(ISNUMBER($O54:$O$999),$B54:$B$999,""))),"") ->  | R54: =IFERROR(IF(Input[[#This Row],[X]]="","", INDEX(Input[Y],MATCH(P54,Input[X],0))),"") ->  | S54: =IFERROR(IF(Input[[#This Row],[X]]="","", INDEX(Input[Y],MATCH(Q54,Input[X],0))),"") ->  | T54: =IFERROR(IF(Input[[#This Row],[X]]="","", IF(O54<>"",Input[[#This Row],[Y]], R54+(S54-R54)/(Q54-P54)*(Input[[#This Row],[X]]-P54) )),"") ->  | U54: =IFERROR(IF(Input[[#This Row],[X]]="","", (T54-Input[[#This Row],[Y]])^2),"") ->  | V54: =IFERROR(IF(Input[[#This Row],[X]]="","", (T54-Input[[#This Row],[Y]])),"") -> 
O55: =IFERROR(IF(Input[[#This Row],[X]]="","", MATCH(Input[[#This Row],[X]],Output[X],0)),"") ->  | P55: =IFERROR(IF(Input[[#This Row],[X]]="","", MAX(IF(ISNUMBER($O$8:$O55),$B$8:$B55,""))),"") ->  | Q55: =IFERROR(IF(Input[[#This Row],[X]]="","", MIN(IF(ISNUMBER($O55:$O$999),$B55:$B$999,""))),"") ->  | R55: =IFERROR(IF(Input[[#This Row],[X]]="","", INDEX(Input[Y],MATCH(P55,Input[X],0))),"") ->  | S55: =IFERROR(IF(Input[[#This Row],[X]]="","", INDEX(Input[Y],MATCH(Q55,Input[X],0))),"") ->  | T55: =IFERROR(IF(Input[[#This Row],[X]]="","", IF(O55<>"",Input[[#This Row],[Y]], R55+(S55-R55)/(Q55-P55)*(Input[[#This Row],[X]]-P55) )),"") ->  | U55: =IFERROR(IF(Input[[#This Row],[X]]="","", (T55-Input[[#This Row],[Y]])^2),"") ->  | V55: =IFERROR(IF(Input[[#This Row],[X]]="","", (T55-Input[[#This Row],[Y]])),"") -> 
O56: =IFERROR(IF(Input[[#This Row],[X]]="","", MATCH(Input[[#This Row],[X]],Output[X],0)),"") ->  | P56: =IFERROR(IF(Input[[#This Row],[X]]="","", MAX(IF(ISNUMBER($O$8:$O56),$B$8:$B56,""))),"") ->  | Q56: =IFERROR(IF(Input[[#This Row],[X]]="","", MIN(IF(ISNUMBER($O56:$O$999),$B56:$B$999,""))),"") ->  | R56: =IFERROR(IF(Input[[#This Row],[X]]="","", INDEX(Input[Y],MATCH(P56,Input[X],0))),"") ->  | S56: =IFERROR(IF(Input[[#This Row],[X]]="","", INDEX(Input[Y],MATCH(Q56,Input[X],0))),"") ->  | T56: =IFERROR(IF(Input[[#This Row],[X]]="","", IF(O56<>"",Input[[#This Row],[Y]], R56+(S56-R56)/(Q56-P56)*(Input[[#This Row],[X]]-P56) )),"") ->  | U56: =IFERROR(IF(Input[[#This Row],[X]]="","", (T56-Input[[#This Row],[Y]])^2),"") ->  | V56: =IFERROR(IF(Input[[#This Row],[X]]="","", (T56-Input[[#This Row],[Y]])),"") -> 
O57: =IFERROR(IF(Input[[#This Row],[X]]="","", MATCH(Input[[#This Row],[X]],Output[X],0)),"") ->  | P57: =IFERROR(IF(Input[[#This Row],[X]]="","", MAX(IF(ISNUMBER($O$8:$O57),$B$8:$B57,""))),"") ->  | Q57: =IFERROR(IF(Input[[#This Row],[X]]="","", MIN(IF(ISNUMBER($O57:$O$999),$B57:$B$999,""))),"") ->  | R57: =IFERROR(IF(Input[[#This Row],[X]]="","", INDEX(Input[Y],MATCH(P57,Input[X],0))),"") ->  | S57: =IFERROR(IF(Input[[#This Row],[X]]="","", INDEX(Input[Y],MATCH(Q57,Input[X],0))),"") ->  | T57: =IFERROR(IF(Input[[#This Row],[X]]="","", IF(O57<>"",Input[[#This Row],[Y]], R57+(S57-R57)/(Q57-P57)*(Input[[#This Row],[X]]-P57) )),"") ->  | U57: =IFERROR(IF(Input[[#This Row],[X]]="","", (T57-Input[[#This Row],[Y]])^2),"") ->  | V57: =IFERROR(IF(Input[[#This Row],[X]]="","", (T57-Input[[#This Row],[Y]])),"") -> 
O58: =IFERROR(IF(Input[[#This Row],[X]]="","", MATCH(Input[[#This Row],[X]],Output[X],0)),"") ->  | P58: =IFERROR(IF(Input[[#This Row],[X]]="","", MAX(IF(ISNUMBER($O$8:$O58),$B$8:$B58,""))),"") ->  | Q58: =IFERROR(IF(Input[[#This Row],[X]]="","", MIN(IF(ISNUMBER($O58:$O$999),$B58:$B$999,""))),"") ->  | R58: =IFERROR(IF(Input[[#This Row],[X]]="","", INDEX(Input[Y],MATCH(P58,Input[X],0))),"") ->  | S58: =IFERROR(IF(Input[[#This Row],[X]]="","", INDEX(Input[Y],MATCH(Q58,Input[X],0))),"") ->  | T58: =IFERROR(IF(Input[[#This Row],[X]]="","", IF(O58<>"",Input[[#This Row],[Y]], R58+(S58-R58)/(Q58-P58)*(Input[[#This Row],[X]]-P58) )),"") ->  | U58: =IFERROR(IF(Input[[#This Row],[X]]="","", (T58-Input[[#This Row],[Y]])^2),"") ->  | V58: =IFERROR(IF(Input[[#This Row],[X]]="","", (T58-Input[[#This Row],[Y]])),"") -> 
O59: =IFERROR(IF(Input[[#This Row],[X]]="","", MATCH(Input[[#This Row],[X]],Output[X],0)),"") ->  | P59: =IFERROR(IF(Input[[#This Row],[X]]="","", MAX(IF(ISNUMBER($O$8:$O59),$B$8:$B59,""))),"") ->  | Q59: =IFERROR(IF(Input[[#This Row],[X]]="","", MIN(IF(ISNUMBER($O59:$O$999),$B59:$B$999,""))),"") ->  | R59: =IFERROR(IF(Input[[#This Row],[X]]="","", INDEX(Input[Y],MATCH(P59,Input[X],0))),"") ->  | S59: =IFERROR(IF(Input[[#This Row],[X]]="","", INDEX(Input[Y],MATCH(Q59,Input[X],0))),"") ->  | T59: =IFERROR(IF(Input[[#This Row],[X]]="","", IF(O59<>"",Input[[#This Row],[Y]], R59+(S59-R59)/(Q59-P59)*(Input[[#This Row],[X]]-P59) )),"") ->  | U59: =IFERROR(IF(Input[[#This Row],[X]]="","", (T59-Input[[#This Row],[Y]])^2),"") ->  | V59: =IFERROR(IF(Input[[#This Row],[X]]="","", (T59-Input[[#This Row],[Y]])),"") -> 
O60: =IFERROR(IF(Input[[#This Row],[X]]="","", MATCH(Input[[#This Row],[X]],Output[X],0)),"") ->  | P60: =IFERROR(IF(Input[[#This Row],[X]]="","", MAX(IF(ISNUMBER($O$8:$O60),$B$8:$B60,""))),"") ->  | Q60: =IFERROR(IF(Input[[#This Row],[X]]="","", MIN(IF(ISNUMBER($O60:$O$999),$B60:$B$999,""))),"") ->  | R60: =IFERROR(IF(Input[[#This Row],[X]]="","", INDEX(Input[Y],MATCH(P60,Input[X],0))),"") ->  | S60: =IFERROR(IF(Input[[#This Row],[X]]="","", INDEX(Input[Y],MATCH(Q60,Input[X],0))),"") ->  | T60: =IFERROR(IF(Input[[#This Row],[X]]="","", IF(O60<>"",Input[[#This Row],[Y]], R60+(S60-R60)/(Q60-P60)*(Input[[#This Row],[X]]-P60) )),"") ->  | U60: =IFERROR(IF(Input[[#This Row],[X]]="","", (T60-Input[[#This Row],[Y]])^2),"") ->  | V60: =IFERROR(IF(Input[[#This Row],[X]]="","", (T60-Input[[#This Row],[Y]])),"") -> 
O61: =IFERROR(IF(Input[[#This Row],[X]]="","", MATCH(Input[[#This Row],[X]],Output[X],0)),"") ->  | P61: =IFERROR(IF(Input[[#This Row],[X]]="","", MAX(IF(ISNUMBER($O$8:$O61),$B$8:$B61,""))),"") ->  | Q61: =IFERROR(IF(Input[[#This Row],[X]]="","", MIN(IF(ISNUMBER($O61:$O$999),$B61:$B$999,""))),"") ->  | R61: =IFERROR(IF(Input[[#This Row],[X]]="","", INDEX(Input[Y],MATCH(P61,Input[X],0))),"") ->  | S61: =IFERROR(IF(Input[[#This Row],[X]]="","", INDEX(Input[Y],MATCH(Q61,Input[X],0))),"") ->  | T61: =IFERROR(IF(Input[[#This Row],[X]]="","", IF(O61<>"",Input[[#This Row],[Y]], R61+(S61-R61)/(Q61-P61)*(Input[[#This Row],[X]]-P61) )),"") ->  | U61: =IFERROR(IF(Input[[#This Row],[X]]="","", (T61-Input[[#This Row],[Y]])^2),"") ->  | V61: =IFERROR(IF(Input[[#This Row],[X]]="","", (T61-Input[[#This Row],[Y]])),"") -> 
O62: =IFERROR(IF(Input[[#This Row],[X]]="","", MATCH(Input[[#This Row],[X]],Output[X],0)),"") ->  | P62: =IFERROR(IF(Input[[#This Row],[X]]="","", MAX(IF(ISNUMBER($O$8:$O62),$B$8:$B62,""))),"") ->  | Q62: =IFERROR(IF(Input[[#This Row],[X]]="","", MIN(IF(ISNUMBER($O62:$O$999),$B62:$B$999,""))),"") ->  | R62: =IFERROR(IF(Input[[#This Row],[X]]="","", INDEX(Input[Y],MATCH(P62,Input[X],0))),"") ->  | S62: =IFERROR(IF(Input[[#This Row],[X]]="","", INDEX(Input[Y],MATCH(Q62,Input[X],0))),"") ->  | T62: =IFERROR(IF(Input[[#This Row],[X]]="","", IF(O62<>"",Input[[#This Row],[Y]], R62+(S62-R62)/(Q62-P62)*(Input[[#This Row],[X]]-P62) )),"") ->  | U62: =IFERROR(IF(Input[[#This Row],[X]]="","", (T62-Input[[#This Row],[Y]])^2),"") ->  | V62: =IFERROR(IF(Input[[#This Row],[X]]="","", (T62-Input[[#This Row],[Y]])),"") -> 
O63: =IFERROR(IF(Input[[#This Row],[X]]="","", MATCH(Input[[#This Row],[X]],Output[X],0)),"") ->  | P63: =IFERROR(IF(Input[[#This Row],[X]]="","", MAX(IF(ISNUMBER($O$8:$O63),$B$8:$B63,""))),"") ->  | Q63: =IFERROR(IF(Input[[#This Row],[X]]="","", MIN(IF(ISNUMBER($O63:$O$999),$B63:$B$999,""))),"") ->  | R63: =IFERROR(IF(Input[[#This Row],[X]]="","", INDEX(Input[Y],MATCH(P63,Input[X],0))),"") ->  | S63: =IFERROR(IF(Input[[#This Row],[X]]="","", INDEX(Input[Y],MATCH(Q63,Input[X],0))),"") ->  | T63: =IFERROR(IF(Input[[#This Row],[X]]="","", IF(O63<>"",Input[[#This Row],[Y]], R63+(S63-R63)/(Q63-P63)*(Input[[#This Row],[X]]-P63) )),"") ->  | U63: =IFERROR(IF(Input[[#This Row],[X]]="","", (T63-Input[[#This Row],[Y]])^2),"") ->  | V63: =IFERROR(IF(Input[[#This Row],[X]]="","", (T63-Input[[#This Row],[Y]])),"") -> 
O64: =IFERROR(IF(Input[[#This Row],[X]]="","", MATCH(Input[[#This Row],[X]],Output[X],0)),"") ->  | P64: =IFERROR(IF(Input[[#This Row],[X]]="","", MAX(IF(ISNUMBER($O$8:$O64),$B$8:$B64,""))),"") ->  | Q64: =IFERROR(IF(Input[[#This Row],[X]]="","", MIN(IF(ISNUMBER($O64:$O$999),$B64:$B$999,""))),"") ->  | R64: =IFERROR(IF(Input[[#This Row],[X]]="","", INDEX(Input[Y],MATCH(P64,Input[X],0))),"") ->  | S64: =IFERROR(IF(Input[[#This Row],[X]]="","", INDEX(Input[Y],MATCH(Q64,Input[X],0))),"") ->  | T64: =IFERROR(IF(Input[[#This Row],[X]]="","", IF(O64<>"",Input[[#This Row],[Y]], R64+(S64-R64)/(Q64-P64)*(Input[[#This Row],[X]]-P64) )),"") ->  | U64: =IFERROR(IF(Input[[#This Row],[X]]="","", (T64-Input[[#This Row],[Y]])^2),"") ->  | V64: =IFERROR(IF(Input[[#This Row],[X]]="","", (T64-Input[[#This Row],[Y]])),"") -> 
O65: =IFERROR(IF(Input[[#This Row],[X]]="","", MATCH(Input[[#This Row],[X]],Output[X],0)),"") ->  | P65: =IFERROR(IF(Input[[#This Row],[X]]="","", MAX(IF(ISNUMBER($O$8:$O65),$B$8:$B65,""))),"") ->  | Q65: =IFERROR(IF(Input[[#This Row],[X]]="","", MIN(IF(ISNUMBER($O65:$O$999),$B65:$B$999,""))),"") ->  | R65: =IFERROR(IF(Input[[#This Row],[X]]="","", INDEX(Input[Y],MATCH(P65,Input[X],0))),"") ->  | S65: =IFERROR(IF(Input[[#This Row],[X]]="","", INDEX(Input[Y],MATCH(Q65,Input[X],0))),"") ->  | T65: =IFERROR(IF(Input[[#This Row],[X]]="","", IF(O65<>"",Input[[#This Row],[Y]], R65+(S65-R65)/(Q65-P65)*(Input[[#This Row],[X]]-P65) )),"") ->  | U65: =IFERROR(IF(Input[[#This Row],[X]]="","", (T65-Input[[#This Row],[Y]])^2),"") ->  | V65: =IFERROR(IF(Input[[#This Row],[X]]="","", (T65-Input[[#This Row],[Y]])),"") -> 
O66: =IFERROR(IF(Input[[#This Row],[X]]="","", MATCH(Input[[#This Row],[X]],Output[X],0)),"") ->  | P66: =IFERROR(IF(Input[[#This Row],[X]]="","", MAX(IF(ISNUMBER($O$8:$O66),$B$8:$B66,""))),"") ->  | Q66: =IFERROR(IF(Input[[#This Row],[X]]="","", MIN(IF(ISNUMBER($O66:$O$999),$B66:$B$999,""))),"") ->  | R66: =IFERROR(IF(Input[[#This Row],[X]]="","", INDEX(Input[Y],MATCH(P66,Input[X],0))),"") ->  | S66: =IFERROR(IF(Input[[#This Row],[X]]="","", INDEX(Input[Y],MATCH(Q66,Input[X],0))),"") ->  | T66: =IFERROR(IF(Input[[#This Row],[X]]="","", IF(O66<>"",Input[[#This Row],[Y]], R66+(S66-R66)/(Q66-P66)*(Input[[#This Row],[X]]-P66) )),"") ->  | U66: =IFERROR(IF(Input[[#This Row],[X]]="","", (T66-Input[[#This Row],[Y]])^2),"") ->  | V66: =IFERROR(IF(Input[[#This Row],[X]]="","", (T66-Input[[#This Row],[Y]])),"") -> 
O67: =IFERROR(IF(Input[[#This Row],[X]]="","", MATCH(Input[[#This Row],[X]],Output[X],0)),"") ->  | P67: =IFERROR(IF(Input[[#This Row],[X]]="","", MAX(IF(ISNUMBER($O$8:$O67),$B$8:$B67,""))),"") ->  | Q67: =IFERROR(IF(Input[[#This Row],[X]]="","", MIN(IF(ISNUMBER($O67:$O$999),$B67:$B$999,""))),"") ->  | R67: =IFERROR(IF(Input[[#This Row],[X]]="","", INDEX(Input[Y],MATCH(P67,Input[X],0))),"") ->  | S67: =IFERROR(IF(Input[[#This Row],[X]]="","", INDEX(Input[Y],MATCH(Q67,Input[X],0))),"") ->  | T67: =IFERROR(IF(Input[[#This Row],[X]]="","", IF(O67<>"",Input[[#This Row],[Y]], R67+(S67-R67)/(Q67-P67)*(Input[[#This Row],[X]]-P67) )),"") ->  | U67: =IFERROR(IF(Input[[#This Row],[X]]="","", (T67-Input[[#This Row],[Y]])^2),"") ->  | V67: =IFERROR(IF(Input[[#This Row],[X]]="","", (T67-Input[[#This Row],[Y]])),"") -> 
O68: =IFERROR(IF(Input[[#This Row],[X]]="","", MATCH(Input[[#This Row],[X]],Output[X],0)),"") ->  | P68: =IFERROR(IF(Input[[#This Row],[X]]="","", MAX(IF(ISNUMBER($O$8:$O68),$B$8:$B68,""))),"") ->  | Q68: =IFERROR(IF(Input[[#This Row],[X]]="","", MIN(IF(ISNUMBER($O68:$O$999),$B68:$B$999,""))),"") ->  | R68: =IFERROR(IF(Input[[#This Row],[X]]="","", INDEX(Input[Y],MATCH(P68,Input[X],0))),"") ->  | S68: =IFERROR(IF(Input[[#This Row],[X]]="","", INDEX(Input[Y],MATCH(Q68,Input[X],0))),"") ->  | T68: =IFERROR(IF(Input[[#This Row],[X]]="","", IF(O68<>"",Input[[#This Row],[Y]], R68+(S68-R68)/(Q68-P68)*(Input[[#This Row],[X]]-P68) )),"") ->  | U68: =IFERROR(IF(Input[[#This Row],[X]]="","", (T68-Input[[#This Row],[Y]])^2),"") ->  | V68: =IFERROR(IF(Input[[#This Row],[X]]="","", (T68-Input[[#This Row],[Y]])),"") -> 
O69: =IFERROR(IF(Input[[#This Row],[X]]="","", MATCH(Input[[#This Row],[X]],Output[X],0)),"") ->  | P69: =IFERROR(IF(Input[[#This Row],[X]]="","", MAX(IF(ISNUMBER($O$8:$O69),$B$8:$B69,""))),"") ->  | Q69: =IFERROR(IF(Input[[#This Row],[X]]="","", MIN(IF(ISNUMBER($O69:$O$999),$B69:$B$999,""))),"") ->  | R69: =IFERROR(IF(Input[[#This Row],[X]]="","", INDEX(Input[Y],MATCH(P69,Input[X],0))),"") ->  | S69: =IFERROR(IF(Input[[#This Row],[X]]="","", INDEX(Input[Y],MATCH(Q69,Input[X],0))),"") ->  | T69: =IFERROR(IF(Input[[#This Row],[X]]="","", IF(O69<>"",Input[[#This Row],[Y]], R69+(S69-R69)/(Q69-P69)*(Input[[#This Row],[X]]-P69) )),"") ->  | U69: =IFERROR(IF(Input[[#This Row],[X]]="","", (T69-Input[[#This Row],[Y]])^2),"") ->  | V69: =IFERROR(IF(Input[[#This Row],[X]]="","", (T69-Input[[#This Row],[Y]])),"") -> 
O70: =IFERROR(IF(Input[[#This Row],[X]]="","", MATCH(Input[[#This Row],[X]],Output[X],0)),"") ->  | P70: =IFERROR(IF(Input[[#This Row],[X]]="","", MAX(IF(ISNUMBER($O$8:$O70),$B$8:$B70,""))),"") ->  | Q70: =IFERROR(IF(Input[[#This Row],[X]]="","", MIN(IF(ISNUMBER($O70:$O$999),$B70:$B$999,""))),"") ->  | R70: =IFERROR(IF(Input[[#This Row],[X]]="","", INDEX(Input[Y],MATCH(P70,Input[X],0))),"") ->  | S70: =IFERROR(IF(Input[[#This Row],[X]]="","", INDEX(Input[Y],MATCH(Q70,Input[X],0))),"") ->  | T70: =IFERROR(IF(Input[[#This Row],[X]]="","", IF(O70<>"",Input[[#This Row],[Y]], R70+(S70-R70)/(Q70-P70)*(Input[[#This Row],[X]]-P70) )),"") ->  | U70: =IFERROR(IF(Input[[#This Row],[X]]="","", (T70-Input[[#This Row],[Y]])^2),"") ->  | V70: =IFERROR(IF(Input[[#This Row],[X]]="","", (T70-Input[[#This Row],[Y]])),"") -> 
O71: =IFERROR(IF(Input[[#This Row],[X]]="","", MATCH(Input[[#This Row],[X]],Output[X],0)),"") ->  | P71: =IFERROR(IF(Input[[#This Row],[X]]="","", MAX(IF(ISNUMBER($O$8:$O71),$B$8:$B71,""))),"") ->  | Q71: =IFERROR(IF(Input[[#This Row],[X]]="","", MIN(IF(ISNUMBER($O71:$O$999),$B71:$B$999,""))),"") ->  | R71: =IFERROR(IF(Input[[#This Row],[X]]="","", INDEX(Input[Y],MATCH(P71,Input[X],0))),"") ->  | S71: =IFERROR(IF(Input[[#This Row],[X]]="","", INDEX(Input[Y],MATCH(Q71,Input[X],0))),"") ->  | T71: =IFERROR(IF(Input[[#This Row],[X]]="","", IF(O71<>"",Input[[#This Row],[Y]], R71+(S71-R71)/(Q71-P71)*(Input[[#This Row],[X]]-P71) )),"") ->  | U71: =IFERROR(IF(Input[[#This Row],[X]]="","", (T71-Input[[#This Row],[Y]])^2),"") ->  | V71: =IFERROR(IF(Input[[#This Row],[X]]="","", (T71-Input[[#This Row],[Y]])),"") -> 
O72: =IFERROR(IF(Input[[#This Row],[X]]="","", MATCH(Input[[#This Row],[X]],Output[X],0)),"") ->  | P72: =IFERROR(IF(Input[[#This Row],[X]]="","", MAX(IF(ISNUMBER($O$8:$O72),$B$8:$B72,""))),"") ->  | Q72: =IFERROR(IF(Input[[#This Row],[X]]="","", MIN(IF(ISNUMBER($O72:$O$999),$B72:$B$999,""))),"") ->  | R72: =IFERROR(IF(Input[[#This Row],[X]]="","", INDEX(Input[Y],MATCH(P72,Input[X],0))),"") ->  | S72: =IFERROR(IF(Input[[#This Row],[X]]="","", INDEX(Input[Y],MATCH(Q72,Input[X],0))),"") ->  | T72: =IFERROR(IF(Input[[#This Row],[X]]="","", IF(O72<>"",Input[[#This Row],[Y]], R72+(S72-R72)/(Q72-P72)*(Input[[#This Row],[X]]-P72) )),"") ->  | U72: =IFERROR(IF(Input[[#This Row],[X]]="","", (T72-Input[[#This Row],[Y]])^2),"") ->  | V72: =IFERROR(IF(Input[[#This Row],[X]]="","", (T72-Input[[#This Row],[Y]])),"") -> 
O73: =IFERROR(IF(Input[[#This Row],[X]]="","", MATCH(Input[[#This Row],[X]],Output[X],0)),"") ->  | P73: =IFERROR(IF(Input[[#This Row],[X]]="","", MAX(IF(ISNUMBER($O$8:$O73),$B$8:$B73,""))),"") ->  | Q73: =IFERROR(IF(Input[[#This Row],[X]]="","", MIN(IF(ISNUMBER($O73:$O$999),$B73:$B$999,""))),"") ->  | R73: =IFERROR(IF(Input[[#This Row],[X]]="","", INDEX(Input[Y],MATCH(P73,Input[X],0))),"") ->  | S73: =IFERROR(IF(Input[[#This Row],[X]]="","", INDEX(Input[Y],MATCH(Q73,Input[X],0))),"") ->  | T73: =IFERROR(IF(Input[[#This Row],[X]]="","", IF(O73<>"",Input[[#This Row],[Y]], R73+(S73-R73)/(Q73-P73)*(Input[[#This Row],[X]]-P73) )),"") ->  | U73: =IFERROR(IF(Input[[#This Row],[X]]="","", (T73-Input[[#This Row],[Y]])^2),"") ->  | V73: =IFERROR(IF(Input[[#This Row],[X]]="","", (T73-Input[[#This Row],[Y]])),"") -> 
O74: =IFERROR(IF(Input[[#This Row],[X]]="","", MATCH(Input[[#This Row],[X]],Output[X],0)),"") ->  | P74: =IFERROR(IF(Input[[#This Row],[X]]="","", MAX(IF(ISNUMBER($O$8:$O74),$B$8:$B74,""))),"") ->  | Q74: =IFERROR(IF(Input[[#This Row],[X]]="","", MIN(IF(ISNUMBER($O74:$O$999),$B74:$B$999,""))),"") ->  | R74: =IFERROR(IF(Input[[#This Row],[X]]="","", INDEX(Input[Y],MATCH(P74,Input[X],0))),"") ->  | S74: =IFERROR(IF(Input[[#This Row],[X]]="","", INDEX(Input[Y],MATCH(Q74,Input[X],0))),"") ->  | T74: =IFERROR(IF(Input[[#This Row],[X]]="","", IF(O74<>"",Input[[#This Row],[Y]], R74+(S74-R74)/(Q74-P74)*(Input[[#This Row],[X]]-P74) )),"") ->  | U74: =IFERROR(IF(Input[[#This Row],[X]]="","", (T74-Input[[#This Row],[Y]])^2),"") ->  | V74: =IFERROR(IF(Input[[#This Row],[X]]="","", (T74-Input[[#This Row],[Y]])),"") -> 
O75: =IFERROR(IF(Input[[#This Row],[X]]="","", MATCH(Input[[#This Row],[X]],Output[X],0)),"") ->  | P75: =IFERROR(IF(Input[[#This Row],[X]]="","", MAX(IF(ISNUMBER($O$8:$O75),$B$8:$B75,""))),"") ->  | Q75: =IFERROR(IF(Input[[#This Row],[X]]="","", MIN(IF(ISNUMBER($O75:$O$999),$B75:$B$999,""))),"") ->  | R75: =IFERROR(IF(Input[[#This Row],[X]]="","", INDEX(Input[Y],MATCH(P75,Input[X],0))),"") ->  | S75: =IFERROR(IF(Input[[#This Row],[X]]="","", INDEX(Input[Y],MATCH(Q75,Input[X],0))),"") ->  | T75: =IFERROR(IF(Input[[#This Row],[X]]="","", IF(O75<>"",Input[[#This Row],[Y]], R75+(S75-R75)/(Q75-P75)*(Input[[#This Row],[X]]-P75) )),"") ->  | U75: =IFERROR(IF(Input[[#This Row],[X]]="","", (T75-Input[[#This Row],[Y]])^2),"") ->  | V75: =IFERROR(IF(Input[[#This Row],[X]]="","", (T75-Input[[#This Row],[Y]])),"") -> 
O76: =IFERROR(IF(Input[[#This Row],[X]]="","", MATCH(Input[[#This Row],[X]],Output[X],0)),"") ->  | P76: =IFERROR(IF(Input[[#This Row],[X]]="","", MAX(IF(ISNUMBER($O$8:$O76),$B$8:$B76,""))),"") ->  | Q76: =IFERROR(IF(Input[[#This Row],[X]]="","", MIN(IF(ISNUMBER($O76:$O$999),$B76:$B$999,""))),"") ->  | R76: =IFERROR(IF(Input[[#This Row],[X]]="","", INDEX(Input[Y],MATCH(P76,Input[X],0))),"") ->  | S76: =IFERROR(IF(Input[[#This Row],[X]]="","", INDEX(Input[Y],MATCH(Q76,Input[X],0))),"") ->  | T76: =IFERROR(IF(Input[[#This Row],[X]]="","", IF(O76<>"",Input[[#This Row],[Y]], R76+(S76-R76)/(Q76-P76)*(Input[[#This Row],[X]]-P76) )),"") ->  | U76: =IFERROR(IF(Input[[#This Row],[X]]="","", (T76-Input[[#This Row],[Y]])^2),"") ->  | V76: =IFERROR(IF(Input[[#This Row],[X]]="","", (T76-Input[[#This Row],[Y]])),"") -> 
O77: =IFERROR(IF(Input[[#This Row],[X]]="","", MATCH(Input[[#This Row],[X]],Output[X],0)),"") ->  | P77: =IFERROR(IF(Input[[#This Row],[X]]="","", MAX(IF(ISNUMBER($O$8:$O77),$B$8:$B77,""))),"") ->  | Q77: =IFERROR(IF(Input[[#This Row],[X]]="","", MIN(IF(ISNUMBER($O77:$O$999),$B77:$B$999,""))),"") ->  | R77: =IFERROR(IF(Input[[#This Row],[X]]="","", INDEX(Input[Y],MATCH(P77,Input[X],0))),"") ->  | S77: =IFERROR(IF(Input[[#This Row],[X]]="","", INDEX(Input[Y],MATCH(Q77,Input[X],0))),"") ->  | T77: =IFERROR(IF(Input[[#This Row],[X]]="","", IF(O77<>"",Input[[#This Row],[Y]], R77+(S77-R77)/(Q77-P77)*(Input[[#This Row],[X]]-P77) )),"") ->  | U77: =IFERROR(IF(Input[[#This Row],[X]]="","", (T77-Input[[#This Row],[Y]])^2),"") ->  | V77: =IFERROR(IF(Input[[#This Row],[X]]="","", (T77-Input[[#This Row],[Y]])),"") -> 
O78: =IFERROR(IF(Input[[#This Row],[X]]="","", MATCH(Input[[#This Row],[X]],Output[X],0)),"") ->  | P78: =IFERROR(IF(Input[[#This Row],[X]]="","", MAX(IF(ISNUMBER($O$8:$O78),$B$8:$B78,""))),"") ->  | Q78: =IFERROR(IF(Input[[#This Row],[X]]="","", MIN(IF(ISNUMBER($O78:$O$999),$B78:$B$999,""))),"") ->  | R78: =IFERROR(IF(Input[[#This Row],[X]]="","", INDEX(Input[Y],MATCH(P78,Input[X],0))),"") ->  | S78: =IFERROR(IF(Input[[#This Row],[X]]="","", INDEX(Input[Y],MATCH(Q78,Input[X],0))),"") ->  | T78: =IFERROR(IF(Input[[#This Row],[X]]="","", IF(O78<>"",Input[[#This Row],[Y]], R78+(S78-R78)/(Q78-P78)*(Input[[#This Row],[X]]-P78) )),"") ->  | U78: =IFERROR(IF(Input[[#This Row],[X]]="","", (T78-Input[[#This Row],[Y]])^2),"") ->  | V78: =IFERROR(IF(Input[[#This Row],[X]]="","", (T78-Input[[#This Row],[Y]])),"") -> 
O79: =IFERROR(IF(Input[[#This Row],[X]]="","", MATCH(Input[[#This Row],[X]],Output[X],0)),"") ->  | P79: =IFERROR(IF(Input[[#This Row],[X]]="","", MAX(IF(ISNUMBER($O$8:$O79),$B$8:$B79,""))),"") ->  | Q79: =IFERROR(IF(Input[[#This Row],[X]]="","", MIN(IF(ISNUMBER($O79:$O$999),$B79:$B$999,""))),"") ->  | R79: =IFERROR(IF(Input[[#This Row],[X]]="","", INDEX(Input[Y],MATCH(P79,Input[X],0))),"") ->  | S79: =IFERROR(IF(Input[[#This Row],[X]]="","", INDEX(Input[Y],MATCH(Q79,Input[X],0))),"") ->  | T79: =IFERROR(IF(Input[[#This Row],[X]]="","", IF(O79<>"",Input[[#This Row],[Y]], R79+(S79-R79)/(Q79-P79)*(Input[[#This Row],[X]]-P79) )),"") ->  | U79: =IFERROR(IF(Input[[#This Row],[X]]="","", (T79-Input[[#This Row],[Y]])^2),"") ->  | V79: =IFERROR(IF(Input[[#This Row],[X]]="","", (T79-Input[[#This Row],[Y]])),"") -> 
O80: =IFERROR(IF(Input[[#This Row],[X]]="","", MATCH(Input[[#This Row],[X]],Output[X],0)),"") ->  | P80: =IFERROR(IF(Input[[#This Row],[X]]="","", MAX(IF(ISNUMBER($O$8:$O80),$B$8:$B80,""))),"") ->  | Q80: =IFERROR(IF(Input[[#This Row],[X]]="","", MIN(IF(ISNUMBER($O80:$O$999),$B80:$B$999,""))),"") ->  | R80: =IFERROR(IF(Input[[#This Row],[X]]="","", INDEX(Input[Y],MATCH(P80,Input[X],0))),"") ->  | S80: =IFERROR(IF(Input[[#This Row],[X]]="","", INDEX(Input[Y],MATCH(Q80,Input[X],0))),"") ->  | T80: =IFERROR(IF(Input[[#This Row],[X]]="","", IF(O80<>"",Input[[#This Row],[Y]], R80+(S80-R80)/(Q80-P80)*(Input[[#This Row],[X]]-P80) )),"") ->  | U80: =IFERROR(IF(Input[[#This Row],[X]]="","", (T80-Input[[#This Row],[Y]])^2),"") ->  | V80: =IFERROR(IF(Input[[#This Row],[X]]="","", (T80-Input[[#This Row],[Y]])),"") -> 
O81: =IFERROR(IF(Input[[#This Row],[X]]="","", MATCH(Input[[#This Row],[X]],Output[X],0)),"") ->  | P81: =IFERROR(IF(Input[[#This Row],[X]]="","", MAX(IF(ISNUMBER($O$8:$O81),$B$8:$B81,""))),"") ->  | Q81: =IFERROR(IF(Input[[#This Row],[X]]="","", MIN(IF(ISNUMBER($O81:$O$999),$B81:$B$999,""))),"") ->  | R81: =IFERROR(IF(Input[[#This Row],[X]]="","", INDEX(Input[Y],MATCH(P81,Input[X],0))),"") ->  | S81: =IFERROR(IF(Input[[#This Row],[X]]="","", INDEX(Input[Y],MATCH(Q81,Input[X],0))),"") ->  | T81: =IFERROR(IF(Input[[#This Row],[X]]="","", IF(O81<>"",Input[[#This Row],[Y]], R81+(S81-R81)/(Q81-P81)*(Input[[#This Row],[X]]-P81) )),"") ->  | U81: =IFERROR(IF(Input[[#This Row],[X]]="","", (T81-Input[[#This Row],[Y]])^2),"") ->  | V81: =IFERROR(IF(Input[[#This Row],[X]]="","", (T81-Input[[#This Row],[Y]])),"") -> 
O82: =IFERROR(IF(Input[[#This Row],[X]]="","", MATCH(Input[[#This Row],[X]],Output[X],0)),"") ->  | P82: =IFERROR(IF(Input[[#This Row],[X]]="","", MAX(IF(ISNUMBER($O$8:$O82),$B$8:$B82,""))),"") ->  | Q82: =IFERROR(IF(Input[[#This Row],[X]]="","", MIN(IF(ISNUMBER($O82:$O$999),$B82:$B$999,""))),"") ->  | R82: =IFERROR(IF(Input[[#This Row],[X]]="","", INDEX(Input[Y],MATCH(P82,Input[X],0))),"") ->  | S82: =IFERROR(IF(Input[[#This Row],[X]]="","", INDEX(Input[Y],MATCH(Q82,Input[X],0))),"") ->  | T82: =IFERROR(IF(Input[[#This Row],[X]]="","", IF(O82<>"",Input[[#This Row],[Y]], R82+(S82-R82)/(Q82-P82)*(Input[[#This Row],[X]]-P82) )),"") ->  | U82: =IFERROR(IF(Input[[#This Row],[X]]="","", (T82-Input[[#This Row],[Y]])^2),"") ->  | V82: =IFERROR(IF(Input[[#This Row],[X]]="","", (T82-Input[[#This Row],[Y]])),"") -> 
O83: =IFERROR(IF(Input[[#This Row],[X]]="","", MATCH(Input[[#This Row],[X]],Output[X],0)),"") ->  | P83: =IFERROR(IF(Input[[#This Row],[X]]="","", MAX(IF(ISNUMBER($O$8:$O83),$B$8:$B83,""))),"") ->  | Q83: =IFERROR(IF(Input[[#This Row],[X]]="","", MIN(IF(ISNUMBER($O83:$O$999),$B83:$B$999,""))),"") ->  | R83: =IFERROR(IF(Input[[#This Row],[X]]="","", INDEX(Input[Y],MATCH(P83,Input[X],0))),"") ->  | S83: =IFERROR(IF(Input[[#This Row],[X]]="","", INDEX(Input[Y],MATCH(Q83,Input[X],0))),"") ->  | T83: =IFERROR(IF(Input[[#This Row],[X]]="","", IF(O83<>"",Input[[#This Row],[Y]], R83+(S83-R83)/(Q83-P83)*(Input[[#This Row],[X]]-P83) )),"") ->  | U83: =IFERROR(IF(Input[[#This Row],[X]]="","", (T83-Input[[#This Row],[Y]])^2),"") ->  | V83: =IFERROR(IF(Input[[#This Row],[X]]="","", (T83-Input[[#This Row],[Y]])),"") -> 
O84: =IFERROR(IF(Input[[#This Row],[X]]="","", MATCH(Input[[#This Row],[X]],Output[X],0)),"") ->  | P84: =IFERROR(IF(Input[[#This Row],[X]]="","", MAX(IF(ISNUMBER($O$8:$O84),$B$8:$B84,""))),"") ->  | Q84: =IFERROR(IF(Input[[#This Row],[X]]="","", MIN(IF(ISNUMBER($O84:$O$999),$B84:$B$999,""))),"") ->  | R84: =IFERROR(IF(Input[[#This Row],[X]]="","", INDEX(Input[Y],MATCH(P84,Input[X],0))),"") ->  | S84: =IFERROR(IF(Input[[#This Row],[X]]="","", INDEX(Input[Y],MATCH(Q84,Input[X],0))),"") ->  | T84: =IFERROR(IF(Input[[#This Row],[X]]="","", IF(O84<>"",Input[[#This Row],[Y]], R84+(S84-R84)/(Q84-P84)*(Input[[#This Row],[X]]-P84) )),"") ->  | U84: =IFERROR(IF(Input[[#This Row],[X]]="","", (T84-Input[[#This Row],[Y]])^2),"") ->  | V84: =IFERROR(IF(Input[[#This Row],[X]]="","", (T84-Input[[#This Row],[Y]])),"") -> 
O85: =IFERROR(IF(Input[[#This Row],[X]]="","", MATCH(Input[[#This Row],[X]],Output[X],0)),"") ->  | P85: =IFERROR(IF(Input[[#This Row],[X]]="","", MAX(IF(ISNUMBER($O$8:$O85),$B$8:$B85,""))),"") ->  | Q85: =IFERROR(IF(Input[[#This Row],[X]]="","", MIN(IF(ISNUMBER($O85:$O$999),$B85:$B$999,""))),"") ->  | R85: =IFERROR(IF(Input[[#This Row],[X]]="","", INDEX(Input[Y],MATCH(P85,Input[X],0))),"") ->  | S85: =IFERROR(IF(Input[[#This Row],[X]]="","", INDEX(Input[Y],MATCH(Q85,Input[X],0))),"") ->  | T85: =IFERROR(IF(Input[[#This Row],[X]]="","", IF(O85<>"",Input[[#This Row],[Y]], R85+(S85-R85)/(Q85-P85)*(Input[[#This Row],[X]]-P85) )),"") ->  | U85: =IFERROR(IF(Input[[#This Row],[X]]="","", (T85-Input[[#This Row],[Y]])^2),"") ->  | V85: =IFERROR(IF(Input[[#This Row],[X]]="","", (T85-Input[[#This Row],[Y]])),"") -> 
O86: =IFERROR(IF(Input[[#This Row],[X]]="","", MATCH(Input[[#This Row],[X]],Output[X],0)),"") ->  | P86: =IFERROR(IF(Input[[#This Row],[X]]="","", MAX(IF(ISNUMBER($O$8:$O86),$B$8:$B86,""))),"") ->  | Q86: =IFERROR(IF(Input[[#This Row],[X]]="","", MIN(IF(ISNUMBER($O86:$O$999),$B86:$B$999,""))),"") ->  | R86: =IFERROR(IF(Input[[#This Row],[X]]="","", INDEX(Input[Y],MATCH(P86,Input[X],0))),"") ->  | S86: =IFERROR(IF(Input[[#This Row],[X]]="","", INDEX(Input[Y],MATCH(Q86,Input[X],0))),"") ->  | T86: =IFERROR(IF(Input[[#This Row],[X]]="","", IF(O86<>"",Input[[#This Row],[Y]], R86+(S86-R86)/(Q86-P86)*(Input[[#This Row],[X]]-P86) )),"") ->  | U86: =IFERROR(IF(Input[[#This Row],[X]]="","", (T86-Input[[#This Row],[Y]])^2),"") ->  | V86: =IFERROR(IF(Input[[#This Row],[X]]="","", (T86-Input[[#This Row],[Y]])),"") -> 
O87: =IFERROR(IF(Input[[#This Row],[X]]="","", MATCH(Input[[#This Row],[X]],Output[X],0)),"") ->  | P87: =IFERROR(IF(Input[[#This Row],[X]]="","", MAX(IF(ISNUMBER($O$8:$O87),$B$8:$B87,""))),"") ->  | Q87: =IFERROR(IF(Input[[#This Row],[X]]="","", MIN(IF(ISNUMBER($O87:$O$999),$B87:$B$999,""))),"") ->  | R87: =IFERROR(IF(Input[[#This Row],[X]]="","", INDEX(Input[Y],MATCH(P87,Input[X],0))),"") ->  | S87: =IFERROR(IF(Input[[#This Row],[X]]="","", INDEX(Input[Y],MATCH(Q87,Input[X],0))),"") ->  | T87: =IFERROR(IF(Input[[#This Row],[X]]="","", IF(O87<>"",Input[[#This Row],[Y]], R87+(S87-R87)/(Q87-P87)*(Input[[#This Row],[X]]-P87) )),"") ->  | U87: =IFERROR(IF(Input[[#This Row],[X]]="","", (T87-Input[[#This Row],[Y]])^2),"") ->  | V87: =IFERROR(IF(Input[[#This Row],[X]]="","", (T87-Input[[#This Row],[Y]])),"") -> 
O88: =IFERROR(IF(Input[[#This Row],[X]]="","", MATCH(Input[[#This Row],[X]],Output[X],0)),"") ->  | P88: =IFERROR(IF(Input[[#This Row],[X]]="","", MAX(IF(ISNUMBER($O$8:$O88),$B$8:$B88,""))),"") ->  | Q88: =IFERROR(IF(Input[[#This Row],[X]]="","", MIN(IF(ISNUMBER($O88:$O$999),$B88:$B$999,""))),"") ->  | R88: =IFERROR(IF(Input[[#This Row],[X]]="","", INDEX(Input[Y],MATCH(P88,Input[X],0))),"") ->  | S88: =IFERROR(IF(Input[[#This Row],[X]]="","", INDEX(Input[Y],MATCH(Q88,Input[X],0))),"") ->  | T88: =IFERROR(IF(Input[[#This Row],[X]]="","", IF(O88<>"",Input[[#This Row],[Y]], R88+(S88-R88)/(Q88-P88)*(Input[[#This Row],[X]]-P88) )),"") ->  | U88: =IFERROR(IF(Input[[#This Row],[X]]="","", (T88-Input[[#This Row],[Y]])^2),"") ->  | V88: =IFERROR(IF(Input[[#This Row],[X]]="","", (T88-Input[[#This Row],[Y]])),"") -> 
O89: =IFERROR(IF(Input[[#This Row],[X]]="","", MATCH(Input[[#This Row],[X]],Output[X],0)),"") ->  | P89: =IFERROR(IF(Input[[#This Row],[X]]="","", MAX(IF(ISNUMBER($O$8:$O89),$B$8:$B89,""))),"") ->  | Q89: =IFERROR(IF(Input[[#This Row],[X]]="","", MIN(IF(ISNUMBER($O89:$O$999),$B89:$B$999,""))),"") ->  | R89: =IFERROR(IF(Input[[#This Row],[X]]="","", INDEX(Input[Y],MATCH(P89,Input[X],0))),"") ->  | S89: =IFERROR(IF(Input[[#This Row],[X]]="","", INDEX(Input[Y],MATCH(Q89,Input[X],0))),"") ->  | T89: =IFERROR(IF(Input[[#This Row],[X]]="","", IF(O89<>"",Input[[#This Row],[Y]], R89+(S89-R89)/(Q89-P89)*(Input[[#This Row],[X]]-P89) )),"") ->  | U89: =IFERROR(IF(Input[[#This Row],[X]]="","", (T89-Input[[#This Row],[Y]])^2),"") ->  | V89: =IFERROR(IF(Input[[#This Row],[X]]="","", (T89-Input[[#This Row],[Y]])),"") -> 
O90: =IFERROR(IF(Input[[#This Row],[X]]="","", MATCH(Input[[#This Row],[X]],Output[X],0)),"") ->  | P90: =IFERROR(IF(Input[[#This Row],[X]]="","", MAX(IF(ISNUMBER($O$8:$O90),$B$8:$B90,""))),"") ->  | Q90: =IFERROR(IF(Input[[#This Row],[X]]="","", MIN(IF(ISNUMBER($O90:$O$999),$B90:$B$999,""))),"") ->  | R90: =IFERROR(IF(Input[[#This Row],[X]]="","", INDEX(Input[Y],MATCH(P90,Input[X],0))),"") ->  | S90: =IFERROR(IF(Input[[#This Row],[X]]="","", INDEX(Input[Y],MATCH(Q90,Input[X],0))),"") ->  | T90: =IFERROR(IF(Input[[#This Row],[X]]="","", IF(O90<>"",Input[[#This Row],[Y]], R90+(S90-R90)/(Q90-P90)*(Input[[#This Row],[X]]-P90) )),"") ->  | U90: =IFERROR(IF(Input[[#This Row],[X]]="","", (T90-Input[[#This Row],[Y]])^2),"") ->  | V90: =IFERROR(IF(Input[[#This Row],[X]]="","", (T90-Input[[#This Row],[Y]])),"") -> 
O91: =IFERROR(IF(Input[[#This Row],[X]]="","", MATCH(Input[[#This Row],[X]],Output[X],0)),"") ->  | P91: =IFERROR(IF(Input[[#This Row],[X]]="","", MAX(IF(ISNUMBER($O$8:$O91),$B$8:$B91,""))),"") ->  | Q91: =IFERROR(IF(Input[[#This Row],[X]]="","", MIN(IF(ISNUMBER($O91:$O$999),$B91:$B$999,""))),"") ->  | R91: =IFERROR(IF(Input[[#This Row],[X]]="","", INDEX(Input[Y],MATCH(P91,Input[X],0))),"") ->  | S91: =IFERROR(IF(Input[[#This Row],[X]]="","", INDEX(Input[Y],MATCH(Q91,Input[X],0))),"") ->  | T91: =IFERROR(IF(Input[[#This Row],[X]]="","", IF(O91<>"",Input[[#This Row],[Y]], R91+(S91-R91)/(Q91-P91)*(Input[[#This Row],[X]]-P91) )),"") ->  | U91: =IFERROR(IF(Input[[#This Row],[X]]="","", (T91-Input[[#This Row],[Y]])^2),"") ->  | V91: =IFERROR(IF(Input[[#This Row],[X]]="","", (T91-Input[[#This Row],[Y]])),"") -> 
O92: =IFERROR(IF(Input[[#This Row],[X]]="","", MATCH(Input[[#This Row],[X]],Output[X],0)),"") ->  | P92: =IFERROR(IF(Input[[#This Row],[X]]="","", MAX(IF(ISNUMBER($O$8:$O92),$B$8:$B92,""))),"") ->  | Q92: =IFERROR(IF(Input[[#This Row],[X]]="","", MIN(IF(ISNUMBER($O92:$O$999),$B92:$B$999,""))),"") ->  | R92: =IFERROR(IF(Input[[#This Row],[X]]="","", INDEX(Input[Y],MATCH(P92,Input[X],0))),"") ->  | S92: =IFERROR(IF(Input[[#This Row],[X]]="","", INDEX(Input[Y],MATCH(Q92,Input[X],0))),"") ->  | T92: =IFERROR(IF(Input[[#This Row],[X]]="","", IF(O92<>"",Input[[#This Row],[Y]], R92+(S92-R92)/(Q92-P92)*(Input[[#This Row],[X]]-P92) )),"") ->  | U92: =IFERROR(IF(Input[[#This Row],[X]]="","", (T92-Input[[#This Row],[Y]])^2),"") ->  | V92: =IFERROR(IF(Input[[#This Row],[X]]="","", (T92-Input[[#This Row],[Y]])),"") -> 
O93: =IFERROR(IF(Input[[#This Row],[X]]="","", MATCH(Input[[#This Row],[X]],Output[X],0)),"") ->  | P93: =IFERROR(IF(Input[[#This Row],[X]]="","", MAX(IF(ISNUMBER($O$8:$O93),$B$8:$B93,""))),"") ->  | Q93: =IFERROR(IF(Input[[#This Row],[X]]="","", MIN(IF(ISNUMBER($O93:$O$999),$B93:$B$999,""))),"") ->  | R93: =IFERROR(IF(Input[[#This Row],[X]]="","", INDEX(Input[Y],MATCH(P93,Input[X],0))),"") ->  | S93: =IFERROR(IF(Input[[#This Row],[X]]="","", INDEX(Input[Y],MATCH(Q93,Input[X],0))),"") ->  | T93: =IFERROR(IF(Input[[#This Row],[X]]="","", IF(O93<>"",Input[[#This Row],[Y]], R93+(S93-R93)/(Q93-P93)*(Input[[#This Row],[X]]-P93) )),"") ->  | U93: =IFERROR(IF(Input[[#This Row],[X]]="","", (T93-Input[[#This Row],[Y]])^2),"") ->  | V93: =IFERROR(IF(Input[[#This Row],[X]]="","", (T93-Input[[#This Row],[Y]])),"") -> 
O94: =IFERROR(IF(Input[[#This Row],[X]]="","", MATCH(Input[[#This Row],[X]],Output[X],0)),"") ->  | P94: =IFERROR(IF(Input[[#This Row],[X]]="","", MAX(IF(ISNUMBER($O$8:$O94),$B$8:$B94,""))),"") ->  | Q94: =IFERROR(IF(Input[[#This Row],[X]]="","", MIN(IF(ISNUMBER($O94:$O$999),$B94:$B$999,""))),"") ->  | R94: =IFERROR(IF(Input[[#This Row],[X]]="","", INDEX(Input[Y],MATCH(P94,Input[X],0))),"") ->  | S94: =IFERROR(IF(Input[[#This Row],[X]]="","", INDEX(Input[Y],MATCH(Q94,Input[X],0))),"") ->  | T94: =IFERROR(IF(Input[[#This Row],[X]]="","", IF(O94<>"",Input[[#This Row],[Y]], R94+(S94-R94)/(Q94-P94)*(Input[[#This Row],[X]]-P94) )),"") ->  | U94: =IFERROR(IF(Input[[#This Row],[X]]="","", (T94-Input[[#This Row],[Y]])^2),"") ->  | V94: =IFERROR(IF(Input[[#This Row],[X]]="","", (T94-Input[[#This Row],[Y]])),"") -> 
O95: =IFERROR(IF(Input[[#This Row],[X]]="","", MATCH(Input[[#This Row],[X]],Output[X],0)),"") ->  | P95: =IFERROR(IF(Input[[#This Row],[X]]="","", MAX(IF(ISNUMBER($O$8:$O95),$B$8:$B95,""))),"") ->  | Q95: =IFERROR(IF(Input[[#This Row],[X]]="","", MIN(IF(ISNUMBER($O95:$O$999),$B95:$B$999,""))),"") ->  | R95: =IFERROR(IF(Input[[#This Row],[X]]="","", INDEX(Input[Y],MATCH(P95,Input[X],0))),"") ->  | S95: =IFERROR(IF(Input[[#This Row],[X]]="","", INDEX(Input[Y],MATCH(Q95,Input[X],0))),"") ->  | T95: =IFERROR(IF(Input[[#This Row],[X]]="","", IF(O95<>"",Input[[#This Row],[Y]], R95+(S95-R95)/(Q95-P95)*(Input[[#This Row],[X]]-P95) )),"") ->  | U95: =IFERROR(IF(Input[[#This Row],[X]]="","", (T95-Input[[#This Row],[Y]])^2),"") ->  | V95: =IFERROR(IF(Input[[#This Row],[X]]="","", (T95-Input[[#This Row],[Y]])),"") -> 
O96: =IFERROR(IF(Input[[#This Row],[X]]="","", MATCH(Input[[#This Row],[X]],Output[X],0)),"") ->  | P96: =IFERROR(IF(Input[[#This Row],[X]]="","", MAX(IF(ISNUMBER($O$8:$O96),$B$8:$B96,""))),"") ->  | Q96: =IFERROR(IF(Input[[#This Row],[X]]="","", MIN(IF(ISNUMBER($O96:$O$999),$B96:$B$999,""))),"") ->  | R96: =IFERROR(IF(Input[[#This Row],[X]]="","", INDEX(Input[Y],MATCH(P96,Input[X],0))),"") ->  | S96: =IFERROR(IF(Input[[#This Row],[X]]="","", INDEX(Input[Y],MATCH(Q96,Input[X],0))),"") ->  | T96: =IFERROR(IF(Input[[#This Row],[X]]="","", IF(O96<>"",Input[[#This Row],[Y]], R96+(S96-R96)/(Q96-P96)*(Input[[#This Row],[X]]-P96) )),"") ->  | U96: =IFERROR(IF(Input[[#This Row],[X]]="","", (T96-Input[[#This Row],[Y]])^2),"") ->  | V96: =IFERROR(IF(Input[[#This Row],[X]]="","", (T96-Input[[#This Row],[Y]])),"") -> 
O97: =IFERROR(IF(Input[[#This Row],[X]]="","", MATCH(Input[[#This Row],[X]],Output[X],0)),"") ->  | P97: =IFERROR(IF(Input[[#This Row],[X]]="","", MAX(IF(ISNUMBER($O$8:$O97),$B$8:$B97,""))),"") ->  | Q97: =IFERROR(IF(Input[[#This Row],[X]]="","", MIN(IF(ISNUMBER($O97:$O$999),$B97:$B$999,""))),"") ->  | R97: =IFERROR(IF(Input[[#This Row],[X]]="","", INDEX(Input[Y],MATCH(P97,Input[X],0))),"") ->  | S97: =IFERROR(IF(Input[[#This Row],[X]]="","", INDEX(Input[Y],MATCH(Q97,Input[X],0))),"") ->  | T97: =IFERROR(IF(Input[[#This Row],[X]]="","", IF(O97<>"",Input[[#This Row],[Y]], R97+(S97-R97)/(Q97-P97)*(Input[[#This Row],[X]]-P97) )),"") ->  | U97: =IFERROR(IF(Input[[#This Row],[X]]="","", (T97-Input[[#This Row],[Y]])^2),"") ->  | V97: =IFERROR(IF(Input[[#This Row],[X]]="","", (T97-Input[[#This Row],[Y]])),"") -> 
O98: =IFERROR(IF(Input[[#This Row],[X]]="","", MATCH(Input[[#This Row],[X]],Output[X],0)),"") ->  | P98: =IFERROR(IF(Input[[#This Row],[X]]="","", MAX(IF(ISNUMBER($O$8:$O98),$B$8:$B98,""))),"") ->  | Q98: =IFERROR(IF(Input[[#This Row],[X]]="","", MIN(IF(ISNUMBER($O98:$O$999),$B98:$B$999,""))),"") ->  | R98: =IFERROR(IF(Input[[#This Row],[X]]="","", INDEX(Input[Y],MATCH(P98,Input[X],0))),"") ->  | S98: =IFERROR(IF(Input[[#This Row],[X]]="","", INDEX(Input[Y],MATCH(Q98,Input[X],0))),"") ->  | T98: =IFERROR(IF(Input[[#This Row],[X]]="","", IF(O98<>"",Input[[#This Row],[Y]], R98+(S98-R98)/(Q98-P98)*(Input[[#This Row],[X]]-P98) )),"") ->  | U98: =IFERROR(IF(Input[[#This Row],[X]]="","", (T98-Input[[#This Row],[Y]])^2),"") ->  | V98: =IFERROR(IF(Input[[#This Row],[X]]="","", (T98-Input[[#This Row],[Y]])),"") -> 
O99: =IFERROR(IF(Input[[#This Row],[X]]="","", MATCH(Input[[#This Row],[X]],Output[X],0)),"") ->  | P99: =IFERROR(IF(Input[[#This Row],[X]]="","", MAX(IF(ISNUMBER($O$8:$O99),$B$8:$B99,""))),"") ->  | Q99: =IFERROR(IF(Input[[#This Row],[X]]="","", MIN(IF(ISNUMBER($O99:$O$999),$B99:$B$999,""))),"") ->  | R99: =IFERROR(IF(Input[[#This Row],[X]]="","", INDEX(Input[Y],MATCH(P99,Input[X],0))),"") ->  | S99: =IFERROR(IF(Input[[#This Row],[X]]="","", INDEX(Input[Y],MATCH(Q99,Input[X],0))),"") ->  | T99: =IFERROR(IF(Input[[#This Row],[X]]="","", IF(O99<>"",Input[[#This Row],[Y]], R99+(S99-R99)/(Q99-P99)*(Input[[#This Row],[X]]-P99) )),"") ->  | U99: =IFERROR(IF(Input[[#This Row],[X]]="","", (T99-Input[[#This Row],[Y]])^2),"") ->  | V99: =IFERROR(IF(Input[[#This Row],[X]]="","", (T99-Input[[#This Row],[Y]])),"") -> 
O100: =IFERROR(IF(Input[[#This Row],[X]]="","", MATCH(Input[[#This Row],[X]],Output[X],0)),"") ->  | P100: =IFERROR(IF(Input[[#This Row],[X]]="","", MAX(IF(ISNUMBER($O$8:$O100),$B$8:$B100,""))),"") ->  | Q100: =IFERROR(IF(Input[[#This Row],[X]]="","", MIN(IF(ISNUMBER($O100:$O$999),$B100:$B$999,""))),"") ->  | R100: =IFERROR(IF(Input[[#This Row],[X]]="","", INDEX(Input[Y],MATCH(P100,Input[X],0))),"") ->  | S100: =IFERROR(IF(Input[[#This Row],[X]]="","", INDEX(Input[Y],MATCH(Q100,Input[X],0))),"") ->  | T100: =IFERROR(IF(Input[[#This Row],[X]]="","", IF(O100<>"",Input[[#This Row],[Y]], R100+(S100-R100)/(Q100-P100)*(Input[[#This Row],[X]]-P100) )),"") ->  | U100: =IFERROR(IF(Input[[#This Row],[X]]="","", (T100-Input[[#This Row],[Y]])^2),"") ->  | V100: =IFERROR(IF(Input[[#This Row],[X]]="","", (T100-Input[[#This Row],[Y]])),"") -> 
O101: =IFERROR(IF(Input[[#This Row],[X]]="","", MATCH(Input[[#This Row],[X]],Output[X],0)),"") ->  | P101: =IFERROR(IF(Input[[#This Row],[X]]="","", MAX(IF(ISNUMBER($O$8:$O101),$B$8:$B101,""))),"") ->  | Q101: =IFERROR(IF(Input[[#This Row],[X]]="","", MIN(IF(ISNUMBER($O101:$O$999),$B101:$B$999,""))),"") ->  | R101: =IFERROR(IF(Input[[#This Row],[X]]="","", INDEX(Input[Y],MATCH(P101,Input[X],0))),"") ->  | S101: =IFERROR(IF(Input[[#This Row],[X]]="","", INDEX(Input[Y],MATCH(Q101,Input[X],0))),"") ->  | T101: =IFERROR(IF(Input[[#This Row],[X]]="","", IF(O101<>"",Input[[#This Row],[Y]], R101+(S101-R101)/(Q101-P101)*(Input[[#This Row],[X]]-P101) )),"") ->  | U101: =IFERROR(IF(Input[[#This Row],[X]]="","", (T101-Input[[#This Row],[Y]])^2),"") ->  | V101: =IFERROR(IF(Input[[#This Row],[X]]="","", (T101-Input[[#This Row],[Y]])),"") -> 
O102: =IFERROR(IF(Input[[#This Row],[X]]="","", MATCH(Input[[#This Row],[X]],Output[X],0)),"") ->  | P102: =IFERROR(IF(Input[[#This Row],[X]]="","", MAX(IF(ISNUMBER($O$8:$O102),$B$8:$B102,""))),"") ->  | Q102: =IFERROR(IF(Input[[#This Row],[X]]="","", MIN(IF(ISNUMBER($O102:$O$999),$B102:$B$999,""))),"") ->  | R102: =IFERROR(IF(Input[[#This Row],[X]]="","", INDEX(Input[Y],MATCH(P102,Input[X],0))),"") ->  | S102: =IFERROR(IF(Input[[#This Row],[X]]="","", INDEX(Input[Y],MATCH(Q102,Input[X],0))),"") ->  | T102: =IFERROR(IF(Input[[#This Row],[X]]="","", IF(O102<>"",Input[[#This Row],[Y]], R102+(S102-R102)/(Q102-P102)*(Input[[#This Row],[X]]-P102) )),"") ->  | U102: =IFERROR(IF(Input[[#This Row],[X]]="","", (T102-Input[[#This Row],[Y]])^2),"") ->  | V102: =IFERROR(IF(Input[[#This Row],[X]]="","", (T102-Input[[#This Row],[Y]])),"") -> 
O103: =IFERROR(IF(Input[[#This Row],[X]]="","", MATCH(Input[[#This Row],[X]],Output[X],0)),"") ->  | P103: =IFERROR(IF(Input[[#This Row],[X]]="","", MAX(IF(ISNUMBER($O$8:$O103),$B$8:$B103,""))),"") ->  | Q103: =IFERROR(IF(Input[[#This Row],[X]]="","", MIN(IF(ISNUMBER($O103:$O$999),$B103:$B$999,""))),"") ->  | R103: =IFERROR(IF(Input[[#This Row],[X]]="","", INDEX(Input[Y],MATCH(P103,Input[X],0))),"") ->  | S103: =IFERROR(IF(Input[[#This Row],[X]]="","", INDEX(Input[Y],MATCH(Q103,Input[X],0))),"") ->  | T103: =IFERROR(IF(Input[[#This Row],[X]]="","", IF(O103<>"",Input[[#This Row],[Y]], R103+(S103-R103)/(Q103-P103)*(Input[[#This Row],[X]]-P103) )),"") ->  | U103: =IFERROR(IF(Input[[#This Row],[X]]="","", (T103-Input[[#This Row],[Y]])^2),"") ->  | V103: =IFERROR(IF(Input[[#This Row],[X]]="","", (T103-Input[[#This Row],[Y]])),"") -> 
O104: =IFERROR(IF(Input[[#This Row],[X]]="","", MATCH(Input[[#This Row],[X]],Output[X],0)),"") ->  | P104: =IFERROR(IF(Input[[#This Row],[X]]="","", MAX(IF(ISNUMBER($O$8:$O104),$B$8:$B104,""))),"") ->  | Q104: =IFERROR(IF(Input[[#This Row],[X]]="","", MIN(IF(ISNUMBER($O104:$O$999),$B104:$B$999,""))),"") ->  | R104: =IFERROR(IF(Input[[#This Row],[X]]="","", INDEX(Input[Y],MATCH(P104,Input[X],0))),"") ->  | S104: =IFERROR(IF(Input[[#This Row],[X]]="","", INDEX(Input[Y],MATCH(Q104,Input[X],0))),"") ->  | T104: =IFERROR(IF(Input[[#This Row],[X]]="","", IF(O104<>"",Input[[#This Row],[Y]], R104+(S104-R104)/(Q104-P104)*(Input[[#This Row],[X]]-P104) )),"") ->  | U104: =IFERROR(IF(Input[[#This Row],[X]]="","", (T104-Input[[#This Row],[Y]])^2),"") ->  | V104: =IFERROR(IF(Input[[#This Row],[X]]="","", (T104-Input[[#This Row],[Y]])),"") -> 
O105: =IFERROR(IF(Input[[#This Row],[X]]="","", MATCH(Input[[#This Row],[X]],Output[X],0)),"") ->  | P105: =IFERROR(IF(Input[[#This Row],[X]]="","", MAX(IF(ISNUMBER($O$8:$O105),$B$8:$B105,""))),"") ->  | Q105: =IFERROR(IF(Input[[#This Row],[X]]="","", MIN(IF(ISNUMBER($O105:$O$999),$B105:$B$999,""))),"") ->  | R105: =IFERROR(IF(Input[[#This Row],[X]]="","", INDEX(Input[Y],MATCH(P105,Input[X],0))),"") ->  | S105: =IFERROR(IF(Input[[#This Row],[X]]="","", INDEX(Input[Y],MATCH(Q105,Input[X],0))),"") ->  | T105: =IFERROR(IF(Input[[#This Row],[X]]="","", IF(O105<>"",Input[[#This Row],[Y]], R105+(S105-R105)/(Q105-P105)*(Input[[#This Row],[X]]-P105) )),"") ->  | U105: =IFERROR(IF(Input[[#This Row],[X]]="","", (T105-Input[[#This Row],[Y]])^2),"") ->  | V105: =IFERROR(IF(Input[[#This Row],[X]]="","", (T105-Input[[#This Row],[Y]])),"") -> 
O106: =IFERROR(IF(Input[[#This Row],[X]]="","", MATCH(Input[[#This Row],[X]],Output[X],0)),"") ->  | P106: =IFERROR(IF(Input[[#This Row],[X]]="","", MAX(IF(ISNUMBER($O$8:$O106),$B$8:$B106,""))),"") ->  | Q106: =IFERROR(IF(Input[[#This Row],[X]]="","", MIN(IF(ISNUMBER($O106:$O$999),$B106:$B$999,""))),"") ->  | R106: =IFERROR(IF(Input[[#This Row],[X]]="","", INDEX(Input[Y],MATCH(P106,Input[X],0))),"") ->  | S106: =IFERROR(IF(Input[[#This Row],[X]]="","", INDEX(Input[Y],MATCH(Q106,Input[X],0))),"") ->  | T106: =IFERROR(IF(Input[[#This Row],[X]]="","", IF(O106<>"",Input[[#This Row],[Y]], R106+(S106-R106)/(Q106-P106)*(Input[[#This Row],[X]]-P106) )),"") ->  | U106: =IFERROR(IF(Input[[#This Row],[X]]="","", (T106-Input[[#This Row],[Y]])^2),"") ->  | V106: =IFERROR(IF(Input[[#This Row],[X]]="","", (T106-Input[[#This Row],[Y]])),"") -> 
O107: =IFERROR(IF(Input[[#This Row],[X]]="","", MATCH(Input[[#This Row],[X]],Output[X],0)),"") ->  | P107: =IFERROR(IF(Input[[#This Row],[X]]="","", MAX(IF(ISNUMBER($O$8:$O107),$B$8:$B107,""))),"") ->  | Q107: =IFERROR(IF(Input[[#This Row],[X]]="","", MIN(IF(ISNUMBER($O107:$O$999),$B107:$B$999,""))),"") ->  | R107: =IFERROR(IF(Input[[#This Row],[X]]="","", INDEX(Input[Y],MATCH(P107,Input[X],0))),"") ->  | S107: =IFERROR(IF(Input[[#This Row],[X]]="","", INDEX(Input[Y],MATCH(Q107,Input[X],0))),"") ->  | T107: =IFERROR(IF(Input[[#This Row],[X]]="","", IF(O107<>"",Input[[#This Row],[Y]], R107+(S107-R107)/(Q107-P107)*(Input[[#This Row],[X]]-P107) )),"") ->  | U107: =IFERROR(IF(Input[[#This Row],[X]]="","", (T107-Input[[#This Row],[Y]])^2),"") ->  | V107: =IFERROR(IF(Input[[#This Row],[X]]="","", (T107-Input[[#This Row],[Y]])),"") -> 
O108: =IFERROR(IF(Input[[#This Row],[X]]="","", MATCH(Input[[#This Row],[X]],Output[X],0)),"") ->  | P108: =IFERROR(IF(Input[[#This Row],[X]]="","", MAX(IF(ISNUMBER($O$8:$O108),$B$8:$B108,""))),"") ->  | Q108: =IFERROR(IF(Input[[#This Row],[X]]="","", MIN(IF(ISNUMBER($O108:$O$999),$B108:$B$999,""))),"") ->  | R108: =IFERROR(IF(Input[[#This Row],[X]]="","", INDEX(Input[Y],MATCH(P108,Input[X],0))),"") ->  | S108: =IFERROR(IF(Input[[#This Row],[X]]="","", INDEX(Input[Y],MATCH(Q108,Input[X],0))),"") ->  | T108: =IFERROR(IF(Input[[#This Row],[X]]="","", IF(O108<>"",Input[[#This Row],[Y]], R108+(S108-R108)/(Q108-P108)*(Input[[#This Row],[X]]-P108) )),"") ->  | U108: =IFERROR(IF(Input[[#This Row],[X]]="","", (T108-Input[[#This Row],[Y]])^2),"") ->  | V108: =IFERROR(IF(Input[[#This Row],[X]]="","", (T108-Input[[#This Row],[Y]])),"") -> 
O109: =IFERROR(IF(Input[[#This Row],[X]]="","", MATCH(Input[[#This Row],[X]],Output[X],0)),"") ->  | P109: =IFERROR(IF(Input[[#This Row],[X]]="","", MAX(IF(ISNUMBER($O$8:$O109),$B$8:$B109,""))),"") ->  | Q109: =IFERROR(IF(Input[[#This Row],[X]]="","", MIN(IF(ISNUMBER($O109:$O$999),$B109:$B$999,""))),"") ->  | R109: =IFERROR(IF(Input[[#This Row],[X]]="","", INDEX(Input[Y],MATCH(P109,Input[X],0))),"") ->  | S109: =IFERROR(IF(Input[[#This Row],[X]]="","", INDEX(Input[Y],MATCH(Q109,Input[X],0))),"") ->  | T109: =IFERROR(IF(Input[[#This Row],[X]]="","", IF(O109<>"",Input[[#This Row],[Y]], R109+(S109-R109)/(Q109-P109)*(Input[[#This Row],[X]]-P109) )),"") ->  | U109: =IFERROR(IF(Input[[#This Row],[X]]="","", (T109-Input[[#This Row],[Y]])^2),"") ->  | V109: =IFERROR(IF(Input[[#This Row],[X]]="","", (T109-Input[[#This Row],[Y]])),"") -> 
O110: =IFERROR(IF(Input[[#This Row],[X]]="","", MATCH(Input[[#This Row],[X]],Output[X],0)),"") ->  | P110: =IFERROR(IF(Input[[#This Row],[X]]="","", MAX(IF(ISNUMBER($O$8:$O110),$B$8:$B110,""))),"") ->  | Q110: =IFERROR(IF(Input[[#This Row],[X]]="","", MIN(IF(ISNUMBER($O110:$O$999),$B110:$B$999,""))),"") ->  | R110: =IFERROR(IF(Input[[#This Row],[X]]="","", INDEX(Input[Y],MATCH(P110,Input[X],0))),"") ->  | S110: =IFERROR(IF(Input[[#This Row],[X]]="","", INDEX(Input[Y],MATCH(Q110,Input[X],0))),"") ->  | T110: =IFERROR(IF(Input[[#This Row],[X]]="","", IF(O110<>"",Input[[#This Row],[Y]], R110+(S110-R110)/(Q110-P110)*(Input[[#This Row],[X]]-P110) )),"") ->  | U110: =IFERROR(IF(Input[[#This Row],[X]]="","", (T110-Input[[#This Row],[Y]])^2),"") ->  | V110: =IFERROR(IF(Input[[#This Row],[X]]="","", (T110-Input[[#This Row],[Y]])),"") -> 
O111: =IFERROR(IF(Input[[#This Row],[X]]="","", MATCH(Input[[#This Row],[X]],Output[X],0)),"") ->  | P111: =IFERROR(IF(Input[[#This Row],[X]]="","", MAX(IF(ISNUMBER($O$8:$O111),$B$8:$B111,""))),"") ->  | Q111: =IFERROR(IF(Input[[#This Row],[X]]="","", MIN(IF(ISNUMBER($O111:$O$999),$B111:$B$999,""))),"") ->  | R111: =IFERROR(IF(Input[[#This Row],[X]]="","", INDEX(Input[Y],MATCH(P111,Input[X],0))),"") ->  | S111: =IFERROR(IF(Input[[#This Row],[X]]="","", INDEX(Input[Y],MATCH(Q111,Input[X],0))),"") ->  | T111: =IFERROR(IF(Input[[#This Row],[X]]="","", IF(O111<>"",Input[[#This Row],[Y]], R111+(S111-R111)/(Q111-P111)*(Input[[#This Row],[X]]-P111) )),"") ->  | U111: =IFERROR(IF(Input[[#This Row],[X]]="","", (T111-Input[[#This Row],[Y]])^2),"") ->  | V111: =IFERROR(IF(Input[[#This Row],[X]]="","", (T111-Input[[#This Row],[Y]])),"") -> 
O112: =IFERROR(IF(Input[[#This Row],[X]]="","", MATCH(Input[[#This Row],[X]],Output[X],0)),"") ->  | P112: =IFERROR(IF(Input[[#This Row],[X]]="","", MAX(IF(ISNUMBER($O$8:$O112),$B$8:$B112,""))),"") ->  | Q112: =IFERROR(IF(Input[[#This Row],[X]]="","", MIN(IF(ISNUMBER($O112:$O$999),$B112:$B$999,""))),"") ->  | R112: =IFERROR(IF(Input[[#This Row],[X]]="","", INDEX(Input[Y],MATCH(P112,Input[X],0))),"") ->  | S112: =IFERROR(IF(Input[[#This Row],[X]]="","", INDEX(Input[Y],MATCH(Q112,Input[X],0))),"") ->  | T112: =IFERROR(IF(Input[[#This Row],[X]]="","", IF(O112<>"",Input[[#This Row],[Y]], R112+(S112-R112)/(Q112-P112)*(Input[[#This Row],[X]]-P112) )),"") ->  | U112: =IFERROR(IF(Input[[#This Row],[X]]="","", (T112-Input[[#This Row],[Y]])^2),"") ->  | V112: =IFERROR(IF(Input[[#This Row],[X]]="","", (T112-Input[[#This Row],[Y]])),"") -> 
O113: =IFERROR(IF(Input[[#This Row],[X]]="","", MATCH(Input[[#This Row],[X]],Output[X],0)),"") ->  | P113: =IFERROR(IF(Input[[#This Row],[X]]="","", MAX(IF(ISNUMBER($O$8:$O113),$B$8:$B113,""))),"") ->  | Q113: =IFERROR(IF(Input[[#This Row],[X]]="","", MIN(IF(ISNUMBER($O113:$O$999),$B113:$B$999,""))),"") ->  | R113: =IFERROR(IF(Input[[#This Row],[X]]="","", INDEX(Input[Y],MATCH(P113,Input[X],0))),"") ->  | S113: =IFERROR(IF(Input[[#This Row],[X]]="","", INDEX(Input[Y],MATCH(Q113,Input[X],0))),"") ->  | T113: =IFERROR(IF(Input[[#This Row],[X]]="","", IF(O113<>"",Input[[#This Row],[Y]], R113+(S113-R113)/(Q113-P113)*(Input[[#This Row],[X]]-P113) )),"") ->  | U113: =IFERROR(IF(Input[[#This Row],[X]]="","", (T113-Input[[#This Row],[Y]])^2),"") ->  | V113: =IFERROR(IF(Input[[#This Row],[X]]="","", (T113-Input[[#This Row],[Y]])),"") -> 
O114: =IFERROR(IF(Input[[#This Row],[X]]="","", MATCH(Input[[#This Row],[X]],Output[X],0)),"") ->  | P114: =IFERROR(IF(Input[[#This Row],[X]]="","", MAX(IF(ISNUMBER($O$8:$O114),$B$8:$B114,""))),"") ->  | Q114: =IFERROR(IF(Input[[#This Row],[X]]="","", MIN(IF(ISNUMBER($O114:$O$999),$B114:$B$999,""))),"") ->  | R114: =IFERROR(IF(Input[[#This Row],[X]]="","", INDEX(Input[Y],MATCH(P114,Input[X],0))),"") ->  | S114: =IFERROR(IF(Input[[#This Row],[X]]="","", INDEX(Input[Y],MATCH(Q114,Input[X],0))),"") ->  | T114: =IFERROR(IF(Input[[#This Row],[X]]="","", IF(O114<>"",Input[[#This Row],[Y]], R114+(S114-R114)/(Q114-P114)*(Input[[#This Row],[X]]-P114) )),"") ->  | U114: =IFERROR(IF(Input[[#This Row],[X]]="","", (T114-Input[[#This Row],[Y]])^2),"") ->  | V114: =IFERROR(IF(Input[[#This Row],[X]]="","", (T114-Input[[#This Row],[Y]])),"") -> 
O115: =IFERROR(IF(Input[[#This Row],[X]]="","", MATCH(Input[[#This Row],[X]],Output[X],0)),"") ->  | P115: =IFERROR(IF(Input[[#This Row],[X]]="","", MAX(IF(ISNUMBER($O$8:$O115),$B$8:$B115,""))),"") ->  | Q115: =IFERROR(IF(Input[[#This Row],[X]]="","", MIN(IF(ISNUMBER($O115:$O$999),$B115:$B$999,""))),"") ->  | R115: =IFERROR(IF(Input[[#This Row],[X]]="","", INDEX(Input[Y],MATCH(P115,Input[X],0))),"") ->  | S115: =IFERROR(IF(Input[[#This Row],[X]]="","", INDEX(Input[Y],MATCH(Q115,Input[X],0))),"") ->  | T115: =IFERROR(IF(Input[[#This Row],[X]]="","", IF(O115<>"",Input[[#This Row],[Y]], R115+(S115-R115)/(Q115-P115)*(Input[[#This Row],[X]]-P115) )),"") ->  | U115: =IFERROR(IF(Input[[#This Row],[X]]="","", (T115-Input[[#This Row],[Y]])^2),"") ->  | V115: =IFERROR(IF(Input[[#This Row],[X]]="","", (T115-Input[[#This Row],[Y]])),"") -> 
O116: =IFERROR(IF(Input[[#This Row],[X]]="","", MATCH(Input[[#This Row],[X]],Output[X],0)),"") ->  | P116: =IFERROR(IF(Input[[#This Row],[X]]="","", MAX(IF(ISNUMBER($O$8:$O116),$B$8:$B116,""))),"") ->  | Q116: =IFERROR(IF(Input[[#This Row],[X]]="","", MIN(IF(ISNUMBER($O116:$O$999),$B116:$B$999,""))),"") ->  | R116: =IFERROR(IF(Input[[#This Row],[X]]="","", INDEX(Input[Y],MATCH(P116,Input[X],0))),"") ->  | S116: =IFERROR(IF(Input[[#This Row],[X]]="","", INDEX(Input[Y],MATCH(Q116,Input[X],0))),"") ->  | T116: =IFERROR(IF(Input[[#This Row],[X]]="","", IF(O116<>"",Input[[#This Row],[Y]], R116+(S116-R116)/(Q116-P116)*(Input[[#This Row],[X]]-P116) )),"") ->  | U116: =IFERROR(IF(Input[[#This Row],[X]]="","", (T116-Input[[#This Row],[Y]])^2),"") ->  | V116: =IFERROR(IF(Input[[#This Row],[X]]="","", (T116-Input[[#This Row],[Y]])),"") -> 
O117: =IFERROR(IF(Input[[#This Row],[X]]="","", MATCH(Input[[#This Row],[X]],Output[X],0)),"") ->  | P117: =IFERROR(IF(Input[[#This Row],[X]]="","", MAX(IF(ISNUMBER($O$8:$O117),$B$8:$B117,""))),"") ->  | Q117: =IFERROR(IF(Input[[#This Row],[X]]="","", MIN(IF(ISNUMBER($O117:$O$999),$B117:$B$999,""))),"") ->  | R117: =IFERROR(IF(Input[[#This Row],[X]]="","", INDEX(Input[Y],MATCH(P117,Input[X],0))),"") ->  | S117: =IFERROR(IF(Input[[#This Row],[X]]="","", INDEX(Input[Y],MATCH(Q117,Input[X],0))),"") ->  | T117: =IFERROR(IF(Input[[#This Row],[X]]="","", IF(O117<>"",Input[[#This Row],[Y]], R117+(S117-R117)/(Q117-P117)*(Input[[#This Row],[X]]-P117) )),"") ->  | U117: =IFERROR(IF(Input[[#This Row],[X]]="","", (T117-Input[[#This Row],[Y]])^2),"") ->  | V117: =IFERROR(IF(Input[[#This Row],[X]]="","", (T117-Input[[#This Row],[Y]])),"") -> 
O118: =IFERROR(IF(Input[[#This Row],[X]]="","", MATCH(Input[[#This Row],[X]],Output[X],0)),"") ->  | P118: =IFERROR(IF(Input[[#This Row],[X]]="","", MAX(IF(ISNUMBER($O$8:$O118),$B$8:$B118,""))),"") ->  | Q118: =IFERROR(IF(Input[[#This Row],[X]]="","", MIN(IF(ISNUMBER($O118:$O$999),$B118:$B$999,""))),"") ->  | R118: =IFERROR(IF(Input[[#This Row],[X]]="","", INDEX(Input[Y],MATCH(P118,Input[X],0))),"") ->  | S118: =IFERROR(IF(Input[[#This Row],[X]]="","", INDEX(Input[Y],MATCH(Q118,Input[X],0))),"") ->  | T118: =IFERROR(IF(Input[[#This Row],[X]]="","", IF(O118<>"",Input[[#This Row],[Y]], R118+(S118-R118)/(Q118-P118)*(Input[[#This Row],[X]]-P118) )),"") ->  | U118: =IFERROR(IF(Input[[#This Row],[X]]="","", (T118-Input[[#This Row],[Y]])^2),"") ->  | V118: =IFERROR(IF(Input[[#This Row],[X]]="","", (T118-Input[[#This Row],[Y]])),"") -> 
O119: =IFERROR(IF(Input[[#This Row],[X]]="","", MATCH(Input[[#This Row],[X]],Output[X],0)),"") ->  | P119: =IFERROR(IF(Input[[#This Row],[X]]="","", MAX(IF(ISNUMBER($O$8:$O119),$B$8:$B119,""))),"") ->  | Q119: =IFERROR(IF(Input[[#This Row],[X]]="","", MIN(IF(ISNUMBER($O119:$O$999),$B119:$B$999,""))),"") ->  | R119: =IFERROR(IF(Input[[#This Row],[X]]="","", INDEX(Input[Y],MATCH(P119,Input[X],0))),"") ->  | S119: =IFERROR(IF(Input[[#This Row],[X]]="","", INDEX(Input[Y],MATCH(Q119,Input[X],0))),"") ->  | T119: =IFERROR(IF(Input[[#This Row],[X]]="","", IF(O119<>"",Input[[#This Row],[Y]], R119+(S119-R119)/(Q119-P119)*(Input[[#This Row],[X]]-P119) )),"") ->  | U119: =IFERROR(IF(Input[[#This Row],[X]]="","", (T119-Input[[#This Row],[Y]])^2),"") ->  | V119: =IFERROR(IF(Input[[#This Row],[X]]="","", (T119-Input[[#This Row],[Y]])),"") -> 
O120: =IFERROR(IF(Input[[#This Row],[X]]="","", MATCH(Input[[#This Row],[X]],Output[X],0)),"") ->  | P120: =IFERROR(IF(Input[[#This Row],[X]]="","", MAX(IF(ISNUMBER($O$8:$O120),$B$8:$B120,""))),"") ->  | Q120: =IFERROR(IF(Input[[#This Row],[X]]="","", MIN(IF(ISNUMBER($O120:$O$999),$B120:$B$999,""))),"") ->  | R120: =IFERROR(IF(Input[[#This Row],[X]]="","", INDEX(Input[Y],MATCH(P120,Input[X],0))),"") ->  | S120: =IFERROR(IF(Input[[#This Row],[X]]="","", INDEX(Input[Y],MATCH(Q120,Input[X],0))),"") ->  | T120: =IFERROR(IF(Input[[#This Row],[X]]="","", IF(O120<>"",Input[[#This Row],[Y]], R120+(S120-R120)/(Q120-P120)*(Input[[#This Row],[X]]-P120) )),"") ->  | U120: =IFERROR(IF(Input[[#This Row],[X]]="","", (T120-Input[[#This Row],[Y]])^2),"") ->  | V120: =IFERROR(IF(Input[[#This Row],[X]]="","", (T120-Input[[#This Row],[Y]])),"") -> 
O121: =IFERROR(IF(Input[[#This Row],[X]]="","", MATCH(Input[[#This Row],[X]],Output[X],0)),"") ->  | P121: =IFERROR(IF(Input[[#This Row],[X]]="","", MAX(IF(ISNUMBER($O$8:$O121),$B$8:$B121,""))),"") ->  | Q121: =IFERROR(IF(Input[[#This Row],[X]]="","", MIN(IF(ISNUMBER($O121:$O$999),$B121:$B$999,""))),"") ->  | R121: =IFERROR(IF(Input[[#This Row],[X]]="","", INDEX(Input[Y],MATCH(P121,Input[X],0))),"") ->  | S121: =IFERROR(IF(Input[[#This Row],[X]]="","", INDEX(Input[Y],MATCH(Q121,Input[X],0))),"") ->  | T121: =IFERROR(IF(Input[[#This Row],[X]]="","", IF(O121<>"",Input[[#This Row],[Y]], R121+(S121-R121)/(Q121-P121)*(Input[[#This Row],[X]]-P121) )),"") ->  | U121: =IFERROR(IF(Input[[#This Row],[X]]="","", (T121-Input[[#This Row],[Y]])^2),"") ->  | V121: =IFERROR(IF(Input[[#This Row],[X]]="","", (T121-Input[[#This Row],[Y]])),"") -> 
O122: =IFERROR(IF(Input[[#This Row],[X]]="","", MATCH(Input[[#This Row],[X]],Output[X],0)),"") ->  | P122: =IFERROR(IF(Input[[#This Row],[X]]="","", MAX(IF(ISNUMBER($O$8:$O122),$B$8:$B122,""))),"") ->  | Q122: =IFERROR(IF(Input[[#This Row],[X]]="","", MIN(IF(ISNUMBER($O122:$O$999),$B122:$B$999,""))),"") ->  | R122: =IFERROR(IF(Input[[#This Row],[X]]="","", INDEX(Input[Y],MATCH(P122,Input[X],0))),"") ->  | S122: =IFERROR(IF(Input[[#This Row],[X]]="","", INDEX(Input[Y],MATCH(Q122,Input[X],0))),"") ->  | T122: =IFERROR(IF(Input[[#This Row],[X]]="","", IF(O122<>"",Input[[#This Row],[Y]], R122+(S122-R122)/(Q122-P122)*(Input[[#This Row],[X]]-P122) )),"") ->  | U122: =IFERROR(IF(Input[[#This Row],[X]]="","", (T122-Input[[#This Row],[Y]])^2),"") ->  | V122: =IFERROR(IF(Input[[#This Row],[X]]="","", (T122-Input[[#This Row],[Y]])),"") -> 
O123: =IFERROR(IF(Input[[#This Row],[X]]="","", MATCH(Input[[#This Row],[X]],Output[X],0)),"") ->  | P123: =IFERROR(IF(Input[[#This Row],[X]]="","", MAX(IF(ISNUMBER($O$8:$O123),$B$8:$B123,""))),"") ->  | Q123: =IFERROR(IF(Input[[#This Row],[X]]="","", MIN(IF(ISNUMBER($O123:$O$999),$B123:$B$999,""))),"") ->  | R123: =IFERROR(IF(Input[[#This Row],[X]]="","", INDEX(Input[Y],MATCH(P123,Input[X],0))),"") ->  | S123: =IFERROR(IF(Input[[#This Row],[X]]="","", INDEX(Input[Y],MATCH(Q123,Input[X],0))),"") ->  | T123: =IFERROR(IF(Input[[#This Row],[X]]="","", IF(O123<>"",Input[[#This Row],[Y]], R123+(S123-R123)/(Q123-P123)*(Input[[#This Row],[X]]-P123) )),"") ->  | U123: =IFERROR(IF(Input[[#This Row],[X]]="","", (T123-Input[[#This Row],[Y]])^2),"") ->  | V123: =IFERROR(IF(Input[[#This Row],[X]]="","", (T123-Input[[#This Row],[Y]])),"") -> 
O124: =IFERROR(IF(Input[[#This Row],[X]]="","", MATCH(Input[[#This Row],[X]],Output[X],0)),"") ->  | P124: =IFERROR(IF(Input[[#This Row],[X]]="","", MAX(IF(ISNUMBER($O$8:$O124),$B$8:$B124,""))),"") ->  | Q124: =IFERROR(IF(Input[[#This Row],[X]]="","", MIN(IF(ISNUMBER($O124:$O$999),$B124:$B$999,""))),"") ->  | R124: =IFERROR(IF(Input[[#This Row],[X]]="","", INDEX(Input[Y],MATCH(P124,Input[X],0))),"") ->  | S124: =IFERROR(IF(Input[[#This Row],[X]]="","", INDEX(Input[Y],MATCH(Q124,Input[X],0))),"") ->  | T124: =IFERROR(IF(Input[[#This Row],[X]]="","", IF(O124<>"",Input[[#This Row],[Y]], R124+(S124-R124)/(Q124-P124)*(Input[[#This Row],[X]]-P124) )),"") ->  | U124: =IFERROR(IF(Input[[#This Row],[X]]="","", (T124-Input[[#This Row],[Y]])^2),"") ->  | V124: =IFERROR(IF(Input[[#This Row],[X]]="","", (T124-Input[[#This Row],[Y]])),"") -> 
O125: =IFERROR(IF(Input[[#This Row],[X]]="","", MATCH(Input[[#This Row],[X]],Output[X],0)),"") ->  | P125: =IFERROR(IF(Input[[#This Row],[X]]="","", MAX(IF(ISNUMBER($O$8:$O125),$B$8:$B125,""))),"") ->  | Q125: =IFERROR(IF(Input[[#This Row],[X]]="","", MIN(IF(ISNUMBER($O125:$O$999),$B125:$B$999,""))),"") ->  | R125: =IFERROR(IF(Input[[#This Row],[X]]="","", INDEX(Input[Y],MATCH(P125,Input[X],0))),"") ->  | S125: =IFERROR(IF(Input[[#This Row],[X]]="","", INDEX(Input[Y],MATCH(Q125,Input[X],0))),"") ->  | T125: =IFERROR(IF(Input[[#This Row],[X]]="","", IF(O125<>"",Input[[#This Row],[Y]], R125+(S125-R125)/(Q125-P125)*(Input[[#This Row],[X]]-P125) )),"") ->  | U125: =IFERROR(IF(Input[[#This Row],[X]]="","", (T125-Input[[#This Row],[Y]])^2),"") ->  | V125: =IFERROR(IF(Input[[#This Row],[X]]="","", (T125-Input[[#This Row],[Y]])),"") -> 
O126: =IFERROR(IF(Input[[#This Row],[X]]="","", MATCH(Input[[#This Row],[X]],Output[X],0)),"") ->  | P126: =IFERROR(IF(Input[[#This Row],[X]]="","", MAX(IF(ISNUMBER($O$8:$O126),$B$8:$B126,""))),"") ->  | Q126: =IFERROR(IF(Input[[#This Row],[X]]="","", MIN(IF(ISNUMBER($O126:$O$999),$B126:$B$999,""))),"") ->  | R126: =IFERROR(IF(Input[[#This Row],[X]]="","", INDEX(Input[Y],MATCH(P126,Input[X],0))),"") ->  | S126: =IFERROR(IF(Input[[#This Row],[X]]="","", INDEX(Input[Y],MATCH(Q126,Input[X],0))),"") ->  | T126: =IFERROR(IF(Input[[#This Row],[X]]="","", IF(O126<>"",Input[[#This Row],[Y]], R126+(S126-R126)/(Q126-P126)*(Input[[#This Row],[X]]-P126) )),"") ->  | U126: =IFERROR(IF(Input[[#This Row],[X]]="","", (T126-Input[[#This Row],[Y]])^2),"") ->  | V126: =IFERROR(IF(Input[[#This Row],[X]]="","", (T126-Input[[#This Row],[Y]])),"") -> 
O127: =IFERROR(IF(Input[[#This Row],[X]]="","", MATCH(Input[[#This Row],[X]],Output[X],0)),"") ->  | P127: =IFERROR(IF(Input[[#This Row],[X]]="","", MAX(IF(ISNUMBER($O$8:$O127),$B$8:$B127,""))),"") ->  | Q127: =IFERROR(IF(Input[[#This Row],[X]]="","", MIN(IF(ISNUMBER($O127:$O$999),$B127:$B$999,""))),"") ->  | R127: =IFERROR(IF(Input[[#This Row],[X]]="","", INDEX(Input[Y],MATCH(P127,Input[X],0))),"") ->  | S127: =IFERROR(IF(Input[[#This Row],[X]]="","", INDEX(Input[Y],MATCH(Q127,Input[X],0))),"") ->  | T127: =IFERROR(IF(Input[[#This Row],[X]]="","", IF(O127<>"",Input[[#This Row],[Y]], R127+(S127-R127)/(Q127-P127)*(Input[[#This Row],[X]]-P127) )),"") ->  | U127: =IFERROR(IF(Input[[#This Row],[X]]="","", (T127-Input[[#This Row],[Y]])^2),"") ->  | V127: =IFERROR(IF(Input[[#This Row],[X]]="","", (T127-Input[[#This Row],[Y]])),"") -> 
O128: =IFERROR(IF(Input[[#This Row],[X]]="","", MATCH(Input[[#This Row],[X]],Output[X],0)),"") ->  | P128: =IFERROR(IF(Input[[#This Row],[X]]="","", MAX(IF(ISNUMBER($O$8:$O128),$B$8:$B128,""))),"") ->  | Q128: =IFERROR(IF(Input[[#This Row],[X]]="","", MIN(IF(ISNUMBER($O128:$O$999),$B128:$B$999,""))),"") ->  | R128: =IFERROR(IF(Input[[#This Row],[X]]="","", INDEX(Input[Y],MATCH(P128,Input[X],0))),"") ->  | S128: =IFERROR(IF(Input[[#This Row],[X]]="","", INDEX(Input[Y],MATCH(Q128,Input[X],0))),"") ->  | T128: =IFERROR(IF(Input[[#This Row],[X]]="","", IF(O128<>"",Input[[#This Row],[Y]], R128+(S128-R128)/(Q128-P128)*(Input[[#This Row],[X]]-P128) )),"") ->  | U128: =IFERROR(IF(Input[[#This Row],[X]]="","", (T128-Input[[#This Row],[Y]])^2),"") ->  | V128: =IFERROR(IF(Input[[#This Row],[X]]="","", (T128-Input[[#This Row],[Y]])),"") -> 
O129: =IFERROR(IF(Input[[#This Row],[X]]="","", MATCH(Input[[#This Row],[X]],Output[X],0)),"") ->  | P129: =IFERROR(IF(Input[[#This Row],[X]]="","", MAX(IF(ISNUMBER($O$8:$O129),$B$8:$B129,""))),"") ->  | Q129: =IFERROR(IF(Input[[#This Row],[X]]="","", MIN(IF(ISNUMBER($O129:$O$999),$B129:$B$999,""))),"") ->  | R129: =IFERROR(IF(Input[[#This Row],[X]]="","", INDEX(Input[Y],MATCH(P129,Input[X],0))),"") ->  | S129: =IFERROR(IF(Input[[#This Row],[X]]="","", INDEX(Input[Y],MATCH(Q129,Input[X],0))),"") ->  | T129: =IFERROR(IF(Input[[#This Row],[X]]="","", IF(O129<>"",Input[[#This Row],[Y]], R129+(S129-R129)/(Q129-P129)*(Input[[#This Row],[X]]-P129) )),"") ->  | U129: =IFERROR(IF(Input[[#This Row],[X]]="","", (T129-Input[[#This Row],[Y]])^2),"") ->  | V129: =IFERROR(IF(Input[[#This Row],[X]]="","", (T129-Input[[#This Row],[Y]])),"") -> 
O130: =IFERROR(IF(Input[[#This Row],[X]]="","", MATCH(Input[[#This Row],[X]],Output[X],0)),"") ->  | P130: =IFERROR(IF(Input[[#This Row],[X]]="","", MAX(IF(ISNUMBER($O$8:$O130),$B$8:$B130,""))),"") ->  | Q130: =IFERROR(IF(Input[[#This Row],[X]]="","", MIN(IF(ISNUMBER($O130:$O$999),$B130:$B$999,""))),"") ->  | R130: =IFERROR(IF(Input[[#This Row],[X]]="","", INDEX(Input[Y],MATCH(P130,Input[X],0))),"") ->  | S130: =IFERROR(IF(Input[[#This Row],[X]]="","", INDEX(Input[Y],MATCH(Q130,Input[X],0))),"") ->  | T130: =IFERROR(IF(Input[[#This Row],[X]]="","", IF(O130<>"",Input[[#This Row],[Y]], R130+(S130-R130)/(Q130-P130)*(Input[[#This Row],[X]]-P130) )),"") ->  | U130: =IFERROR(IF(Input[[#This Row],[X]]="","", (T130-Input[[#This Row],[Y]])^2),"") ->  | V130: =IFERROR(IF(Input[[#This Row],[X]]="","", (T130-Input[[#This Row],[Y]])),"") -> 
O131: =IFERROR(IF(Input[[#This Row],[X]]="","", MATCH(Input[[#This Row],[X]],Output[X],0)),"") ->  | P131: =IFERROR(IF(Input[[#This Row],[X]]="","", MAX(IF(ISNUMBER($O$8:$O131),$B$8:$B131,""))),"") ->  | Q131: =IFERROR(IF(Input[[#This Row],[X]]="","", MIN(IF(ISNUMBER($O131:$O$999),$B131:$B$999,""))),"") ->  | R131: =IFERROR(IF(Input[[#This Row],[X]]="","", INDEX(Input[Y],MATCH(P131,Input[X],0))),"") ->  | S131: =IFERROR(IF(Input[[#This Row],[X]]="","", INDEX(Input[Y],MATCH(Q131,Input[X],0))),"") ->  | T131: =IFERROR(IF(Input[[#This Row],[X]]="","", IF(O131<>"",Input[[#This Row],[Y]], R131+(S131-R131)/(Q131-P131)*(Input[[#This Row],[X]]-P131) )),"") ->  | U131: =IFERROR(IF(Input[[#This Row],[X]]="","", (T131-Input[[#This Row],[Y]])^2),"") ->  | V131: =IFERROR(IF(Input[[#This Row],[X]]="","", (T131-Input[[#This Row],[Y]])),"") -> 
O132: =IFERROR(IF(Input[[#This Row],[X]]="","", MATCH(Input[[#This Row],[X]],Output[X],0)),"") ->  | P132: =IFERROR(IF(Input[[#This Row],[X]]="","", MAX(IF(ISNUMBER($O$8:$O132),$B$8:$B132,""))),"") ->  | Q132: =IFERROR(IF(Input[[#This Row],[X]]="","", MIN(IF(ISNUMBER($O132:$O$999),$B132:$B$999,""))),"") ->  | R132: =IFERROR(IF(Input[[#This Row],[X]]="","", INDEX(Input[Y],MATCH(P132,Input[X],0))),"") ->  | S132: =IFERROR(IF(Input[[#This Row],[X]]="","", INDEX(Input[Y],MATCH(Q132,Input[X],0))),"") ->  | T132: =IFERROR(IF(Input[[#This Row],[X]]="","", IF(O132<>"",Input[[#This Row],[Y]], R132+(S132-R132)/(Q132-P132)*(Input[[#This Row],[X]]-P132) )),"") ->  | U132: =IFERROR(IF(Input[[#This Row],[X]]="","", (T132-Input[[#This Row],[Y]])^2),"") ->  | V132: =IFERROR(IF(Input[[#This Row],[X]]="","", (T132-Input[[#This Row],[Y]])),"") -> 
O133: =IFERROR(IF(Input[[#This Row],[X]]="","", MATCH(Input[[#This Row],[X]],Output[X],0)),"") ->  | P133: =IFERROR(IF(Input[[#This Row],[X]]="","", MAX(IF(ISNUMBER($O$8:$O133),$B$8:$B133,""))),"") ->  | Q133: =IFERROR(IF(Input[[#This Row],[X]]="","", MIN(IF(ISNUMBER($O133:$O$999),$B133:$B$999,""))),"") ->  | R133: =IFERROR(IF(Input[[#This Row],[X]]="","", INDEX(Input[Y],MATCH(P133,Input[X],0))),"") ->  | S133: =IFERROR(IF(Input[[#This Row],[X]]="","", INDEX(Input[Y],MATCH(Q133,Input[X],0))),"") ->  | T133: =IFERROR(IF(Input[[#This Row],[X]]="","", IF(O133<>"",Input[[#This Row],[Y]], R133+(S133-R133)/(Q133-P133)*(Input[[#This Row],[X]]-P133) )),"") ->  | U133: =IFERROR(IF(Input[[#This Row],[X]]="","", (T133-Input[[#This Row],[Y]])^2),"") ->  | V133: =IFERROR(IF(Input[[#This Row],[X]]="","", (T133-Input[[#This Row],[Y]])),"") -> 
O134: =IFERROR(IF(Input[[#This Row],[X]]="","", MATCH(Input[[#This Row],[X]],Output[X],0)),"") ->  | P134: =IFERROR(IF(Input[[#This Row],[X]]="","", MAX(IF(ISNUMBER($O$8:$O134),$B$8:$B134,""))),"") ->  | Q134: =IFERROR(IF(Input[[#This Row],[X]]="","", MIN(IF(ISNUMBER($O134:$O$999),$B134:$B$999,""))),"") ->  | R134: =IFERROR(IF(Input[[#This Row],[X]]="","", INDEX(Input[Y],MATCH(P134,Input[X],0))),"") ->  | S134: =IFERROR(IF(Input[[#This Row],[X]]="","", INDEX(Input[Y],MATCH(Q134,Input[X],0))),"") ->  | T134: =IFERROR(IF(Input[[#This Row],[X]]="","", IF(O134<>"",Input[[#This Row],[Y]], R134+(S134-R134)/(Q134-P134)*(Input[[#This Row],[X]]-P134) )),"") ->  | U134: =IFERROR(IF(Input[[#This Row],[X]]="","", (T134-Input[[#This Row],[Y]])^2),"") ->  | V134: =IFERROR(IF(Input[[#This Row],[X]]="","", (T134-Input[[#This Row],[Y]])),"") -> 
O135: =IFERROR(IF(Input[[#This Row],[X]]="","", MATCH(Input[[#This Row],[X]],Output[X],0)),"") ->  | P135: =IFERROR(IF(Input[[#This Row],[X]]="","", MAX(IF(ISNUMBER($O$8:$O135),$B$8:$B135,""))),"") ->  | Q135: =IFERROR(IF(Input[[#This Row],[X]]="","", MIN(IF(ISNUMBER($O135:$O$999),$B135:$B$999,""))),"") ->  | R135: =IFERROR(IF(Input[[#This Row],[X]]="","", INDEX(Input[Y],MATCH(P135,Input[X],0))),"") ->  | S135: =IFERROR(IF(Input[[#This Row],[X]]="","", INDEX(Input[Y],MATCH(Q135,Input[X],0))),"") ->  | T135: =IFERROR(IF(Input[[#This Row],[X]]="","", IF(O135<>"",Input[[#This Row],[Y]], R135+(S135-R135)/(Q135-P135)*(Input[[#This Row],[X]]-P135) )),"") ->  | U135: =IFERROR(IF(Input[[#This Row],[X]]="","", (T135-Input[[#This Row],[Y]])^2),"") ->  | V135: =IFERROR(IF(Input[[#This Row],[X]]="","", (T135-Input[[#This Row],[Y]])),"") -> 
O136: =IFERROR(IF(Input[[#This Row],[X]]="","", MATCH(Input[[#This Row],[X]],Output[X],0)),"") ->  | P136: =IFERROR(IF(Input[[#This Row],[X]]="","", MAX(IF(ISNUMBER($O$8:$O136),$B$8:$B136,""))),"") ->  | Q136: =IFERROR(IF(Input[[#This Row],[X]]="","", MIN(IF(ISNUMBER($O136:$O$999),$B136:$B$999,""))),"") ->  | R136: =IFERROR(IF(Input[[#This Row],[X]]="","", INDEX(Input[Y],MATCH(P136,Input[X],0))),"") ->  | S136: =IFERROR(IF(Input[[#This Row],[X]]="","", INDEX(Input[Y],MATCH(Q136,Input[X],0))),"") ->  | T136: =IFERROR(IF(Input[[#This Row],[X]]="","", IF(O136<>"",Input[[#This Row],[Y]], R136+(S136-R136)/(Q136-P136)*(Input[[#This Row],[X]]-P136) )),"") ->  | U136: =IFERROR(IF(Input[[#This Row],[X]]="","", (T136-Input[[#This Row],[Y]])^2),"") ->  | V136: =IFERROR(IF(Input[[#This Row],[X]]="","", (T136-Input[[#This Row],[Y]])),"") -> 
O137: =IFERROR(IF(Input[[#This Row],[X]]="","", MATCH(Input[[#This Row],[X]],Output[X],0)),"") ->  | P137: =IFERROR(IF(Input[[#This Row],[X]]="","", MAX(IF(ISNUMBER($O$8:$O137),$B$8:$B137,""))),"") ->  | Q137: =IFERROR(IF(Input[[#This Row],[X]]="","", MIN(IF(ISNUMBER($O137:$O$999),$B137:$B$999,""))),"") ->  | R137: =IFERROR(IF(Input[[#This Row],[X]]="","", INDEX(Input[Y],MATCH(P137,Input[X],0))),"") ->  | S137: =IFERROR(IF(Input[[#This Row],[X]]="","", INDEX(Input[Y],MATCH(Q137,Input[X],0))),"") ->  | T137: =IFERROR(IF(Input[[#This Row],[X]]="","", IF(O137<>"",Input[[#This Row],[Y]], R137+(S137-R137)/(Q137-P137)*(Input[[#This Row],[X]]-P137) )),"") ->  | U137: =IFERROR(IF(Input[[#This Row],[X]]="","", (T137-Input[[#This Row],[Y]])^2),"") ->  | V137: =IFERROR(IF(Input[[#This Row],[X]]="","", (T137-Input[[#This Row],[Y]])),"") -> 
O138: =IFERROR(IF(Input[[#This Row],[X]]="","", MATCH(Input[[#This Row],[X]],Output[X],0)),"") ->  | P138: =IFERROR(IF(Input[[#This Row],[X]]="","", MAX(IF(ISNUMBER($O$8:$O138),$B$8:$B138,""))),"") ->  | Q138: =IFERROR(IF(Input[[#This Row],[X]]="","", MIN(IF(ISNUMBER($O138:$O$999),$B138:$B$999,""))),"") ->  | R138: =IFERROR(IF(Input[[#This Row],[X]]="","", INDEX(Input[Y],MATCH(P138,Input[X],0))),"") ->  | S138: =IFERROR(IF(Input[[#This Row],[X]]="","", INDEX(Input[Y],MATCH(Q138,Input[X],0))),"") ->  | T138: =IFERROR(IF(Input[[#This Row],[X]]="","", IF(O138<>"",Input[[#This Row],[Y]], R138+(S138-R138)/(Q138-P138)*(Input[[#This Row],[X]]-P138) )),"") ->  | U138: =IFERROR(IF(Input[[#This Row],[X]]="","", (T138-Input[[#This Row],[Y]])^2),"") ->  | V138: =IFERROR(IF(Input[[#This Row],[X]]="","", (T138-Input[[#This Row],[Y]])),"") -> 
O139: =IFERROR(IF(Input[[#This Row],[X]]="","", MATCH(Input[[#This Row],[X]],Output[X],0)),"") ->  | P139: =IFERROR(IF(Input[[#This Row],[X]]="","", MAX(IF(ISNUMBER($O$8:$O139),$B$8:$B139,""))),"") ->  | Q139: =IFERROR(IF(Input[[#This Row],[X]]="","", MIN(IF(ISNUMBER($O139:$O$999),$B139:$B$999,""))),"") ->  | R139: =IFERROR(IF(Input[[#This Row],[X]]="","", INDEX(Input[Y],MATCH(P139,Input[X],0))),"") ->  | S139: =IFERROR(IF(Input[[#This Row],[X]]="","", INDEX(Input[Y],MATCH(Q139,Input[X],0))),"") ->  | T139: =IFERROR(IF(Input[[#This Row],[X]]="","", IF(O139<>"",Input[[#This Row],[Y]], R139+(S139-R139)/(Q139-P139)*(Input[[#This Row],[X]]-P139) )),"") ->  | U139: =IFERROR(IF(Input[[#This Row],[X]]="","", (T139-Input[[#This Row],[Y]])^2),"") ->  | V139: =IFERROR(IF(Input[[#This Row],[X]]="","", (T139-Input[[#This Row],[Y]])),"") -> 
O140: =IFERROR(IF(Input[[#This Row],[X]]="","", MATCH(Input[[#This Row],[X]],Output[X],0)),"") ->  | P140: =IFERROR(IF(Input[[#This Row],[X]]="","", MAX(IF(ISNUMBER($O$8:$O140),$B$8:$B140,""))),"") ->  | Q140: =IFERROR(IF(Input[[#This Row],[X]]="","", MIN(IF(ISNUMBER($O140:$O$999),$B140:$B$999,""))),"") ->  | R140: =IFERROR(IF(Input[[#This Row],[X]]="","", INDEX(Input[Y],MATCH(P140,Input[X],0))),"") ->  | S140: =IFERROR(IF(Input[[#This Row],[X]]="","", INDEX(Input[Y],MATCH(Q140,Input[X],0))),"") ->  | T140: =IFERROR(IF(Input[[#This Row],[X]]="","", IF(O140<>"",Input[[#This Row],[Y]], R140+(S140-R140)/(Q140-P140)*(Input[[#This Row],[X]]-P140) )),"") ->  | U140: =IFERROR(IF(Input[[#This Row],[X]]="","", (T140-Input[[#This Row],[Y]])^2),"") ->  | V140: =IFERROR(IF(Input[[#This Row],[X]]="","", (T140-Input[[#This Row],[Y]])),"") -> 
O141: =IFERROR(IF(Input[[#This Row],[X]]="","", MATCH(Input[[#This Row],[X]],Output[X],0)),"") ->  | P141: =IFERROR(IF(Input[[#This Row],[X]]="","", MAX(IF(ISNUMBER($O$8:$O141),$B$8:$B141,""))),"") ->  | Q141: =IFERROR(IF(Input[[#This Row],[X]]="","", MIN(IF(ISNUMBER($O141:$O$999),$B141:$B$999,""))),"") ->  | R141: =IFERROR(IF(Input[[#This Row],[X]]="","", INDEX(Input[Y],MATCH(P141,Input[X],0))),"") ->  | S141: =IFERROR(IF(Input[[#This Row],[X]]="","", INDEX(Input[Y],MATCH(Q141,Input[X],0))),"") ->  | T141: =IFERROR(IF(Input[[#This Row],[X]]="","", IF(O141<>"",Input[[#This Row],[Y]], R141+(S141-R141)/(Q141-P141)*(Input[[#This Row],[X]]-P141) )),"") ->  | U141: =IFERROR(IF(Input[[#This Row],[X]]="","", (T141-Input[[#This Row],[Y]])^2),"") ->  | V141: =IFERROR(IF(Input[[#This Row],[X]]="","", (T141-Input[[#This Row],[Y]])),"") -> 
O142: =IFERROR(IF(Input[[#This Row],[X]]="","", MATCH(Input[[#This Row],[X]],Output[X],0)),"") ->  | P142: =IFERROR(IF(Input[[#This Row],[X]]="","", MAX(IF(ISNUMBER($O$8:$O142),$B$8:$B142,""))),"") ->  | Q142: =IFERROR(IF(Input[[#This Row],[X]]="","", MIN(IF(ISNUMBER($O142:$O$999),$B142:$B$999,""))),"") ->  | R142: =IFERROR(IF(Input[[#This Row],[X]]="","", INDEX(Input[Y],MATCH(P142,Input[X],0))),"") ->  | S142: =IFERROR(IF(Input[[#This Row],[X]]="","", INDEX(Input[Y],MATCH(Q142,Input[X],0))),"") ->  | T142: =IFERROR(IF(Input[[#This Row],[X]]="","", IF(O142<>"",Input[[#This Row],[Y]], R142+(S142-R142)/(Q142-P142)*(Input[[#This Row],[X]]-P142) )),"") ->  | U142: =IFERROR(IF(Input[[#This Row],[X]]="","", (T142-Input[[#This Row],[Y]])^2),"") ->  | V142: =IFERROR(IF(Input[[#This Row],[X]]="","", (T142-Input[[#This Row],[Y]])),"") -> 
O143: =IFERROR(IF(Input[[#This Row],[X]]="","", MATCH(Input[[#This Row],[X]],Output[X],0)),"") ->  | P143: =IFERROR(IF(Input[[#This Row],[X]]="","", MAX(IF(ISNUMBER($O$8:$O143),$B$8:$B143,""))),"") ->  | Q143: =IFERROR(IF(Input[[#This Row],[X]]="","", MIN(IF(ISNUMBER($O143:$O$999),$B143:$B$999,""))),"") ->  | R143: =IFERROR(IF(Input[[#This Row],[X]]="","", INDEX(Input[Y],MATCH(P143,Input[X],0))),"") ->  | S143: =IFERROR(IF(Input[[#This Row],[X]]="","", INDEX(Input[Y],MATCH(Q143,Input[X],0))),"") ->  | T143: =IFERROR(IF(Input[[#This Row],[X]]="","", IF(O143<>"",Input[[#This Row],[Y]], R143+(S143-R143)/(Q143-P143)*(Input[[#This Row],[X]]-P143) )),"") ->  | U143: =IFERROR(IF(Input[[#This Row],[X]]="","", (T143-Input[[#This Row],[Y]])^2),"") ->  | V143: =IFERROR(IF(Input[[#This Row],[X]]="","", (T143-Input[[#This Row],[Y]])),"") -> 
O144: =IFERROR(IF(Input[[#This Row],[X]]="","", MATCH(Input[[#This Row],[X]],Output[X],0)),"") ->  | P144: =IFERROR(IF(Input[[#This Row],[X]]="","", MAX(IF(ISNUMBER($O$8:$O144),$B$8:$B144,""))),"") ->  | Q144: =IFERROR(IF(Input[[#This Row],[X]]="","", MIN(IF(ISNUMBER($O144:$O$999),$B144:$B$999,""))),"") ->  | R144: =IFERROR(IF(Input[[#This Row],[X]]="","", INDEX(Input[Y],MATCH(P144,Input[X],0))),"") ->  | S144: =IFERROR(IF(Input[[#This Row],[X]]="","", INDEX(Input[Y],MATCH(Q144,Input[X],0))),"") ->  | T144: =IFERROR(IF(Input[[#This Row],[X]]="","", IF(O144<>"",Input[[#This Row],[Y]], R144+(S144-R144)/(Q144-P144)*(Input[[#This Row],[X]]-P144) )),"") ->  | U144: =IFERROR(IF(Input[[#This Row],[X]]="","", (T144-Input[[#This Row],[Y]])^2),"") ->  | V144: =IFERROR(IF(Input[[#This Row],[X]]="","", (T144-Input[[#This Row],[Y]])),"") -> 
O145: =IFERROR(IF(Input[[#This Row],[X]]="","", MATCH(Input[[#This Row],[X]],Output[X],0)),"") ->  | P145: =IFERROR(IF(Input[[#This Row],[X]]="","", MAX(IF(ISNUMBER($O$8:$O145),$B$8:$B145,""))),"") ->  | Q145: =IFERROR(IF(Input[[#This Row],[X]]="","", MIN(IF(ISNUMBER($O145:$O$999),$B145:$B$999,""))),"") ->  | R145: =IFERROR(IF(Input[[#This Row],[X]]="","", INDEX(Input[Y],MATCH(P145,Input[X],0))),"") ->  | S145: =IFERROR(IF(Input[[#This Row],[X]]="","", INDEX(Input[Y],MATCH(Q145,Input[X],0))),"") ->  | T145: =IFERROR(IF(Input[[#This Row],[X]]="","", IF(O145<>"",Input[[#This Row],[Y]], R145+(S145-R145)/(Q145-P145)*(Input[[#This Row],[X]]-P145) )),"") ->  | U145: =IFERROR(IF(Input[[#This Row],[X]]="","", (T145-Input[[#This Row],[Y]])^2),"") ->  | V145: =IFERROR(IF(Input[[#This Row],[X]]="","", (T145-Input[[#This Row],[Y]])),"") -> 
O146: =IFERROR(IF(Input[[#This Row],[X]]="","", MATCH(Input[[#This Row],[X]],Output[X],0)),"") ->  | P146: =IFERROR(IF(Input[[#This Row],[X]]="","", MAX(IF(ISNUMBER($O$8:$O146),$B$8:$B146,""))),"") ->  | Q146: =IFERROR(IF(Input[[#This Row],[X]]="","", MIN(IF(ISNUMBER($O146:$O$999),$B146:$B$999,""))),"") ->  | R146: =IFERROR(IF(Input[[#This Row],[X]]="","", INDEX(Input[Y],MATCH(P146,Input[X],0))),"") ->  | S146: =IFERROR(IF(Input[[#This Row],[X]]="","", INDEX(Input[Y],MATCH(Q146,Input[X],0))),"") ->  | T146: =IFERROR(IF(Input[[#This Row],[X]]="","", IF(O146<>"",Input[[#This Row],[Y]], R146+(S146-R146)/(Q146-P146)*(Input[[#This Row],[X]]-P146) )),"") ->  | U146: =IFERROR(IF(Input[[#This Row],[X]]="","", (T146-Input[[#This Row],[Y]])^2),"") ->  | V146: =IFERROR(IF(Input[[#This Row],[X]]="","", (T146-Input[[#This Row],[Y]])),"") -> 
O147: =IFERROR(IF(Input[[#This Row],[X]]="","", MATCH(Input[[#This Row],[X]],Output[X],0)),"") ->  | P147: =IFERROR(IF(Input[[#This Row],[X]]="","", MAX(IF(ISNUMBER($O$8:$O147),$B$8:$B147,""))),"") ->  | Q147: =IFERROR(IF(Input[[#This Row],[X]]="","", MIN(IF(ISNUMBER($O147:$O$999),$B147:$B$999,""))),"") ->  | R147: =IFERROR(IF(Input[[#This Row],[X]]="","", INDEX(Input[Y],MATCH(P147,Input[X],0))),"") ->  | S147: =IFERROR(IF(Input[[#This Row],[X]]="","", INDEX(Input[Y],MATCH(Q147,Input[X],0))),"") ->  | T147: =IFERROR(IF(Input[[#This Row],[X]]="","", IF(O147<>"",Input[[#This Row],[Y]], R147+(S147-R147)/(Q147-P147)*(Input[[#This Row],[X]]-P147) )),"") ->  | U147: =IFERROR(IF(Input[[#This Row],[X]]="","", (T147-Input[[#This Row],[Y]])^2),"") ->  | V147: =IFERROR(IF(Input[[#This Row],[X]]="","", (T147-Input[[#This Row],[Y]])),"") -> 
O148: =IFERROR(IF(Input[[#This Row],[X]]="","", MATCH(Input[[#This Row],[X]],Output[X],0)),"") ->  | P148: =IFERROR(IF(Input[[#This Row],[X]]="","", MAX(IF(ISNUMBER($O$8:$O148),$B$8:$B148,""))),"") ->  | Q148: =IFERROR(IF(Input[[#This Row],[X]]="","", MIN(IF(ISNUMBER($O148:$O$999),$B148:$B$999,""))),"") ->  | R148: =IFERROR(IF(Input[[#This Row],[X]]="","", INDEX(Input[Y],MATCH(P148,Input[X],0))),"") ->  | S148: =IFERROR(IF(Input[[#This Row],[X]]="","", INDEX(Input[Y],MATCH(Q148,Input[X],0))),"") ->  | T148: =IFERROR(IF(Input[[#This Row],[X]]="","", IF(O148<>"",Input[[#This Row],[Y]], R148+(S148-R148)/(Q148-P148)*(Input[[#This Row],[X]]-P148) )),"") ->  | U148: =IFERROR(IF(Input[[#This Row],[X]]="","", (T148-Input[[#This Row],[Y]])^2),"") ->  | V148: =IFERROR(IF(Input[[#This Row],[X]]="","", (T148-Input[[#This Row],[Y]])),"") -> 
O149: =IFERROR(IF(Input[[#This Row],[X]]="","", MATCH(Input[[#This Row],[X]],Output[X],0)),"") ->  | P149: =IFERROR(IF(Input[[#This Row],[X]]="","", MAX(IF(ISNUMBER($O$8:$O149),$B$8:$B149,""))),"") ->  | Q149: =IFERROR(IF(Input[[#This Row],[X]]="","", MIN(IF(ISNUMBER($O149:$O$999),$B149:$B$999,""))),"") ->  | R149: =IFERROR(IF(Input[[#This Row],[X]]="","", INDEX(Input[Y],MATCH(P149,Input[X],0))),"") ->  | S149: =IFERROR(IF(Input[[#This Row],[X]]="","", INDEX(Input[Y],MATCH(Q149,Input[X],0))),"") ->  | T149: =IFERROR(IF(Input[[#This Row],[X]]="","", IF(O149<>"",Input[[#This Row],[Y]], R149+(S149-R149)/(Q149-P149)*(Input[[#This Row],[X]]-P149) )),"") ->  | U149: =IFERROR(IF(Input[[#This Row],[X]]="","", (T149-Input[[#This Row],[Y]])^2),"") ->  | V149: =IFERROR(IF(Input[[#This Row],[X]]="","", (T149-Input[[#This Row],[Y]])),"") -> 
O150: =IFERROR(IF(Input[[#This Row],[X]]="","", MATCH(Input[[#This Row],[X]],Output[X],0)),"") ->  | P150: =IFERROR(IF(Input[[#This Row],[X]]="","", MAX(IF(ISNUMBER($O$8:$O150),$B$8:$B150,""))),"") ->  | Q150: =IFERROR(IF(Input[[#This Row],[X]]="","", MIN(IF(ISNUMBER($O150:$O$999),$B150:$B$999,""))),"") ->  | R150: =IFERROR(IF(Input[[#This Row],[X]]="","", INDEX(Input[Y],MATCH(P150,Input[X],0))),"") ->  | S150: =IFERROR(IF(Input[[#This Row],[X]]="","", INDEX(Input[Y],MATCH(Q150,Input[X],0))),"") ->  | T150: =IFERROR(IF(Input[[#This Row],[X]]="","", IF(O150<>"",Input[[#This Row],[Y]], R150+(S150-R150)/(Q150-P150)*(Input[[#This Row],[X]]-P150) )),"") ->  | U150: =IFERROR(IF(Input[[#This Row],[X]]="","", (T150-Input[[#This Row],[Y]])^2),"") ->  | V150: =IFERROR(IF(Input[[#This Row],[X]]="","", (T150-Input[[#This Row],[Y]])),"") -> 
O151: =IFERROR(IF(Input[[#This Row],[X]]="","", MATCH(Input[[#This Row],[X]],Output[X],0)),"") ->  | P151: =IFERROR(IF(Input[[#This Row],[X]]="","", MAX(IF(ISNUMBER($O$8:$O151),$B$8:$B151,""))),"") ->  | Q151: =IFERROR(IF(Input[[#This Row],[X]]="","", MIN(IF(ISNUMBER($O151:$O$999),$B151:$B$999,""))),"") ->  | R151: =IFERROR(IF(Input[[#This Row],[X]]="","", INDEX(Input[Y],MATCH(P151,Input[X],0))),"") ->  | S151: =IFERROR(IF(Input[[#This Row],[X]]="","", INDEX(Input[Y],MATCH(Q151,Input[X],0))),"") ->  | T151: =IFERROR(IF(Input[[#This Row],[X]]="","", IF(O151<>"",Input[[#This Row],[Y]], R151+(S151-R151)/(Q151-P151)*(Input[[#This Row],[X]]-P151) )),"") ->  | U151: =IFERROR(IF(Input[[#This Row],[X]]="","", (T151-Input[[#This Row],[Y]])^2),"") ->  | V151: =IFERROR(IF(Input[[#This Row],[X]]="","", (T151-Input[[#This Row],[Y]])),"") -> 
O152: =IFERROR(IF(Input[[#This Row],[X]]="","", MATCH(Input[[#This Row],[X]],Output[X],0)),"") ->  | P152: =IFERROR(IF(Input[[#This Row],[X]]="","", MAX(IF(ISNUMBER($O$8:$O152),$B$8:$B152,""))),"") ->  | Q152: =IFERROR(IF(Input[[#This Row],[X]]="","", MIN(IF(ISNUMBER($O152:$O$999),$B152:$B$999,""))),"") ->  | R152: =IFERROR(IF(Input[[#This Row],[X]]="","", INDEX(Input[Y],MATCH(P152,Input[X],0))),"") ->  | S152: =IFERROR(IF(Input[[#This Row],[X]]="","", INDEX(Input[Y],MATCH(Q152,Input[X],0))),"") ->  | T152: =IFERROR(IF(Input[[#This Row],[X]]="","", IF(O152<>"",Input[[#This Row],[Y]], R152+(S152-R152)/(Q152-P152)*(Input[[#This Row],[X]]-P152) )),"") ->  | U152: =IFERROR(IF(Input[[#This Row],[X]]="","", (T152-Input[[#This Row],[Y]])^2),"") ->  | V152: =IFERROR(IF(Input[[#This Row],[X]]="","", (T152-Input[[#This Row],[Y]])),"") -> 
O153: =IFERROR(IF(Input[[#This Row],[X]]="","", MATCH(Input[[#This Row],[X]],Output[X],0)),"") ->  | P153: =IFERROR(IF(Input[[#This Row],[X]]="","", MAX(IF(ISNUMBER($O$8:$O153),$B$8:$B153,""))),"") ->  | Q153: =IFERROR(IF(Input[[#This Row],[X]]="","", MIN(IF(ISNUMBER($O153:$O$999),$B153:$B$999,""))),"") ->  | R153: =IFERROR(IF(Input[[#This Row],[X]]="","", INDEX(Input[Y],MATCH(P153,Input[X],0))),"") ->  | S153: =IFERROR(IF(Input[[#This Row],[X]]="","", INDEX(Input[Y],MATCH(Q153,Input[X],0))),"") ->  | T153: =IFERROR(IF(Input[[#This Row],[X]]="","", IF(O153<>"",Input[[#This Row],[Y]], R153+(S153-R153)/(Q153-P153)*(Input[[#This Row],[X]]-P153) )),"") ->  | U153: =IFERROR(IF(Input[[#This Row],[X]]="","", (T153-Input[[#This Row],[Y]])^2),"") ->  | V153: =IFERROR(IF(Input[[#This Row],[X]]="","", (T153-Input[[#This Row],[Y]])),"") -> 
O154: =IFERROR(IF(Input[[#This Row],[X]]="","", MATCH(Input[[#This Row],[X]],Output[X],0)),"") ->  | P154: =IFERROR(IF(Input[[#This Row],[X]]="","", MAX(IF(ISNUMBER($O$8:$O154),$B$8:$B154,""))),"") ->  | Q154: =IFERROR(IF(Input[[#This Row],[X]]="","", MIN(IF(ISNUMBER($O154:$O$999),$B154:$B$999,""))),"") ->  | R154: =IFERROR(IF(Input[[#This Row],[X]]="","", INDEX(Input[Y],MATCH(P154,Input[X],0))),"") ->  | S154: =IFERROR(IF(Input[[#This Row],[X]]="","", INDEX(Input[Y],MATCH(Q154,Input[X],0))),"") ->  | T154: =IFERROR(IF(Input[[#This Row],[X]]="","", IF(O154<>"",Input[[#This Row],[Y]], R154+(S154-R154)/(Q154-P154)*(Input[[#This Row],[X]]-P154) )),"") ->  | U154: =IFERROR(IF(Input[[#This Row],[X]]="","", (T154-Input[[#This Row],[Y]])^2),"") ->  | V154: =IFERROR(IF(Input[[#This Row],[X]]="","", (T154-Input[[#This Row],[Y]])),"") -> 
O155: =IFERROR(IF(Input[[#This Row],[X]]="","", MATCH(Input[[#This Row],[X]],Output[X],0)),"") ->  | P155: =IFERROR(IF(Input[[#This Row],[X]]="","", MAX(IF(ISNUMBER($O$8:$O155),$B$8:$B155,""))),"") ->  | Q155: =IFERROR(IF(Input[[#This Row],[X]]="","", MIN(IF(ISNUMBER($O155:$O$999),$B155:$B$999,""))),"") ->  | R155: =IFERROR(IF(Input[[#This Row],[X]]="","", INDEX(Input[Y],MATCH(P155,Input[X],0))),"") ->  | S155: =IFERROR(IF(Input[[#This Row],[X]]="","", INDEX(Input[Y],MATCH(Q155,Input[X],0))),"") ->  | T155: =IFERROR(IF(Input[[#This Row],[X]]="","", IF(O155<>"",Input[[#This Row],[Y]], R155+(S155-R155)/(Q155-P155)*(Input[[#This Row],[X]]-P155) )),"") ->  | U155: =IFERROR(IF(Input[[#This Row],[X]]="","", (T155-Input[[#This Row],[Y]])^2),"") ->  | V155: =IFERROR(IF(Input[[#This Row],[X]]="","", (T155-Input[[#This Row],[Y]])),"") -> 
O156: =IFERROR(IF(Input[[#This Row],[X]]="","", MATCH(Input[[#This Row],[X]],Output[X],0)),"") ->  | P156: =IFERROR(IF(Input[[#This Row],[X]]="","", MAX(IF(ISNUMBER($O$8:$O156),$B$8:$B156,""))),"") ->  | Q156: =IFERROR(IF(Input[[#This Row],[X]]="","", MIN(IF(ISNUMBER($O156:$O$999),$B156:$B$999,""))),"") ->  | R156: =IFERROR(IF(Input[[#This Row],[X]]="","", INDEX(Input[Y],MATCH(P156,Input[X],0))),"") ->  | S156: =IFERROR(IF(Input[[#This Row],[X]]="","", INDEX(Input[Y],MATCH(Q156,Input[X],0))),"") ->  | T156: =IFERROR(IF(Input[[#This Row],[X]]="","", IF(O156<>"",Input[[#This Row],[Y]], R156+(S156-R156)/(Q156-P156)*(Input[[#This Row],[X]]-P156) )),"") ->  | U156: =IFERROR(IF(Input[[#This Row],[X]]="","", (T156-Input[[#This Row],[Y]])^2),"") ->  | V156: =IFERROR(IF(Input[[#This Row],[X]]="","", (T156-Input[[#This Row],[Y]])),"") -> 
O157: =IFERROR(IF(Input[[#This Row],[X]]="","", MATCH(Input[[#This Row],[X]],Output[X],0)),"") ->  | P157: =IFERROR(IF(Input[[#This Row],[X]]="","", MAX(IF(ISNUMBER($O$8:$O157),$B$8:$B157,""))),"") ->  | Q157: =IFERROR(IF(Input[[#This Row],[X]]="","", MIN(IF(ISNUMBER($O157:$O$999),$B157:$B$999,""))),"") ->  | R157: =IFERROR(IF(Input[[#This Row],[X]]="","", INDEX(Input[Y],MATCH(P157,Input[X],0))),"") ->  | S157: =IFERROR(IF(Input[[#This Row],[X]]="","", INDEX(Input[Y],MATCH(Q157,Input[X],0))),"") ->  | T157: =IFERROR(IF(Input[[#This Row],[X]]="","", IF(O157<>"",Input[[#This Row],[Y]], R157+(S157-R157)/(Q157-P157)*(Input[[#This Row],[X]]-P157) )),"") ->  | U157: =IFERROR(IF(Input[[#This Row],[X]]="","", (T157-Input[[#This Row],[Y]])^2),"") ->  | V157: =IFERROR(IF(Input[[#This Row],[X]]="","", (T157-Input[[#This Row],[Y]])),"") -> 
O158: =IFERROR(IF(Input[[#This Row],[X]]="","", MATCH(Input[[#This Row],[X]],Output[X],0)),"") ->  | P158: =IFERROR(IF(Input[[#This Row],[X]]="","", MAX(IF(ISNUMBER($O$8:$O158),$B$8:$B158,""))),"") ->  | Q158: =IFERROR(IF(Input[[#This Row],[X]]="","", MIN(IF(ISNUMBER($O158:$O$999),$B158:$B$999,""))),"") ->  | R158: =IFERROR(IF(Input[[#This Row],[X]]="","", INDEX(Input[Y],MATCH(P158,Input[X],0))),"") ->  | S158: =IFERROR(IF(Input[[#This Row],[X]]="","", INDEX(Input[Y],MATCH(Q158,Input[X],0))),"") ->  | T158: =IFERROR(IF(Input[[#This Row],[X]]="","", IF(O158<>"",Input[[#This Row],[Y]], R158+(S158-R158)/(Q158-P158)*(Input[[#This Row],[X]]-P158) )),"") ->  | U158: =IFERROR(IF(Input[[#This Row],[X]]="","", (T158-Input[[#This Row],[Y]])^2),"") ->  | V158: =IFERROR(IF(Input[[#This Row],[X]]="","", (T158-Input[[#This Row],[Y]])),"") -> 
O159: =IFERROR(IF(Input[[#This Row],[X]]="","", MATCH(Input[[#This Row],[X]],Output[X],0)),"") ->  | P159: =IFERROR(IF(Input[[#This Row],[X]]="","", MAX(IF(ISNUMBER($O$8:$O159),$B$8:$B159,""))),"") ->  | Q159: =IFERROR(IF(Input[[#This Row],[X]]="","", MIN(IF(ISNUMBER($O159:$O$999),$B159:$B$999,""))),"") ->  | R159: =IFERROR(IF(Input[[#This Row],[X]]="","", INDEX(Input[Y],MATCH(P159,Input[X],0))),"") ->  | S159: =IFERROR(IF(Input[[#This Row],[X]]="","", INDEX(Input[Y],MATCH(Q159,Input[X],0))),"") ->  | T159: =IFERROR(IF(Input[[#This Row],[X]]="","", IF(O159<>"",Input[[#This Row],[Y]], R159+(S159-R159)/(Q159-P159)*(Input[[#This Row],[X]]-P159) )),"") ->  | U159: =IFERROR(IF(Input[[#This Row],[X]]="","", (T159-Input[[#This Row],[Y]])^2),"") ->  | V159: =IFERROR(IF(Input[[#This Row],[X]]="","", (T159-Input[[#This Row],[Y]])),"") -> 
O160: =IFERROR(IF(Input[[#This Row],[X]]="","", MATCH(Input[[#This Row],[X]],Output[X],0)),"") ->  | P160: =IFERROR(IF(Input[[#This Row],[X]]="","", MAX(IF(ISNUMBER($O$8:$O160),$B$8:$B160,""))),"") ->  | Q160: =IFERROR(IF(Input[[#This Row],[X]]="","", MIN(IF(ISNUMBER($O160:$O$999),$B160:$B$999,""))),"") ->  | R160: =IFERROR(IF(Input[[#This Row],[X]]="","", INDEX(Input[Y],MATCH(P160,Input[X],0))),"") ->  | S160: =IFERROR(IF(Input[[#This Row],[X]]="","", INDEX(Input[Y],MATCH(Q160,Input[X],0))),"") ->  | T160: =IFERROR(IF(Input[[#This Row],[X]]="","", IF(O160<>"",Input[[#This Row],[Y]], R160+(S160-R160)/(Q160-P160)*(Input[[#This Row],[X]]-P160) )),"") ->  | U160: =IFERROR(IF(Input[[#This Row],[X]]="","", (T160-Input[[#This Row],[Y]])^2),"") ->  | V160: =IFERROR(IF(Input[[#This Row],[X]]="","", (T160-Input[[#This Row],[Y]])),"") -> 
O161: =IFERROR(IF(Input[[#This Row],[X]]="","", MATCH(Input[[#This Row],[X]],Output[X],0)),"") ->  | P161: =IFERROR(IF(Input[[#This Row],[X]]="","", MAX(IF(ISNUMBER($O$8:$O161),$B$8:$B161,""))),"") ->  | Q161: =IFERROR(IF(Input[[#This Row],[X]]="","", MIN(IF(ISNUMBER($O161:$O$999),$B161:$B$999,""))),"") ->  | R161: =IFERROR(IF(Input[[#This Row],[X]]="","", INDEX(Input[Y],MATCH(P161,Input[X],0))),"") ->  | S161: =IFERROR(IF(Input[[#This Row],[X]]="","", INDEX(Input[Y],MATCH(Q161,Input[X],0))),"") ->  | T161: =IFERROR(IF(Input[[#This Row],[X]]="","", IF(O161<>"",Input[[#This Row],[Y]], R161+(S161-R161)/(Q161-P161)*(Input[[#This Row],[X]]-P161) )),"") ->  | U161: =IFERROR(IF(Input[[#This Row],[X]]="","", (T161-Input[[#This Row],[Y]])^2),"") ->  | V161: =IFERROR(IF(Input[[#This Row],[X]]="","", (T161-Input[[#This Row],[Y]])),"") -> 
O162: =IFERROR(IF(Input[[#This Row],[X]]="","", MATCH(Input[[#This Row],[X]],Output[X],0)),"") ->  | P162: =IFERROR(IF(Input[[#This Row],[X]]="","", MAX(IF(ISNUMBER($O$8:$O162),$B$8:$B162,""))),"") ->  | Q162: =IFERROR(IF(Input[[#This Row],[X]]="","", MIN(IF(ISNUMBER($O162:$O$999),$B162:$B$999,""))),"") ->  | R162: =IFERROR(IF(Input[[#This Row],[X]]="","", INDEX(Input[Y],MATCH(P162,Input[X],0))),"") ->  | S162: =IFERROR(IF(Input[[#This Row],[X]]="","", INDEX(Input[Y],MATCH(Q162,Input[X],0))),"") ->  | T162: =IFERROR(IF(Input[[#This Row],[X]]="","", IF(O162<>"",Input[[#This Row],[Y]], R162+(S162-R162)/(Q162-P162)*(Input[[#This Row],[X]]-P162) )),"") ->  | U162: =IFERROR(IF(Input[[#This Row],[X]]="","", (T162-Input[[#This Row],[Y]])^2),"") ->  | V162: =IFERROR(IF(Input[[#This Row],[X]]="","", (T162-Input[[#This Row],[Y]])),"") -> 
O163: =IFERROR(IF(Input[[#This Row],[X]]="","", MATCH(Input[[#This Row],[X]],Output[X],0)),"") ->  | P163: =IFERROR(IF(Input[[#This Row],[X]]="","", MAX(IF(ISNUMBER($O$8:$O163),$B$8:$B163,""))),"") ->  | Q163: =IFERROR(IF(Input[[#This Row],[X]]="","", MIN(IF(ISNUMBER($O163:$O$999),$B163:$B$999,""))),"") ->  | R163: =IFERROR(IF(Input[[#This Row],[X]]="","", INDEX(Input[Y],MATCH(P163,Input[X],0))),"") ->  | S163: =IFERROR(IF(Input[[#This Row],[X]]="","", INDEX(Input[Y],MATCH(Q163,Input[X],0))),"") ->  | T163: =IFERROR(IF(Input[[#This Row],[X]]="","", IF(O163<>"",Input[[#This Row],[Y]], R163+(S163-R163)/(Q163-P163)*(Input[[#This Row],[X]]-P163) )),"") ->  | U163: =IFERROR(IF(Input[[#This Row],[X]]="","", (T163-Input[[#This Row],[Y]])^2),"") ->  | V163: =IFERROR(IF(Input[[#This Row],[X]]="","", (T163-Input[[#This Row],[Y]])),"") -> 
O164: =IFERROR(IF(Input[[#This Row],[X]]="","", MATCH(Input[[#This Row],[X]],Output[X],0)),"") ->  | P164: =IFERROR(IF(Input[[#This Row],[X]]="","", MAX(IF(ISNUMBER($O$8:$O164),$B$8:$B164,""))),"") ->  | Q164: =IFERROR(IF(Input[[#This Row],[X]]="","", MIN(IF(ISNUMBER($O164:$O$999),$B164:$B$999,""))),"") ->  | R164: =IFERROR(IF(Input[[#This Row],[X]]="","", INDEX(Input[Y],MATCH(P164,Input[X],0))),"") ->  | S164: =IFERROR(IF(Input[[#This Row],[X]]="","", INDEX(Input[Y],MATCH(Q164,Input[X],0))),"") ->  | T164: =IFERROR(IF(Input[[#This Row],[X]]="","", IF(O164<>"",Input[[#This Row],[Y]], R164+(S164-R164)/(Q164-P164)*(Input[[#This Row],[X]]-P164) )),"") ->  | U164: =IFERROR(IF(Input[[#This Row],[X]]="","", (T164-Input[[#This Row],[Y]])^2),"") ->  | V164: =IFERROR(IF(Input[[#This Row],[X]]="","", (T164-Input[[#This Row],[Y]])),"") -> 
O165: =IFERROR(IF(Input[[#This Row],[X]]="","", MATCH(Input[[#This Row],[X]],Output[X],0)),"") ->  | P165: =IFERROR(IF(Input[[#This Row],[X]]="","", MAX(IF(ISNUMBER($O$8:$O165),$B$8:$B165,""))),"") ->  | Q165: =IFERROR(IF(Input[[#This Row],[X]]="","", MIN(IF(ISNUMBER($O165:$O$999),$B165:$B$999,""))),"") ->  | R165: =IFERROR(IF(Input[[#This Row],[X]]="","", INDEX(Input[Y],MATCH(P165,Input[X],0))),"") ->  | S165: =IFERROR(IF(Input[[#This Row],[X]]="","", INDEX(Input[Y],MATCH(Q165,Input[X],0))),"") ->  | T165: =IFERROR(IF(Input[[#This Row],[X]]="","", IF(O165<>"",Input[[#This Row],[Y]], R165+(S165-R165)/(Q165-P165)*(Input[[#This Row],[X]]-P165) )),"") ->  | U165: =IFERROR(IF(Input[[#This Row],[X]]="","", (T165-Input[[#This Row],[Y]])^2),"") ->  | V165: =IFERROR(IF(Input[[#This Row],[X]]="","", (T165-Input[[#This Row],[Y]])),"") -> 
O166: =IFERROR(IF(Input[[#This Row],[X]]="","", MATCH(Input[[#This Row],[X]],Output[X],0)),"") ->  | P166: =IFERROR(IF(Input[[#This Row],[X]]="","", MAX(IF(ISNUMBER($O$8:$O166),$B$8:$B166,""))),"") ->  | Q166: =IFERROR(IF(Input[[#This Row],[X]]="","", MIN(IF(ISNUMBER($O166:$O$999),$B166:$B$999,""))),"") ->  | R166: =IFERROR(IF(Input[[#This Row],[X]]="","", INDEX(Input[Y],MATCH(P166,Input[X],0))),"") ->  | S166: =IFERROR(IF(Input[[#This Row],[X]]="","", INDEX(Input[Y],MATCH(Q166,Input[X],0))),"") ->  | T166: =IFERROR(IF(Input[[#This Row],[X]]="","", IF(O166<>"",Input[[#This Row],[Y]], R166+(S166-R166)/(Q166-P166)*(Input[[#This Row],[X]]-P166) )),"") ->  | U166: =IFERROR(IF(Input[[#This Row],[X]]="","", (T166-Input[[#This Row],[Y]])^2),"") ->  | V166: =IFERROR(IF(Input[[#This Row],[X]]="","", (T166-Input[[#This Row],[Y]])),"") -> 
O167: =IFERROR(IF(Input[[#This Row],[X]]="","", MATCH(Input[[#This Row],[X]],Output[X],0)),"") ->  | P167: =IFERROR(IF(Input[[#This Row],[X]]="","", MAX(IF(ISNUMBER($O$8:$O167),$B$8:$B167,""))),"") ->  | Q167: =IFERROR(IF(Input[[#This Row],[X]]="","", MIN(IF(ISNUMBER($O167:$O$999),$B167:$B$999,""))),"") ->  | R167: =IFERROR(IF(Input[[#This Row],[X]]="","", INDEX(Input[Y],MATCH(P167,Input[X],0))),"") ->  | S167: =IFERROR(IF(Input[[#This Row],[X]]="","", INDEX(Input[Y],MATCH(Q167,Input[X],0))),"") ->  | T167: =IFERROR(IF(Input[[#This Row],[X]]="","", IF(O167<>"",Input[[#This Row],[Y]], R167+(S167-R167)/(Q167-P167)*(Input[[#This Row],[X]]-P167) )),"") ->  | U167: =IFERROR(IF(Input[[#This Row],[X]]="","", (T167-Input[[#This Row],[Y]])^2),"") ->  | V167: =IFERROR(IF(Input[[#This Row],[X]]="","", (T167-Input[[#This Row],[Y]])),"") -> 
O168: =IFERROR(IF(Input[[#This Row],[X]]="","", MATCH(Input[[#This Row],[X]],Output[X],0)),"") ->  | P168: =IFERROR(IF(Input[[#This Row],[X]]="","", MAX(IF(ISNUMBER($O$8:$O168),$B$8:$B168,""))),"") ->  | Q168: =IFERROR(IF(Input[[#This Row],[X]]="","", MIN(IF(ISNUMBER($O168:$O$999),$B168:$B$999,""))),"") ->  | R168: =IFERROR(IF(Input[[#This Row],[X]]="","", INDEX(Input[Y],MATCH(P168,Input[X],0))),"") ->  | S168: =IFERROR(IF(Input[[#This Row],[X]]="","", INDEX(Input[Y],MATCH(Q168,Input[X],0))),"") ->  | T168: =IFERROR(IF(Input[[#This Row],[X]]="","", IF(O168<>"",Input[[#This Row],[Y]], R168+(S168-R168)/(Q168-P168)*(Input[[#This Row],[X]]-P168) )),"") ->  | U168: =IFERROR(IF(Input[[#This Row],[X]]="","", (T168-Input[[#This Row],[Y]])^2),"") ->  | V168: =IFERROR(IF(Input[[#This Row],[X]]="","", (T168-Input[[#This Row],[Y]])),"") -> 
O169: =IFERROR(IF(Input[[#This Row],[X]]="","", MATCH(Input[[#This Row],[X]],Output[X],0)),"") ->  | P169: =IFERROR(IF(Input[[#This Row],[X]]="","", MAX(IF(ISNUMBER($O$8:$O169),$B$8:$B169,""))),"") ->  | Q169: =IFERROR(IF(Input[[#This Row],[X]]="","", MIN(IF(ISNUMBER($O169:$O$999),$B169:$B$999,""))),"") ->  | R169: =IFERROR(IF(Input[[#This Row],[X]]="","", INDEX(Input[Y],MATCH(P169,Input[X],0))),"") ->  | S169: =IFERROR(IF(Input[[#This Row],[X]]="","", INDEX(Input[Y],MATCH(Q169,Input[X],0))),"") ->  | T169: =IFERROR(IF(Input[[#This Row],[X]]="","", IF(O169<>"",Input[[#This Row],[Y]], R169+(S169-R169)/(Q169-P169)*(Input[[#This Row],[X]]-P169) )),"") ->  | U169: =IFERROR(IF(Input[[#This Row],[X]]="","", (T169-Input[[#This Row],[Y]])^2),"") ->  | V169: =IFERROR(IF(Input[[#This Row],[X]]="","", (T169-Input[[#This Row],[Y]])),"") -> 
O170: =IFERROR(IF(Input[[#This Row],[X]]="","", MATCH(Input[[#This Row],[X]],Output[X],0)),"") ->  | P170: =IFERROR(IF(Input[[#This Row],[X]]="","", MAX(IF(ISNUMBER($O$8:$O170),$B$8:$B170,""))),"") ->  | Q170: =IFERROR(IF(Input[[#This Row],[X]]="","", MIN(IF(ISNUMBER($O170:$O$999),$B170:$B$999,""))),"") ->  | R170: =IFERROR(IF(Input[[#This Row],[X]]="","", INDEX(Input[Y],MATCH(P170,Input[X],0))),"") ->  | S170: =IFERROR(IF(Input[[#This Row],[X]]="","", INDEX(Input[Y],MATCH(Q170,Input[X],0))),"") ->  | T170: =IFERROR(IF(Input[[#This Row],[X]]="","", IF(O170<>"",Input[[#This Row],[Y]], R170+(S170-R170)/(Q170-P170)*(Input[[#This Row],[X]]-P170) )),"") ->  | U170: =IFERROR(IF(Input[[#This Row],[X]]="","", (T170-Input[[#This Row],[Y]])^2),"") ->  | V170: =IFERROR(IF(Input[[#This Row],[X]]="","", (T170-Input[[#This Row],[Y]])),"") -> 
O171: =IFERROR(IF(Input[[#This Row],[X]]="","", MATCH(Input[[#This Row],[X]],Output[X],0)),"") ->  | P171: =IFERROR(IF(Input[[#This Row],[X]]="","", MAX(IF(ISNUMBER($O$8:$O171),$B$8:$B171,""))),"") ->  | Q171: =IFERROR(IF(Input[[#This Row],[X]]="","", MIN(IF(ISNUMBER($O171:$O$999),$B171:$B$999,""))),"") ->  | R171: =IFERROR(IF(Input[[#This Row],[X]]="","", INDEX(Input[Y],MATCH(P171,Input[X],0))),"") ->  | S171: =IFERROR(IF(Input[[#This Row],[X]]="","", INDEX(Input[Y],MATCH(Q171,Input[X],0))),"") ->  | T171: =IFERROR(IF(Input[[#This Row],[X]]="","", IF(O171<>"",Input[[#This Row],[Y]], R171+(S171-R171)/(Q171-P171)*(Input[[#This Row],[X]]-P171) )),"") ->  | U171: =IFERROR(IF(Input[[#This Row],[X]]="","", (T171-Input[[#This Row],[Y]])^2),"") ->  | V171: =IFERROR(IF(Input[[#This Row],[X]]="","", (T171-Input[[#This Row],[Y]])),"") -> 
O172: =IFERROR(IF(Input[[#This Row],[X]]="","", MATCH(Input[[#This Row],[X]],Output[X],0)),"") ->  | P172: =IFERROR(IF(Input[[#This Row],[X]]="","", MAX(IF(ISNUMBER($O$8:$O172),$B$8:$B172,""))),"") ->  | Q172: =IFERROR(IF(Input[[#This Row],[X]]="","", MIN(IF(ISNUMBER($O172:$O$999),$B172:$B$999,""))),"") ->  | R172: =IFERROR(IF(Input[[#This Row],[X]]="","", INDEX(Input[Y],MATCH(P172,Input[X],0))),"") ->  | S172: =IFERROR(IF(Input[[#This Row],[X]]="","", INDEX(Input[Y],MATCH(Q172,Input[X],0))),"") ->  | T172: =IFERROR(IF(Input[[#This Row],[X]]="","", IF(O172<>"",Input[[#This Row],[Y]], R172+(S172-R172)/(Q172-P172)*(Input[[#This Row],[X]]-P172) )),"") ->  | U172: =IFERROR(IF(Input[[#This Row],[X]]="","", (T172-Input[[#This Row],[Y]])^2),"") ->  | V172: =IFERROR(IF(Input[[#This Row],[X]]="","", (T172-Input[[#This Row],[Y]])),"") -> 
O173: =IFERROR(IF(Input[[#This Row],[X]]="","", MATCH(Input[[#This Row],[X]],Output[X],0)),"") ->  | P173: =IFERROR(IF(Input[[#This Row],[X]]="","", MAX(IF(ISNUMBER($O$8:$O173),$B$8:$B173,""))),"") ->  | Q173: =IFERROR(IF(Input[[#This Row],[X]]="","", MIN(IF(ISNUMBER($O173:$O$999),$B173:$B$999,""))),"") ->  | R173: =IFERROR(IF(Input[[#This Row],[X]]="","", INDEX(Input[Y],MATCH(P173,Input[X],0))),"") ->  | S173: =IFERROR(IF(Input[[#This Row],[X]]="","", INDEX(Input[Y],MATCH(Q173,Input[X],0))),"") ->  | T173: =IFERROR(IF(Input[[#This Row],[X]]="","", IF(O173<>"",Input[[#This Row],[Y]], R173+(S173-R173)/(Q173-P173)*(Input[[#This Row],[X]]-P173) )),"") ->  | U173: =IFERROR(IF(Input[[#This Row],[X]]="","", (T173-Input[[#This Row],[Y]])^2),"") ->  | V173: =IFERROR(IF(Input[[#This Row],[X]]="","", (T173-Input[[#This Row],[Y]])),"") -> 
O174: =IFERROR(IF(Input[[#This Row],[X]]="","", MATCH(Input[[#This Row],[X]],Output[X],0)),"") ->  | P174: =IFERROR(IF(Input[[#This Row],[X]]="","", MAX(IF(ISNUMBER($O$8:$O174),$B$8:$B174,""))),"") ->  | Q174: =IFERROR(IF(Input[[#This Row],[X]]="","", MIN(IF(ISNUMBER($O174:$O$999),$B174:$B$999,""))),"") ->  | R174: =IFERROR(IF(Input[[#This Row],[X]]="","", INDEX(Input[Y],MATCH(P174,Input[X],0))),"") ->  | S174: =IFERROR(IF(Input[[#This Row],[X]]="","", INDEX(Input[Y],MATCH(Q174,Input[X],0))),"") ->  | T174: =IFERROR(IF(Input[[#This Row],[X]]="","", IF(O174<>"",Input[[#This Row],[Y]], R174+(S174-R174)/(Q174-P174)*(Input[[#This Row],[X]]-P174) )),"") ->  | U174: =IFERROR(IF(Input[[#This Row],[X]]="","", (T174-Input[[#This Row],[Y]])^2),"") ->  | V174: =IFERROR(IF(Input[[#This Row],[X]]="","", (T174-Input[[#This Row],[Y]])),"") -> 
O175: =IFERROR(IF(Input[[#This Row],[X]]="","", MATCH(Input[[#This Row],[X]],Output[X],0)),"") ->  | P175: =IFERROR(IF(Input[[#This Row],[X]]="","", MAX(IF(ISNUMBER($O$8:$O175),$B$8:$B175,""))),"") ->  | Q175: =IFERROR(IF(Input[[#This Row],[X]]="","", MIN(IF(ISNUMBER($O175:$O$999),$B175:$B$999,""))),"") ->  | R175: =IFERROR(IF(Input[[#This Row],[X]]="","", INDEX(Input[Y],MATCH(P175,Input[X],0))),"") ->  | S175: =IFERROR(IF(Input[[#This Row],[X]]="","", INDEX(Input[Y],MATCH(Q175,Input[X],0))),"") ->  | T175: =IFERROR(IF(Input[[#This Row],[X]]="","", IF(O175<>"",Input[[#This Row],[Y]], R175+(S175-R175)/(Q175-P175)*(Input[[#This Row],[X]]-P175) )),"") ->  | U175: =IFERROR(IF(Input[[#This Row],[X]]="","", (T175-Input[[#This Row],[Y]])^2),"") ->  | V175: =IFERROR(IF(Input[[#This Row],[X]]="","", (T175-Input[[#This Row],[Y]])),"") -> 
O176: =IFERROR(IF(Input[[#This Row],[X]]="","", MATCH(Input[[#This Row],[X]],Output[X],0)),"") ->  | P176: =IFERROR(IF(Input[[#This Row],[X]]="","", MAX(IF(ISNUMBER($O$8:$O176),$B$8:$B176,""))),"") ->  | Q176: =IFERROR(IF(Input[[#This Row],[X]]="","", MIN(IF(ISNUMBER($O176:$O$999),$B176:$B$999,""))),"") ->  | R176: =IFERROR(IF(Input[[#This Row],[X]]="","", INDEX(Input[Y],MATCH(P176,Input[X],0))),"") ->  | S176: =IFERROR(IF(Input[[#This Row],[X]]="","", INDEX(Input[Y],MATCH(Q176,Input[X],0))),"") ->  | T176: =IFERROR(IF(Input[[#This Row],[X]]="","", IF(O176<>"",Input[[#This Row],[Y]], R176+(S176-R176)/(Q176-P176)*(Input[[#This Row],[X]]-P176) )),"") ->  | U176: =IFERROR(IF(Input[[#This Row],[X]]="","", (T176-Input[[#This Row],[Y]])^2),"") ->  | V176: =IFERROR(IF(Input[[#This Row],[X]]="","", (T176-Input[[#This Row],[Y]])),"") -> 
O177: =IFERROR(IF(Input[[#This Row],[X]]="","", MATCH(Input[[#This Row],[X]],Output[X],0)),"") ->  | P177: =IFERROR(IF(Input[[#This Row],[X]]="","", MAX(IF(ISNUMBER($O$8:$O177),$B$8:$B177,""))),"") ->  | Q177: =IFERROR(IF(Input[[#This Row],[X]]="","", MIN(IF(ISNUMBER($O177:$O$999),$B177:$B$999,""))),"") ->  | R177: =IFERROR(IF(Input[[#This Row],[X]]="","", INDEX(Input[Y],MATCH(P177,Input[X],0))),"") ->  | S177: =IFERROR(IF(Input[[#This Row],[X]]="","", INDEX(Input[Y],MATCH(Q177,Input[X],0))),"") ->  | T177: =IFERROR(IF(Input[[#This Row],[X]]="","", IF(O177<>"",Input[[#This Row],[Y]], R177+(S177-R177)/(Q177-P177)*(Input[[#This Row],[X]]-P177) )),"") ->  | U177: =IFERROR(IF(Input[[#This Row],[X]]="","", (T177-Input[[#This Row],[Y]])^2),"") ->  | V177: =IFERROR(IF(Input[[#This Row],[X]]="","", (T177-Input[[#This Row],[Y]])),"") -> 
O178: =IFERROR(IF(Input[[#This Row],[X]]="","", MATCH(Input[[#This Row],[X]],Output[X],0)),"") ->  | P178: =IFERROR(IF(Input[[#This Row],[X]]="","", MAX(IF(ISNUMBER($O$8:$O178),$B$8:$B178,""))),"") ->  | Q178: =IFERROR(IF(Input[[#This Row],[X]]="","", MIN(IF(ISNUMBER($O178:$O$999),$B178:$B$999,""))),"") ->  | R178: =IFERROR(IF(Input[[#This Row],[X]]="","", INDEX(Input[Y],MATCH(P178,Input[X],0))),"") ->  | S178: =IFERROR(IF(Input[[#This Row],[X]]="","", INDEX(Input[Y],MATCH(Q178,Input[X],0))),"") ->  | T178: =IFERROR(IF(Input[[#This Row],[X]]="","", IF(O178<>"",Input[[#This Row],[Y]], R178+(S178-R178)/(Q178-P178)*(Input[[#This Row],[X]]-P178) )),"") ->  | U178: =IFERROR(IF(Input[[#This Row],[X]]="","", (T178-Input[[#This Row],[Y]])^2),"") ->  | V178: =IFERROR(IF(Input[[#This Row],[X]]="","", (T178-Input[[#This Row],[Y]])),"") -> 
O179: =IFERROR(IF(Input[[#This Row],[X]]="","", MATCH(Input[[#This Row],[X]],Output[X],0)),"") ->  | P179: =IFERROR(IF(Input[[#This Row],[X]]="","", MAX(IF(ISNUMBER($O$8:$O179),$B$8:$B179,""))),"") ->  | Q179: =IFERROR(IF(Input[[#This Row],[X]]="","", MIN(IF(ISNUMBER($O179:$O$999),$B179:$B$999,""))),"") ->  | R179: =IFERROR(IF(Input[[#This Row],[X]]="","", INDEX(Input[Y],MATCH(P179,Input[X],0))),"") ->  | S179: =IFERROR(IF(Input[[#This Row],[X]]="","", INDEX(Input[Y],MATCH(Q179,Input[X],0))),"") ->  | T179: =IFERROR(IF(Input[[#This Row],[X]]="","", IF(O179<>"",Input[[#This Row],[Y]], R179+(S179-R179)/(Q179-P179)*(Input[[#This Row],[X]]-P179) )),"") ->  | U179: =IFERROR(IF(Input[[#This Row],[X]]="","", (T179-Input[[#This Row],[Y]])^2),"") ->  | V179: =IFERROR(IF(Input[[#This Row],[X]]="","", (T179-Input[[#This Row],[Y]])),"") -> 
O180: =IFERROR(IF(Input[[#This Row],[X]]="","", MATCH(Input[[#This Row],[X]],Output[X],0)),"") ->  | P180: =IFERROR(IF(Input[[#This Row],[X]]="","", MAX(IF(ISNUMBER($O$8:$O180),$B$8:$B180,""))),"") ->  | Q180: =IFERROR(IF(Input[[#This Row],[X]]="","", MIN(IF(ISNUMBER($O180:$O$999),$B180:$B$999,""))),"") ->  | R180: =IFERROR(IF(Input[[#This Row],[X]]="","", INDEX(Input[Y],MATCH(P180,Input[X],0))),"") ->  | S180: =IFERROR(IF(Input[[#This Row],[X]]="","", INDEX(Input[Y],MATCH(Q180,Input[X],0))),"") ->  | T180: =IFERROR(IF(Input[[#This Row],[X]]="","", IF(O180<>"",Input[[#This Row],[Y]], R180+(S180-R180)/(Q180-P180)*(Input[[#This Row],[X]]-P180) )),"") ->  | U180: =IFERROR(IF(Input[[#This Row],[X]]="","", (T180-Input[[#This Row],[Y]])^2),"") ->  | V180: =IFERROR(IF(Input[[#This Row],[X]]="","", (T180-Input[[#This Row],[Y]])),"") -> 
O181: =IFERROR(IF(Input[[#This Row],[X]]="","", MATCH(Input[[#This Row],[X]],Output[X],0)),"") ->  | P181: =IFERROR(IF(Input[[#This Row],[X]]="","", MAX(IF(ISNUMBER($O$8:$O181),$B$8:$B181,""))),"") ->  | Q181: =IFERROR(IF(Input[[#This Row],[X]]="","", MIN(IF(ISNUMBER($O181:$O$999),$B181:$B$999,""))),"") ->  | R181: =IFERROR(IF(Input[[#This Row],[X]]="","", INDEX(Input[Y],MATCH(P181,Input[X],0))),"") ->  | S181: =IFERROR(IF(Input[[#This Row],[X]]="","", INDEX(Input[Y],MATCH(Q181,Input[X],0))),"") ->  | T181: =IFERROR(IF(Input[[#This Row],[X]]="","", IF(O181<>"",Input[[#This Row],[Y]], R181+(S181-R181)/(Q181-P181)*(Input[[#This Row],[X]]-P181) )),"") ->  | U181: =IFERROR(IF(Input[[#This Row],[X]]="","", (T181-Input[[#This Row],[Y]])^2),"") ->  | V181: =IFERROR(IF(Input[[#This Row],[X]]="","", (T181-Input[[#This Row],[Y]])),"") -> 
O182: =IFERROR(IF(Input[[#This Row],[X]]="","", MATCH(Input[[#This Row],[X]],Output[X],0)),"") ->  | P182: =IFERROR(IF(Input[[#This Row],[X]]="","", MAX(IF(ISNUMBER($O$8:$O182),$B$8:$B182,""))),"") ->  | Q182: =IFERROR(IF(Input[[#This Row],[X]]="","", MIN(IF(ISNUMBER($O182:$O$999),$B182:$B$999,""))),"") ->  | R182: =IFERROR(IF(Input[[#This Row],[X]]="","", INDEX(Input[Y],MATCH(P182,Input[X],0))),"") ->  | S182: =IFERROR(IF(Input[[#This Row],[X]]="","", INDEX(Input[Y],MATCH(Q182,Input[X],0))),"") ->  | T182: =IFERROR(IF(Input[[#This Row],[X]]="","", IF(O182<>"",Input[[#This Row],[Y]], R182+(S182-R182)/(Q182-P182)*(Input[[#This Row],[X]]-P182) )),"") ->  | U182: =IFERROR(IF(Input[[#This Row],[X]]="","", (T182-Input[[#This Row],[Y]])^2),"") ->  | V182: =IFERROR(IF(Input[[#This Row],[X]]="","", (T182-Input[[#This Row],[Y]])),"") -> 
O183: =IFERROR(IF(Input[[#This Row],[X]]="","", MATCH(Input[[#This Row],[X]],Output[X],0)),"") ->  | P183: =IFERROR(IF(Input[[#This Row],[X]]="","", MAX(IF(ISNUMBER($O$8:$O183),$B$8:$B183,""))),"") ->  | Q183: =IFERROR(IF(Input[[#This Row],[X]]="","", MIN(IF(ISNUMBER($O183:$O$999),$B183:$B$999,""))),"") ->  | R183: =IFERROR(IF(Input[[#This Row],[X]]="","", INDEX(Input[Y],MATCH(P183,Input[X],0))),"") ->  | S183: =IFERROR(IF(Input[[#This Row],[X]]="","", INDEX(Input[Y],MATCH(Q183,Input[X],0))),"") ->  | T183: =IFERROR(IF(Input[[#This Row],[X]]="","", IF(O183<>"",Input[[#This Row],[Y]], R183+(S183-R183)/(Q183-P183)*(Input[[#This Row],[X]]-P183) )),"") ->  | U183: =IFERROR(IF(Input[[#This Row],[X]]="","", (T183-Input[[#This Row],[Y]])^2),"") ->  | V183: =IFERROR(IF(Input[[#This Row],[X]]="","", (T183-Input[[#This Row],[Y]])),"") -> 
O184: =IFERROR(IF(Input[[#This Row],[X]]="","", MATCH(Input[[#This Row],[X]],Output[X],0)),"") ->  | P184: =IFERROR(IF(Input[[#This Row],[X]]="","", MAX(IF(ISNUMBER($O$8:$O184),$B$8:$B184,""))),"") ->  | Q184: =IFERROR(IF(Input[[#This Row],[X]]="","", MIN(IF(ISNUMBER($O184:$O$999),$B184:$B$999,""))),"") ->  | R184: =IFERROR(IF(Input[[#This Row],[X]]="","", INDEX(Input[Y],MATCH(P184,Input[X],0))),"") ->  | S184: =IFERROR(IF(Input[[#This Row],[X]]="","", INDEX(Input[Y],MATCH(Q184,Input[X],0))),"") ->  | T184: =IFERROR(IF(Input[[#This Row],[X]]="","", IF(O184<>"",Input[[#This Row],[Y]], R184+(S184-R184)/(Q184-P184)*(Input[[#This Row],[X]]-P184) )),"") ->  | U184: =IFERROR(IF(Input[[#This Row],[X]]="","", (T184-Input[[#This Row],[Y]])^2),"") ->  | V184: =IFERROR(IF(Input[[#This Row],[X]]="","", (T184-Input[[#This Row],[Y]])),"") -> 
O185: =IFERROR(IF(Input[[#This Row],[X]]="","", MATCH(Input[[#This Row],[X]],Output[X],0)),"") ->  | P185: =IFERROR(IF(Input[[#This Row],[X]]="","", MAX(IF(ISNUMBER($O$8:$O185),$B$8:$B185,""))),"") ->  | Q185: =IFERROR(IF(Input[[#This Row],[X]]="","", MIN(IF(ISNUMBER($O185:$O$999),$B185:$B$999,""))),"") ->  | R185: =IFERROR(IF(Input[[#This Row],[X]]="","", INDEX(Input[Y],MATCH(P185,Input[X],0))),"") ->  | S185: =IFERROR(IF(Input[[#This Row],[X]]="","", INDEX(Input[Y],MATCH(Q185,Input[X],0))),"") ->  | T185: =IFERROR(IF(Input[[#This Row],[X]]="","", IF(O185<>"",Input[[#This Row],[Y]], R185+(S185-R185)/(Q185-P185)*(Input[[#This Row],[X]]-P185) )),"") ->  | U185: =IFERROR(IF(Input[[#This Row],[X]]="","", (T185-Input[[#This Row],[Y]])^2),"") ->  | V185: =IFERROR(IF(Input[[#This Row],[X]]="","", (T185-Input[[#This Row],[Y]])),"") -> 
O186: =IFERROR(IF(Input[[#This Row],[X]]="","", MATCH(Input[[#This Row],[X]],Output[X],0)),"") ->  | P186: =IFERROR(IF(Input[[#This Row],[X]]="","", MAX(IF(ISNUMBER($O$8:$O186),$B$8:$B186,""))),"") ->  | Q186: =IFERROR(IF(Input[[#This Row],[X]]="","", MIN(IF(ISNUMBER($O186:$O$999),$B186:$B$999,""))),"") ->  | R186: =IFERROR(IF(Input[[#This Row],[X]]="","", INDEX(Input[Y],MATCH(P186,Input[X],0))),"") ->  | S186: =IFERROR(IF(Input[[#This Row],[X]]="","", INDEX(Input[Y],MATCH(Q186,Input[X],0))),"") ->  | T186: =IFERROR(IF(Input[[#This Row],[X]]="","", IF(O186<>"",Input[[#This Row],[Y]], R186+(S186-R186)/(Q186-P186)*(Input[[#This Row],[X]]-P186) )),"") ->  | U186: =IFERROR(IF(Input[[#This Row],[X]]="","", (T186-Input[[#This Row],[Y]])^2),"") ->  | V186: =IFERROR(IF(Input[[#This Row],[X]]="","", (T186-Input[[#This Row],[Y]])),"") -> 
O187: =IFERROR(IF(Input[[#This Row],[X]]="","", MATCH(Input[[#This Row],[X]],Output[X],0)),"") ->  | P187: =IFERROR(IF(Input[[#This Row],[X]]="","", MAX(IF(ISNUMBER($O$8:$O187),$B$8:$B187,""))),"") ->  | Q187: =IFERROR(IF(Input[[#This Row],[X]]="","", MIN(IF(ISNUMBER($O187:$O$999),$B187:$B$999,""))),"") ->  | R187: =IFERROR(IF(Input[[#This Row],[X]]="","", INDEX(Input[Y],MATCH(P187,Input[X],0))),"") ->  | S187: =IFERROR(IF(Input[[#This Row],[X]]="","", INDEX(Input[Y],MATCH(Q187,Input[X],0))),"") ->  | T187: =IFERROR(IF(Input[[#This Row],[X]]="","", IF(O187<>"",Input[[#This Row],[Y]], R187+(S187-R187)/(Q187-P187)*(Input[[#This Row],[X]]-P187) )),"") ->  | U187: =IFERROR(IF(Input[[#This Row],[X]]="","", (T187-Input[[#This Row],[Y]])^2),"") ->  | V187: =IFERROR(IF(Input[[#This Row],[X]]="","", (T187-Input[[#This Row],[Y]])),"") -> 
O188: =IFERROR(IF(Input[[#This Row],[X]]="","", MATCH(Input[[#This Row],[X]],Output[X],0)),"") ->  | P188: =IFERROR(IF(Input[[#This Row],[X]]="","", MAX(IF(ISNUMBER($O$8:$O188),$B$8:$B188,""))),"") ->  | Q188: =IFERROR(IF(Input[[#This Row],[X]]="","", MIN(IF(ISNUMBER($O188:$O$999),$B188:$B$999,""))),"") ->  | R188: =IFERROR(IF(Input[[#This Row],[X]]="","", INDEX(Input[Y],MATCH(P188,Input[X],0))),"") ->  | S188: =IFERROR(IF(Input[[#This Row],[X]]="","", INDEX(Input[Y],MATCH(Q188,Input[X],0))),"") ->  | T188: =IFERROR(IF(Input[[#This Row],[X]]="","", IF(O188<>"",Input[[#This Row],[Y]], R188+(S188-R188)/(Q188-P188)*(Input[[#This Row],[X]]-P188) )),"") ->  | U188: =IFERROR(IF(Input[[#This Row],[X]]="","", (T188-Input[[#This Row],[Y]])^2),"") ->  | V188: =IFERROR(IF(Input[[#This Row],[X]]="","", (T188-Input[[#This Row],[Y]])),"") -> 
O189: =IFERROR(IF(Input[[#This Row],[X]]="","", MATCH(Input[[#This Row],[X]],Output[X],0)),"") ->  | P189: =IFERROR(IF(Input[[#This Row],[X]]="","", MAX(IF(ISNUMBER($O$8:$O189),$B$8:$B189,""))),"") ->  | Q189: =IFERROR(IF(Input[[#This Row],[X]]="","", MIN(IF(ISNUMBER($O189:$O$999),$B189:$B$999,""))),"") ->  | R189: =IFERROR(IF(Input[[#This Row],[X]]="","", INDEX(Input[Y],MATCH(P189,Input[X],0))),"") ->  | S189: =IFERROR(IF(Input[[#This Row],[X]]="","", INDEX(Input[Y],MATCH(Q189,Input[X],0))),"") ->  | T189: =IFERROR(IF(Input[[#This Row],[X]]="","", IF(O189<>"",Input[[#This Row],[Y]], R189+(S189-R189)/(Q189-P189)*(Input[[#This Row],[X]]-P189) )),"") ->  | U189: =IFERROR(IF(Input[[#This Row],[X]]="","", (T189-Input[[#This Row],[Y]])^2),"") ->  | V189: =IFERROR(IF(Input[[#This Row],[X]]="","", (T189-Input[[#This Row],[Y]])),"") -> 
O190: =IFERROR(IF(Input[[#This Row],[X]]="","", MATCH(Input[[#This Row],[X]],Output[X],0)),"") ->  | P190: =IFERROR(IF(Input[[#This Row],[X]]="","", MAX(IF(ISNUMBER($O$8:$O190),$B$8:$B190,""))),"") ->  | Q190: =IFERROR(IF(Input[[#This Row],[X]]="","", MIN(IF(ISNUMBER($O190:$O$999),$B190:$B$999,""))),"") ->  | R190: =IFERROR(IF(Input[[#This Row],[X]]="","", INDEX(Input[Y],MATCH(P190,Input[X],0))),"") ->  | S190: =IFERROR(IF(Input[[#This Row],[X]]="","", INDEX(Input[Y],MATCH(Q190,Input[X],0))),"") ->  | T190: =IFERROR(IF(Input[[#This Row],[X]]="","", IF(O190<>"",Input[[#This Row],[Y]], R190+(S190-R190)/(Q190-P190)*(Input[[#This Row],[X]]-P190) )),"") ->  | U190: =IFERROR(IF(Input[[#This Row],[X]]="","", (T190-Input[[#This Row],[Y]])^2),"") ->  | V190: =IFERROR(IF(Input[[#This Row],[X]]="","", (T190-Input[[#This Row],[Y]])),"") -> 
O191: =IFERROR(IF(Input[[#This Row],[X]]="","", MATCH(Input[[#This Row],[X]],Output[X],0)),"") ->  | P191: =IFERROR(IF(Input[[#This Row],[X]]="","", MAX(IF(ISNUMBER($O$8:$O191),$B$8:$B191,""))),"") ->  | Q191: =IFERROR(IF(Input[[#This Row],[X]]="","", MIN(IF(ISNUMBER($O191:$O$999),$B191:$B$999,""))),"") ->  | R191: =IFERROR(IF(Input[[#This Row],[X]]="","", INDEX(Input[Y],MATCH(P191,Input[X],0))),"") ->  | S191: =IFERROR(IF(Input[[#This Row],[X]]="","", INDEX(Input[Y],MATCH(Q191,Input[X],0))),"") ->  | T191: =IFERROR(IF(Input[[#This Row],[X]]="","", IF(O191<>"",Input[[#This Row],[Y]], R191+(S191-R191)/(Q191-P191)*(Input[[#This Row],[X]]-P191) )),"") ->  | U191: =IFERROR(IF(Input[[#This Row],[X]]="","", (T191-Input[[#This Row],[Y]])^2),"") ->  | V191: =IFERROR(IF(Input[[#This Row],[X]]="","", (T191-Input[[#This Row],[Y]])),"") -> 
O192: =IFERROR(IF(Input[[#This Row],[X]]="","", MATCH(Input[[#This Row],[X]],Output[X],0)),"") ->  | P192: =IFERROR(IF(Input[[#This Row],[X]]="","", MAX(IF(ISNUMBER($O$8:$O192),$B$8:$B192,""))),"") ->  | Q192: =IFERROR(IF(Input[[#This Row],[X]]="","", MIN(IF(ISNUMBER($O192:$O$999),$B192:$B$999,""))),"") ->  | R192: =IFERROR(IF(Input[[#This Row],[X]]="","", INDEX(Input[Y],MATCH(P192,Input[X],0))),"") ->  | S192: =IFERROR(IF(Input[[#This Row],[X]]="","", INDEX(Input[Y],MATCH(Q192,Input[X],0))),"") ->  | T192: =IFERROR(IF(Input[[#This Row],[X]]="","", IF(O192<>"",Input[[#This Row],[Y]], R192+(S192-R192)/(Q192-P192)*(Input[[#This Row],[X]]-P192) )),"") ->  | U192: =IFERROR(IF(Input[[#This Row],[X]]="","", (T192-Input[[#This Row],[Y]])^2),"") ->  | V192: =IFERROR(IF(Input[[#This Row],[X]]="","", (T192-Input[[#This Row],[Y]])),"") -> 
O193: =IFERROR(IF(Input[[#This Row],[X]]="","", MATCH(Input[[#This Row],[X]],Output[X],0)),"") ->  | P193: =IFERROR(IF(Input[[#This Row],[X]]="","", MAX(IF(ISNUMBER($O$8:$O193),$B$8:$B193,""))),"") ->  | Q193: =IFERROR(IF(Input[[#This Row],[X]]="","", MIN(IF(ISNUMBER($O193:$O$999),$B193:$B$999,""))),"") ->  | R193: =IFERROR(IF(Input[[#This Row],[X]]="","", INDEX(Input[Y],MATCH(P193,Input[X],0))),"") ->  | S193: =IFERROR(IF(Input[[#This Row],[X]]="","", INDEX(Input[Y],MATCH(Q193,Input[X],0))),"") ->  | T193: =IFERROR(IF(Input[[#This Row],[X]]="","", IF(O193<>"",Input[[#This Row],[Y]], R193+(S193-R193)/(Q193-P193)*(Input[[#This Row],[X]]-P193) )),"") ->  | U193: =IFERROR(IF(Input[[#This Row],[X]]="","", (T193-Input[[#This Row],[Y]])^2),"") ->  | V193: =IFERROR(IF(Input[[#This Row],[X]]="","", (T193-Input[[#This Row],[Y]])),"") -> 
O194: =IFERROR(IF(Input[[#This Row],[X]]="","", MATCH(Input[[#This Row],[X]],Output[X],0)),"") ->  | P194: =IFERROR(IF(Input[[#This Row],[X]]="","", MAX(IF(ISNUMBER($O$8:$O194),$B$8:$B194,""))),"") ->  | Q194: =IFERROR(IF(Input[[#This Row],[X]]="","", MIN(IF(ISNUMBER($O194:$O$999),$B194:$B$999,""))),"") ->  | R194: =IFERROR(IF(Input[[#This Row],[X]]="","", INDEX(Input[Y],MATCH(P194,Input[X],0))),"") ->  | S194: =IFERROR(IF(Input[[#This Row],[X]]="","", INDEX(Input[Y],MATCH(Q194,Input[X],0))),"") ->  | T194: =IFERROR(IF(Input[[#This Row],[X]]="","", IF(O194<>"",Input[[#This Row],[Y]], R194+(S194-R194)/(Q194-P194)*(Input[[#This Row],[X]]-P194) )),"") ->  | U194: =IFERROR(IF(Input[[#This Row],[X]]="","", (T194-Input[[#This Row],[Y]])^2),"") ->  | V194: =IFERROR(IF(Input[[#This Row],[X]]="","", (T194-Input[[#This Row],[Y]])),"") -> 
O195: =IFERROR(IF(Input[[#This Row],[X]]="","", MATCH(Input[[#This Row],[X]],Output[X],0)),"") ->  | P195: =IFERROR(IF(Input[[#This Row],[X]]="","", MAX(IF(ISNUMBER($O$8:$O195),$B$8:$B195,""))),"") ->  | Q195: =IFERROR(IF(Input[[#This Row],[X]]="","", MIN(IF(ISNUMBER($O195:$O$999),$B195:$B$999,""))),"") ->  | R195: =IFERROR(IF(Input[[#This Row],[X]]="","", INDEX(Input[Y],MATCH(P195,Input[X],0))),"") ->  | S195: =IFERROR(IF(Input[[#This Row],[X]]="","", INDEX(Input[Y],MATCH(Q195,Input[X],0))),"") ->  | T195: =IFERROR(IF(Input[[#This Row],[X]]="","", IF(O195<>"",Input[[#This Row],[Y]], R195+(S195-R195)/(Q195-P195)*(Input[[#This Row],[X]]-P195) )),"") ->  | U195: =IFERROR(IF(Input[[#This Row],[X]]="","", (T195-Input[[#This Row],[Y]])^2),"") ->  | V195: =IFERROR(IF(Input[[#This Row],[X]]="","", (T195-Input[[#This Row],[Y]])),"") -> 
O196: =IFERROR(IF(Input[[#This Row],[X]]="","", MATCH(Input[[#This Row],[X]],Output[X],0)),"") ->  | P196: =IFERROR(IF(Input[[#This Row],[X]]="","", MAX(IF(ISNUMBER($O$8:$O196),$B$8:$B196,""))),"") ->  | Q196: =IFERROR(IF(Input[[#This Row],[X]]="","", MIN(IF(ISNUMBER($O196:$O$999),$B196:$B$999,""))),"") ->  | R196: =IFERROR(IF(Input[[#This Row],[X]]="","", INDEX(Input[Y],MATCH(P196,Input[X],0))),"") ->  | S196: =IFERROR(IF(Input[[#This Row],[X]]="","", INDEX(Input[Y],MATCH(Q196,Input[X],0))),"") ->  | T196: =IFERROR(IF(Input[[#This Row],[X]]="","", IF(O196<>"",Input[[#This Row],[Y]], R196+(S196-R196)/(Q196-P196)*(Input[[#This Row],[X]]-P196) )),"") ->  | U196: =IFERROR(IF(Input[[#This Row],[X]]="","", (T196-Input[[#This Row],[Y]])^2),"") ->  | V196: =IFERROR(IF(Input[[#This Row],[X]]="","", (T196-Input[[#This Row],[Y]])),"") -> 
O197: =IFERROR(IF(Input[[#This Row],[X]]="","", MATCH(Input[[#This Row],[X]],Output[X],0)),"") ->  | P197: =IFERROR(IF(Input[[#This Row],[X]]="","", MAX(IF(ISNUMBER($O$8:$O197),$B$8:$B197,""))),"") ->  | Q197: =IFERROR(IF(Input[[#This Row],[X]]="","", MIN(IF(ISNUMBER($O197:$O$999),$B197:$B$999,""))),"") ->  | R197: =IFERROR(IF(Input[[#This Row],[X]]="","", INDEX(Input[Y],MATCH(P197,Input[X],0))),"") ->  | S197: =IFERROR(IF(Input[[#This Row],[X]]="","", INDEX(Input[Y],MATCH(Q197,Input[X],0))),"") ->  | T197: =IFERROR(IF(Input[[#This Row],[X]]="","", IF(O197<>"",Input[[#This Row],[Y]], R197+(S197-R197)/(Q197-P197)*(Input[[#This Row],[X]]-P197) )),"") ->  | U197: =IFERROR(IF(Input[[#This Row],[X]]="","", (T197-Input[[#This Row],[Y]])^2),"") ->  | V197: =IFERROR(IF(Input[[#This Row],[X]]="","", (T197-Input[[#This Row],[Y]])),"") -> 
O198: =IFERROR(IF(Input[[#This Row],[X]]="","", MATCH(Input[[#This Row],[X]],Output[X],0)),"") ->  | P198: =IFERROR(IF(Input[[#This Row],[X]]="","", MAX(IF(ISNUMBER($O$8:$O198),$B$8:$B198,""))),"") ->  | Q198: =IFERROR(IF(Input[[#This Row],[X]]="","", MIN(IF(ISNUMBER($O198:$O$999),$B198:$B$999,""))),"") ->  | R198: =IFERROR(IF(Input[[#This Row],[X]]="","", INDEX(Input[Y],MATCH(P198,Input[X],0))),"") ->  | S198: =IFERROR(IF(Input[[#This Row],[X]]="","", INDEX(Input[Y],MATCH(Q198,Input[X],0))),"") ->  | T198: =IFERROR(IF(Input[[#This Row],[X]]="","", IF(O198<>"",Input[[#This Row],[Y]], R198+(S198-R198)/(Q198-P198)*(Input[[#This Row],[X]]-P198) )),"") ->  | U198: =IFERROR(IF(Input[[#This Row],[X]]="","", (T198-Input[[#This Row],[Y]])^2),"") ->  | V198: =IFERROR(IF(Input[[#This Row],[X]]="","", (T198-Input[[#This Row],[Y]])),"") -> 
O199: =IFERROR(IF(Input[[#This Row],[X]]="","", MATCH(Input[[#This Row],[X]],Output[X],0)),"") ->  | P199: =IFERROR(IF(Input[[#This Row],[X]]="","", MAX(IF(ISNUMBER($O$8:$O199),$B$8:$B199,""))),"") ->  | Q199: =IFERROR(IF(Input[[#This Row],[X]]="","", MIN(IF(ISNUMBER($O199:$O$999),$B199:$B$999,""))),"") ->  | R199: =IFERROR(IF(Input[[#This Row],[X]]="","", INDEX(Input[Y],MATCH(P199,Input[X],0))),"") ->  | S199: =IFERROR(IF(Input[[#This Row],[X]]="","", INDEX(Input[Y],MATCH(Q199,Input[X],0))),"") ->  | T199: =IFERROR(IF(Input[[#This Row],[X]]="","", IF(O199<>"",Input[[#This Row],[Y]], R199+(S199-R199)/(Q199-P199)*(Input[[#This Row],[X]]-P199) )),"") ->  | U199: =IFERROR(IF(Input[[#This Row],[X]]="","", (T199-Input[[#This Row],[Y]])^2),"") ->  | V199: =IFERROR(IF(Input[[#This Row],[X]]="","", (T199-Input[[#This Row],[Y]])),"") -> 
O200: =IFERROR(IF(Input[[#This Row],[X]]="","", MATCH(Input[[#This Row],[X]],Output[X],0)),"") ->  | P200: =IFERROR(IF(Input[[#This Row],[X]]="","", MAX(IF(ISNUMBER($O$8:$O200),$B$8:$B200,""))),"") ->  | Q200: =IFERROR(IF(Input[[#This Row],[X]]="","", MIN(IF(ISNUMBER($O200:$O$999),$B200:$B$999,""))),"") ->  | R200: =IFERROR(IF(Input[[#This Row],[X]]="","", INDEX(Input[Y],MATCH(P200,Input[X],0))),"") ->  | S200: =IFERROR(IF(Input[[#This Row],[X]]="","", INDEX(Input[Y],MATCH(Q200,Input[X],0))),"") ->  | T200: =IFERROR(IF(Input[[#This Row],[X]]="","", IF(O200<>"",Input[[#This Row],[Y]], R200+(S200-R200)/(Q200-P200)*(Input[[#This Row],[X]]-P200) )),"") ->  | U200: =IFERROR(IF(Input[[#This Row],[X]]="","", (T200-Input[[#This Row],[Y]])^2),"") ->  | V200: =IFERROR(IF(Input[[#This Row],[X]]="","", (T200-Input[[#This Row],[Y]])),"") -> 
O201: =IFERROR(IF(Input[[#This Row],[X]]="","", MATCH(Input[[#This Row],[X]],Output[X],0)),"") ->  | P201: =IFERROR(IF(Input[[#This Row],[X]]="","", MAX(IF(ISNUMBER($O$8:$O201),$B$8:$B201,""))),"") ->  | Q201: =IFERROR(IF(Input[[#This Row],[X]]="","", MIN(IF(ISNUMBER($O201:$O$999),$B201:$B$999,""))),"") ->  | R201: =IFERROR(IF(Input[[#This Row],[X]]="","", INDEX(Input[Y],MATCH(P201,Input[X],0))),"") ->  | S201: =IFERROR(IF(Input[[#This Row],[X]]="","", INDEX(Input[Y],MATCH(Q201,Input[X],0))),"") ->  | T201: =IFERROR(IF(Input[[#This Row],[X]]="","", IF(O201<>"",Input[[#This Row],[Y]], R201+(S201-R201)/(Q201-P201)*(Input[[#This Row],[X]]-P201) )),"") ->  | U201: =IFERROR(IF(Input[[#This Row],[X]]="","", (T201-Input[[#This Row],[Y]])^2),"") ->  | V201: =IFERROR(IF(Input[[#This Row],[X]]="","", (T201-Input[[#This Row],[Y]])),"") -> 
... 798 more rows

Sheet 2
D2: Išvestis
D3: Ruožas | E3: Atstumas | F3: AD0
E4: X | F4: Y
D5: =ROW()-ROW($D$5)+1 -> 1 | E5: 0.05 | F5: 1.4
D6: 2 | E6: 4.25 | F6: 1.2
D7: 3
D8: 4
D9: 5
D10: 6
D11: 7
D12: 8
D13: 9
D14: 10
D15: 11
D16: 12
D17: 13
D18: 14
D19: 15
D20: 16
D21: 17
D22: 18
D23: 19
D24: 20
D25: 21
D26: 22
D27: 23
D28: 24
D29: 25
D30: 26
D31: 27
D32: 28
D33: 29
D34: 30
D35: 31
D36: 32
D37: =ROW()-ROW($D$5)+1 -> 33
D38: 34
D39: 35
D40: 36
D41: 37
D42: 38
D43: 39
D44: 40
D45: 41
D46: 42
D47: 43
D48: 44
D49: 45
D50: 46
D51: 47
D52: 48
D53: 49
D54: 50
D55: 51
D56: 52
D57: =ROW()-ROW($D$5)+1 -> 53
D58: 54
D59: 55
D60: 56
D61: 57
D62: 58
D63: 59
D64: 60
D65: 61
D66: 62
D67: 63
D68: 64
D69: 65
D70: 66
D71: 67
D72: 68
D73: 69
D74: 70
D75: 71
D76: 72
D77: 73
D78: 74
D79: 75
D80: 76
D81: 77
D82: 78
D83: 79
D84: 80
D85: 81
D86: 82
D87: 83
D88: 84
D89: 85
D90: 86
D91: 87
D92: 88
D93: 89
D94: 90
D95: 91
D96: 92
D97: 93
D98: 94
D99: 95
